{"text_format":"1","workbook":"xlsx","n_sheets":4,"sheets":["Contacto","Instructivo","Base Datos","Listas Desplegables"],"not_rendered":{"charts":0,"images":7,"macros":1,"external_links":0,"defined_names":1,"comments":1,"pivot_tables":0},"unopened":[],"bounds":{"document_bytes":16777216,"sheet_cells":100000,"rows_first":2000,"rows_last":500,"rows_between":2000,"halvings":0,"cell_chars":16384,"cell_head_chars":4096},"cells_cut":0,"cells_raw":0,"read":"whole","date_system":"1900"}

{"sheet":"Contacto","index":0,"n_rows":734,"n_cols":28,"rows_kept":734,"cut":false,"hidden":false,"merged":[[79,2,79,7],[36,3,36,11],[1,4,1,8],[7,3,7,11],[9,3,9,11],[28,9,28,11],[38,3,38,11],[33,9,33,11],[31,9,31,11],[37,3,37,11],[32,9,32,11],[34,9,34,11],[17,3,17,8],[14,3,14,8],[15,3,15,8],[10,2,11,2],[13,2,27,2],[18,3,18,8],[19,3,19,8],[20,3,20,8],[21,3,21,8],[22,3,22,8],[23,3,23,8],[24,3,24,8],[25,3,25,8],[26,3,26,8],[27,3,27,8],[16,3,16,8],[40,3,40,11],[46,5,46,6],[45,3,45,4],[45,5,45,6],[44,3,44,4],[44,5,44,6],[43,7,44,11],[41,3,41,11],[42,3,42,6],[43,5,43,6],[43,3,43,4],[46,3,46,4],[60,2,60,7],[61,2,61,7],[62,2,62,7],[63,2,63,7],[5,3,5,11],[6,3,6,11],[42,2,44,2],[45,2,46,2],[47,2,50,2],[47,3,50,11],[58,2,58,7],[52,3,57,11],[52,2,57,2],[8,3,8,11],[51,3,51,11],[74,2,74,7],[76,2,76,7],[69,2,69,7],[70,2,70,7],[71,2,71,7],[72,2,72,7],[73,2,73,7],[75,2,75,7],[64,2,64,7],[65,2,65,7],[66,2,66,7],[67,2,67,7],[68,2,68,7],[59,2,59,7],[4,10,4,11],[31,3,31,5],[33,3,33,5],[28,3,28,5],[32,6,32,8],[31,6,31,8],[33,6,33,8],[28,6,28,8],[32,3,32,5],[12,2,12,8],[13,3,13,8],[42,7,42,11],[45,7,45,11],[46,7,46,11],[39,3,39,11],[35,3,35,5],[35,6,35,8],[35,9,35,11],[28,2,34,2],[29,3,29,5],[29,6,29,8],[29,9,29,11],[30,3,30,5],[30,6,30,8],[30,9,30,11],[34,3,34,5],[34,6,34,8]]}
[null,null,null,null,null,null,null,null,null,null,null,null,null,null,null,null,null,null,null,null,null,null,null,null,null,"A00000 Agricultura, ganaderia, caza"]
[null,null,null,null,"FORMULARIO CONTACTO PROVEEDOR",null,null,null,null,null,null,null,null,null,null,null,null,null,null,null,null,null,null,null,null,"A00001 Pollos y Cerdos"]
[null,null,"Dirección de Compras",null,null,null,null,null,null,null,null,null,null,null,null,null,null,null,null,null,null,null,null,null,null,"A01114 Cultivo de remolacha azucarera, caña de azúcar y sorgo de grano."]
[null,null,null,null,null,null,null,null,null,null,null,null,null,null,null,null,null,null,null,null,null,null,null,null,null,"A01114A Cultivo de leguminosas como guisantes y frijoles"]
[null,null,null,null,null,null,null,null,null,"Fecha:",null,null,null,null,null,null,null,null,null,null,null,null,null,null,null,"A01116 Cultivo de semillas oleaginosas y de frutas y nueces oleaginosas"]
[null,null,"Razón Social",null,null,null,null,null,null,null,null,null,null,null,null,null,null,null,null,null,null,null,null,null,null,"A01116A Cultivo de cacahuetes (maní), soja y colza."]
[null,null,"RIF (Aplica solo para Venezuela)",null,null,null,null,null,null,null,null,null,null,null,null,null,null,null,null,null,null,null,null,null,null,"A01118 Cultivo de conos de lúpulo, raíces de achicoria"]
[null,null,"País",null,null,null,null,null,null,null,null,null,null,null,null,null,null,null,null,null,null,null,null,null,null,"A01118A Cultivo de raíces y tubérculos con gran contenido de almidón o inulina"]
[null,null,"Estado",null,null,null,null,null,null,null,null,null,null,null,null,null,null,null,null,null,null,null,null,null,null,"A01119 Cultivo de algodón y otras plantas que dan materias textiles."]
[null,null,"Dirección Fiscal",null,null,null,null,null,null,null,null,null,null,null,null,null,null,null,null,null,null,null,null,null,null,"A01119A Cultivo de plantas uso principalmente en farmacia y p/insecticidas, fungicidas"]
[null,null,"Categoría de Producto o Servicio","Materia Prima","Material de Empaque","Repuestos y Suministros","Material Promocional","Servicios de Transporte","Servicios de Infraestructura","Suministros y/o Servicios Informáticos","Honorarios Profesionales c/Firma Personal","Otros.\nEspecifique",null,null,null,null,null,null,null,null,null,null,null,null,null,"A01121 Cultivo de hortalizas: tomates, melones, calabazas, cebollas, coles, lechugas."]
[null,null,null,null,null,null,null,null,null,null,null,null,null,null,null,null,null,null,null,null,null,null,null,null,null,"A01121A Cultivo pepinos, zanahoria, fríjoles, maíz dulce, calabacin, berenjenas, puerros"]
[null,null,"Clasificación",null,null,null,null,null,null,"Distribuidor","Fabricante","Importador",null,null,null,null,null,null,null,null,null,null,null,null,null,"A01131 Cultivo frutas: manzanas, peras, frutas cítricas, albaricoques,  fresas, bayas.",null,"X"]
[null,null,"Descripción del(os) \nProducto(s) o Servicio(s)",null,null,null,null,null,null,null,null,null,null,null,null,null,null,null,null,null,null,null,null,null,null,"A01131A Cultivo de cerezas, melocotones, plátanos, aguacates, guayabas y dátiles"]
[null,null,null,null,null,null,null,null,null,null,null,null,null,null,null,null,null,null,null,null,null,null,null,null,null,"A01132 Cultivo de uvas de mesa y uvas para la producción de vino",null,"SI"]
[null,null,null,null,null,null,null,null,null,null,null,null,null,null,null,null,null,null,null,null,null,null,null,null,null,"A01133 Producción de vino a partir uvas de producción propias (incluida por excepción)",null,"NO"]
[null,null,null,null,null,null,null,null,null,null,null,null,null,null,null,null,null,null,null,null,null,null,null,null,null,"A011361 Cultivo de especias: semillas, como anís, cilantro o comino"]
[null,null,null,null,null,null,null,null,null,null,null,null,null,null,null,null,null,null,null,null,null,null,null,null,null,"A011362 Cultivo de especias: hojas, como laurel, albahaca o tomillo"]
[null,null,null,null,null,null,null,null,null,null,null,null,null,null,null,null,null,null,null,null,null,null,null,null,null,"A011363 Cultivo de especias: flores, como la canela"]
[null,null,null,null,null,null,null,null,null,null,null,null,null,null,null,null,null,null,null,null,null,null,null,null,null,"A011364 Cultivo de especias: frutos, como los clavos de olor"]
[null,null,null,null,null,null,null,null,null,null,null,null,null,null,null,null,null,null,null,null,null,null,null,null,null,"A011365 Cultivo de especias: otras especias, como el jengibre o la nuez moscada"]
[null,null,null,null,null,null,null,null,null,null,null,null,null,null,null,null,null,null,null,null,null,null,null,null,null,"A1112 Cultivo de cereales, como arroz, trigo blando y duro, centeno, cebada y avena."]
[null,null,null,null,null,null,null,null,null,null,null,null,null,null,null,null,null,null,null,null,null,null,null,null,null,"A1112A Cultivo de cereales como: cebada malteada, maíz (excepto maíz dulce)"]
[null,null,null,null,null,null,null,null,null,null,null,null,null,null,null,null,null,null,null,null,null,null,null,null,null,"B00000 Pesca"]
[null,null,null,null,null,null,null,null,null,null,null,null,null,null,null,null,null,null,null,null,null,null,null,null,null,"B05012 Extracción de crustáceos y moluscos marinos y de agua dulce"]
[null,null,null,null,null,null,null,null,null,null,null,null,null,null,null,null,null,null,null,null,null,null,null,null,null,"B05015 Producción, elaboración y conservación del pescado"]
[null,null,null,null,null,null,null,null,null,null,null,null,null,null,null,null,null,null,null,null,null,null,null,null,null,"C00000 Minas y canteras"]
[null,null,null,null,null,null,null,null,null,null,null,null,null,null,null,null,null,null,null,null,null,null,null,null,null,"C14222 Producción sal mediante evaporación al sol de agua de mar y otras aguas salinas"]
[null,null,"Contacto","Persona Contacto 1",null,null,"Persona Contacto 2",null,null,"Director de la Empresa",null,null,null,null,null,null,null,null,null,null,null,null,null,null,null,"C14223 Trituración, purificación y refinado de la sal"]
[null,null,null,"Nombre",null,null,"Nombre",null,null,"Nombre",null,null,null,null,null,null,null,null,null,null,null,null,null,null,null,"C142921 Extracción de materiales abrasivos, asbesto, polvo de fósiles silíceos."]
[null,null,null,null,null,null,null,null,null,null,null,null,null,null,null,null,null,null,null,null,null,null,null,null,null,"C142921A Extracción de grafito natural, esteatita (talco), feldespato."]
[null,null,null,"Celular",null,null,"Celular",null,null,"Celular",null,null,null,null,null,null,null,null,null,null,null,null,null,null,null,"D15000 Elaboración de productos alimenticios y bebidas"]
[null,null,null,null,null,null,null,null,null,null,null,null,null,null,null,null,null,null,null,null,null,null,null,null,null,"D15201 Elaboración leche fresca líquida pasteurizada, esterilizada, homogeneizada"]
[null,null,null,"Correo electrónico",null,null,"Correo electrónico",null,null,"Correo electrónico",null,null,null,null,null,null,null,null,null,null,null,null,null,null,null,"D15209 Elaboración de sueros"]
[null,null,null,null,null,null,null,null,null,null,null,null,null,null,null,null,null,null,null,null,null,null,null,null,null,"D15321 Elaboración de almidones de arroz, patata, maíz."]
[null,null,"Teléfono Local",null,null,null,null,null,null,null,null,null,null,null,null,null,null,null,null,null,null,null,null,null,null,"D15416 Elaboración de productos de aperitivo dulces o salados (galletas, pretzels)"]
[null,null,"Correo de la Empresa"]
[null,null,"Página Web",null,null,null,null,null,null,null,null,null,null,null,null,null,null,null,null,null,null,null,null,null,null,"D15421 Elaboración o refinado de azúcar (sacarosa)"]
[null,null,"Principales Clientes",null,null,null,null,null,null,null,null,null,null,null,null,null,null,null,null,null,null,null,null,null,null,"D15421A Elaboración Sucedáneos del azúcar  del jugo de caña, remolacha, arce y palma"]
[null,null,"Tiempo en el Mercado",null,null,null,null,null,null,null,null,null,null,null,null,null,null,null,null,null,null,null,null,null,null,"D15422 Elaboración de jarabes de azúcar"]
[null,null,"Cantidad de Empleados",null,null,null,null,null,null,null,null,null,null,null,null,null,null,null,null,null,null,null,null,null,null,"D15423 Elaboración de melazas"]
[null,null,"Dirección de Oficinas, \nPlantas y/o Almacenes",null,null,null,null,null,null,null,null,null,null,null,null,null,null,null,null,null,null,null,null,null,null,"D15431 Elaboración de cacao, manteca de cacao, grasa de cacao, aceite de cacao"]
[null,null,"Historial con Empresas Polar ","¿Ha realizado negocios con Empresas Polar anteriormente? ",null,null,null,"En caso de que su respuesta sea “Si”, indicar: (i) con cuál de las Compañías de Empresas Polar se realizó la operación y (ii) con cuál razón social del proveedor",null,null,null,null,null,null,null,null,null,null,null,null,null,null,null,null,null,"D15433 Elaboración de productos de confitería: caramelos, pastillas de cachú,"]
[null,null,null,"Si",null,"No",null,null,null,null,null,null,null,null,null,null,null,null,null,null,null,null,null,null,null,"D15433A Elaboración de turrón, confites blandos y chocolate blanco"]
[null,null,null,null,null,null,null,null,null,null,null,null,null,null,null,null,null,null,null,null,null,null,null,null,null,"D15434 Elaboración de goma de mascar"]
[null,null,"¿Tiene algún familiar en \nEmpresas Polar?  ","Si",null,"No",null,"En caso de que su respuesta sea “Si”, indicar el Nombre y Cargo",null,null,null,null,null,null,null,null,null,null,null,null,null,null,null,null,null,"D15511 Elaboración de bebidas alcohólicas destiladas: wisky, coñac."]
[null,null,null,null,null,null,null,null,null,null,null,null,null,null,null,null,null,null,null,null,null,null,null,null,null,"D15511A Elaboración de bebidas alcohólicas destiladas: ginebra, licores, \"mezclas\"."]
[null,null,"Observaciones:",null,null,null,null,null,null,null,null,null,null,null,null,null,null,null,null,null,null,null,null,null,null,"D15521 Elaboración de vino con uvas no producidas por la misma unidad"]
[null,null,null,null,null,null,null,null,null,null,null,null,null,null,null,null,null,null,null,null,null,null,null,null,null,"D15522 Elaboración de vinos espumantes"]
[null,null,null,null,null,null,null,null,null,null,null,null,null,null,null,null,null,null,null,null,null,null,null,null,null,"D15523 Elaboración de vinos a partir de mosto de uva concentrado"]
[null,null,null,null,null,null,null,null,null,null,null,null,null,null,null,null,null,null,null,null,null,null,null,null,null,"D17000 Fabricación de productos textiles"]
[null,null,"¿Cómo se enteró de nosotros?",null,null,null,null,null,null,null,null,null,null,null,null,null,null,null,null,null,null,null,null,null,null,"D172122 Fabricación de encerados, tiendas de campaña, artículos para acampar, velas."]
[null,null,"Anexos:",null,null,null,null,null,null,null,null,null,null,null,null,null,null,null,null,null,null,null,null,null,null,"D172122A Fabricación  de toldos protección Sol, fundas p/ automóviles, máquinas y muebles"]
[null,null,null,null,null,null,null,null,null,null,null,null,null,null,null,null,null,null,null,null,null,null,null,null,null,"D17291 Fabricación de marbetes, insignias de reconocimientos."]
[null,null,null,null,null,null,null,null,null,null,null,null,null,null,null,null,null,null,null,null,null,null,null,null,null,"D18000 Fabricación de prendas de vestir y adobo"]
[null,null,null,null,null,null,null,null,null,null,null,null,null,null,null,null,null,null,null,null,null,null,null,null,null,"D18101 Fabricación de confección de prendas de vestir de cuero o cuero regenerado"]
[null,null,null,null,null,null,null,null,null,null,null,null,null,null,null,null,null,null,null,null,null,null,null,null,null,"D18102 Fabricación de confección de ropa de trabajo (uniformes)"]
[null,null,null,null,null,null,null,null,null,null,null,null,null,null,null,null,null,null,null,null,null,null,null,null,null,"D18103 Confección prendas de vestir de telas tejidas y no tejidas, punto y ganchillo."]
[null,null,"Indique si posee los siguientes Documentos:",null,null,null,null,null,"SI","NO","¿Vigente?","No Aplica",null,null,null,null,null,null,null,null,null,null,null,null,null,"D181031 Fabricación de abrigos, trajes, conjuntos, pantalones, faldas."]
[null,null,"1.1 - Registro Mercantil o Acta Constitutiva y Estatutos Sociales de la empresa.",null,null,null,null,null,null,null,null,null,null,null,null,null,null,null,null,null,null,null,null,null,null,"D181031A Fabricación de camisas, franelas, franelillas, chemises, sweters, chaquetas."]
[null,null,"1.2 - Registro Único de Información Fiscal (RIF)  de la empresa.",null,null,null,null,null,null,null,null,null,null,null,null,null,null,null,null,null,null,null,null,null,null,"D181031B Fabricación de guantes, medias, toallas."]
[null,null,"1.3 - Última reforma al Acta Constitutiva  de  la  empresa.",null,null,null,null,null,null,null,null,null,null,null,null,null,null,null,null,null,null,null,null,null,null,"D18106 Fabricación de sombreros y gorros"]
[null,null,"1.4 - Última Asamblea de Accionistas donde se designen a (los) administrador(es)  y/o  \n         representante(s)  legal( es) de la empresa.",null,null,null,null,null,null,null,null,null,null,null,null,null,null,null,null,null,null,null,null,null,null,"D19000 Fabricacion de calzados, maletas y bolsos"]
[null,null,"1.5 - Constancia de Inscripción en el IVSS (Instituto Venezolano de los Seguros Sociales) - \n         Planilla 14-01.",null,null,null,null,null,null,null,null,null,null,null,null,null,null,null,null,null,null,null,null,null,null,"D19201 Fabricación calzado para todo uso, de cualquier material, de cualquier proceso."]
[null,null,"1.6 - Cédula(s) de identidad del(los)  administrador(es) y/o el representante(s) legal(es) \n        de la empresa.",null,null,null,null,null,null,null,null,null,null,null,null,null,null,null,null,null,null,null,null,null,null,"D19202 Fabricación de botines, polainas y artículos similares"]
[null,null,"1.7 - Documento que faculte a (los) representante(s) legal(es) para comprometer a la empresa,  \n        en la forma que señale el documento constitutivo estatutario. ",null,null,null,null,null,null,null,null,null,null,null,null,null,null,null,null,null,null,null,null,null,null,"D20000 Fabricación de Productos de Madera"]
[null,null,"1.8 - Certificación de cuenta bancaria de la empresa, donde se ejecutarán transferencias \n        bancarias al proveedor.",null,null,null,null,null,null,null,null,null,null,null,null,null,null,null,null,null,null,null,null,null,null,"D20101 Fabricación de aserrado, acepilladura y maquinado de madera"]
[null,null,"1.9 - Última Declaración de Impuesto Sobre la Renta (ISLR) de la empresa.",null,null,null,null,null,null,null,null,null,null,null,null,null,null,null,null,null,null,null,null,null,null,"D20101A Fabricación de Palitos y cucharitas de madera, Chapaforte."]
[null,null,"2.0 - Constancia de Constitución del Comité de SSL de la empresa.",null,null,null,null,null,null,null,null,null,null,null,null,null,null,null,null,null,null,null,null,null,null,"D21000 Fabricación de Productos de Papel"]
[null,null,"2.1 - Conformación del Servicio de Seguridad y Salud en el Trabajo, y datos que identifican \n         a los Delegados de Prevención vigentes de la empresa.",null,null,null,null,null,null,null,null,null,null,null,null,null,null,null,null,null,null,null,null,null,null,"D21021 Fabricación de  papel y cartón ondulado"]
[null,null,"2.2 - Programa de Seguridad y Salud en el Trabajo, Prevención de Accidentes y Enfermedades  \n        de  la  empresa.",null,null,null,null,null,null,null,null,null,null,null,null,null,null,null,null,null,null,null,null,null,null,"D21021A Fabricación de carton: Corrugados, Láminas, Bandejas, Estuches."]
[null,null,"2.3 - Registro SENCAMER  (Servicio Autónomo Nacional de Normalización, Calidad, \n         Metrología y Reglamentos Técnicos).",null,null,null,null,null,null,null,null,null,null,null,null,null,null,null,null,null,null,null,null,null,null,"D21100 Fabricación de  etiquetas, impresas o sin imprimir"]
[null,null,"2.4 - Constancia del registro RACDA (Registro de Actividades Capaces de Degradar el Ambiente).",null,null,null,null,null,null,null,null,null,null,null,null,null,null,null,null,null,null,null,null,null,null,"D21100A Fabricación de Etiquetas plasticas: BOPP, PVC, Termocontraibles, adhesivos"]
[null,null,"2.5 - Constancia del registro del Permiso DAEX (Sustancias Químicas).",null,null,null,null,null,null,null,null,null,null,null,null,null,null,null,null,null,null,null,null,null,null,"D23000 Fabricacion de productos de la refinación de petroleo"]
[null,null,"2.6 - Constancia del registro del Permiso RESQUIMC (Registro Nacional Único de Operadores \n        de Sustancias Químicas Controladas)",null,null,null,null,null,null,null,null,null,null,null,null,null,null,null,null,null,null,null,null,null,null,"D23203 Fabricación aceites o grasas lubricantes a base de petróleo"]
[null,null,"2.7 - Registro Sanitario de la empresa."]
[null,null,"2.8 - Declaración de Origen de Fondos o Procedencia de los Fondos y Vinculación con los PEP (Persona Expuesta Políticamente)",null,null,null,null,null,null,null,null,null,null,null,null,null,null,null,null,null,null,null,null,null,null,"D23203A Fabricación aceites o grasas lubricantes a partir de residuos del petróleo"]
[null,null,null,null,null,null,null,null,null,null,null,null,null,null,null,null,null,null,null,null,null,null,null,null,null,"D24000 Fabricacion de sustancias y productos químicos"]
[null,null,null,null,null,null,null,null,null,null,null,null,null,null,null,null,null,null,null,null,null,null,null,null,null,"D241103 Fabricación de gases refrigerantes"]
[null,null,"Agradecemos su interés por ser potencial proveedor de Empresas Polar",null,null,null,null,null,null,null,null,null,null,null,null,null,null,null,null,null,null,null,null,null,null,"D241104 Fabricación de mezclas de gases industriales"]
[null,null,null,null,null,null,null,null,null,null,null,null,null,null,null,null,null,null,null,null,null,null,null,null,null,"D241105 Fabricación de gases inertes, como dióxido de carbono"]
[null,null,null,null,null,null,null,null,null,null,null,null,null,null,null,null,null,null,null,null,null,null,null,null,null,"D24111 Fabricación de tintes y pigmentos de cualquier origen (básica o concentrado)"]
[null,null,null,null,null,null,null,null,null,null,null,null,null,null,null,null,null,null,null,null,null,null,null,null,null,"D241211 Fabricación de abonos nitrogenados, fosfatados y potásicos puros o complejos"]
[null,null,null,null,null,null,null,null,null,null,null,null,null,null,null,null,null,null,null,null,null,null,null,null,null,"D241212 Fabricación de urea, fosfatos naturales crudos y sales  potasio naturales crudas"]
[null,null,null,null,null,null,null,null,null,null,null,null,null,null,null,null,null,null,null,null,null,null,null,null,null,"D241213 Fabricación de composte"]
[null,null,null,null,null,null,null,null,null,null,null,null,null,null,null,null,null,null,null,null,null,null,null,null,null,"D24122 Fabricación de productos de nitrógeno conexos"]
[null,null,null,null,null,null,null,null,null,null,null,null,null,null,null,null,null,null,null,null,null,null,null,null,null,"D241221 Fabricación de ácido nítrico y ácido sulfamítrico, amoniaco, cloruro amónico"]
[null,null,null,null,null,null,null,null,null,null,null,null,null,null,null,null,null,null,null,null,null,null,null,null,null,"D241221A Fabricación de carbonato amónico, nitritos y nitratos de potasio"]
[null,null,null,null,null,null,null,null,null,null,null,null,null,null,null,null,null,null,null,null,null,null,null,null,null,"D241311 Fabricación de  polímeros, incluso polímeros de etileno, propileno, estireno."]
[null,null,null,null,null,null,null,null,null,null,null,null,null,null,null,null,null,null,null,null,null,null,null,null,null,"D241311A Fabricación de cloruro de vinilo, acetato de vinilo y acrílicos"]
[null,null,null,null,null,null,null,null,null,null,null,null,null,null,null,null,null,null,null,null,null,null,null,null,null,"D241312 Fabricación de  poliamidas"]
[null,null,null,null,null,null,null,null,null,null,null,null,null,null,null,null,null,null,null,null,null,null,null,null,null,"D241313 Fabricación de  resinas fenólicas y epoxídicas y poliuretanos"]
[null,null,null,null,null,null,null,null,null,null,null,null,null,null,null,null,null,null,null,null,null,null,null,null,null,"D241314 Fabricación de  resinas alquídicas y resinas de poliéster y poliéteres"]
[null,null,null,null,null,null,null,null,null,null,null,null,null,null,null,null,null,null,null,null,null,null,null,null,null,"D241315 Fabricación de  siliconas y antiespumantes"]
[null,null,null,null,null,null,null,null,null,null,null,null,null,null,null,null,null,null,null,null,null,null,null,null,null,"D241316 Fabricación de  intercambiadores de iones basados en polímeros"]
[null,null,null,null,null,null,null,null,null,null,null,null,null,null,null,null,null,null,null,null,null,null,null,null,null,"D24211 Fabricación de insecticidas, raticidas, fungicidas, herbicidas"]
[null,null,null,null,null,null,null,null,null,null,null,null,null,null,null,null,null,null,null,null,null,null,null,null,null,"D24212 Fabricación productos antigerminantes, reguladores del crecimiento de plantas"]
[null,null,null,null,null,null,null,null,null,null,null,null,null,null,null,null,null,null,null,null,null,null,null,null,null,"D24213 Fabricación de desinfectantes (de uso agropecuario y de otra índole)"]
[null,null,null,null,null,null,null,null,null,null,null,null,null,null,null,null,null,null,null,null,null,null,null,null,null,"D24214 Fabricación de otros productos químicos de uso agropecuario n.c.p."]
[null,null,null,null,null,null,null,null,null,null,null,null,null,null,null,null,null,null,null,null,null,null,null,null,null,"D24221 Fabricación de  pinturas y barnices, esmaltes o lacas"]
[null,null,null,null,null,null,null,null,null,null,null,null,null,null,null,null,null,null,null,null,null,null,null,null,null,"D24222 Fabricación de  pigmentos y tintes, opacificadores y colores preparados"]
[null,null,null,null,null,null,null,null,null,null,null,null,null,null,null,null,null,null,null,null,null,null,null,null,null,"D24223 Fabricación esmaltes vitrificables y barnices p/ vidriar, y enlucidos cerámicos."]
[null,null,null,null,null,null,null,null,null,null,null,null,null,null,null,null,null,null,null,null,null,null,null,null,null,"D24226 Fabricación de  disolventes y diluyentes compuestos y orgánicos"]
[null,null,null,null,null,null,null,null,null,null,null,null,null,null,null,null,null,null,null,null,null,null,null,null,null,"D24228 Fabricación de  tinta de imprenta"]
[null,null,null,null,null,null,null,null,null,null,null,null,null,null,null,null,null,null,null,null,null,null,null,null,null,"D24241 Fabricación de agentes orgánicos tensoactivos"]
[null,null,null,null,null,null,null,null,null,null,null,null,null,null,null,null,null,null,null,null,null,null,null,null,null,"D24242 Fabricación de jabón"]
[null,null,null,null,null,null,null,null,null,null,null,null,null,null,null,null,null,null,null,null,null,null,null,null,null,"D242461 Fabricación de  preparados para perfumar y desodorizar ambientes"]
[null,null,null,null,null,null,null,null,null,null,null,null,null,null,null,null,null,null,null,null,null,null,null,null,null,"D242462 Fabricación de ceras artificiales y ceras preparadas"]
[null,null,null,null,null,null,null,null,null,null,null,null,null,null,null,null,null,null,null,null,null,null,null,null,null,"D242991 Fabricación de productos químicos: aceites esenciales"]
[null,null,null,null,null,null,null,null,null,null,null,null,null,null,null,null,null,null,null,null,null,null,null,null,null,"D242992 Fabricación de aceites y grasas modificados mediante procesos químicos"]
[null,null,null,null,null,null,null,null,null,null,null,null,null,null,null,null,null,null,null,null,null,null,null,null,null,"D242993 Fabricación gelatina y derivados de la gelatina, colas y preparados adhesivos."]
[null,null,null,null,null,null,null,null,null,null,null,null,null,null,null,null,null,null,null,null,null,null,null,null,null,"D242993A Fabricación de colas y adhesivos preparados a base de caucho"]
[null,null,null,null,null,null,null,null,null,null,null,null,null,null,null,null,null,null,null,null,null,null,null,null,null,"D242994 Fabricación de  polvos y pastas para soldadura blanda, dura y autógenas"]
[null,null,null,null,null,null,null,null,null,null,null,null,null,null,null,null,null,null,null,null,null,null,null,null,null,"D242995 Fabricación de sustancias para el decapado de metales"]
[null,null,null,null,null,null,null,null,null,null,null,null,null,null,null,null,null,null,null,null,null,null,null,null,null,"D242997 Fabricación de carbón activado, aditivos para aceites lubricantes."]
[null,null,null,null,null,null,null,null,null,null,null,null,null,null,null,null,null,null,null,null,null,null,null,null,null,"D242997A Fabricación de preparados para acelerar la vulcanización del caucho."]
[null,null,null,null,null,null,null,null,null,null,null,null,null,null,null,null,null,null,null,null,null,null,null,null,null,"D242997B Fabricación de catalizadores y otros productos químicos de uso industrial"]
[null,null,null,null,null,null,null,null,null,null,null,null,null,null,null,null,null,null,null,null,null,null,null,null,null,"D242998 Fabricación de preparados antidetonantes, preparados anticongelantes"]
[null,null,null,null,null,null,null,null,null,null,null,null,null,null,null,null,null,null,null,null,null,null,null,null,null,"D242999 Fabricación de reactivos compuestos para diagnóstico y de laboratorio"]
[null,null,null,null,null,null,null,null,null,null,null,null,null,null,null,null,null,null,null,null,null,null,null,null,null,"D25000 Fabricacion de productos de caucho"]
[null,null,null,null,null,null,null,null,null,null,null,null,null,null,null,null,null,null,null,null,null,null,null,null,null,"D251910 Fabricación de planchas, láminas, tiras, varillas y perfiles de caucho"]
[null,null,null,null,null,null,null,null,null,null,null,null,null,null,null,null,null,null,null,null,null,null,null,null,null,"D251911 Fabricación de tubos, cañas y mangueras de caucho"]
[null,null,null,null,null,null,null,null,null,null,null,null,null,null,null,null,null,null,null,null,null,null,null,null,null,"D251912 Fabricación de correas y cintas transportadoras y de transmisión de caucho"]
[null,null,null,null,null,null,null,null,null,null,null,null,null,null,null,null,null,null,null,null,null,null,null,null,null,"D252011 Fabricación de planchas, láminas,  de plástico (autoadhesivo o no)"]
[null,null,null,null,null,null,null,null,null,null,null,null,null,null,null,null,null,null,null,null,null,null,null,null,null,"D252011B Fabricación de películas, hojas, tiras de plástico (autoadhesivo o no)"]
[null,null,null,null,null,null,null,null,null,null,null,null,null,null,null,null,null,null,null,null,null,null,null,null,null,"D26000 Fabricacion de Vidrio y sus productos"]
[null,null,null,null,null,null,null,null,null,null,null,null,null,null,null,null,null,null,null,null,null,null,null,null,null,"D26103 Fabricación de  vidrio en varillas o tubos"]
[null,null,null,null,null,null,null,null,null,null,null,null,null,null,null,null,null,null,null,null,null,null,null,null,null,"D26107 Fabricación de  botellas y otros contenedores de vidrio o cristal"]
[null,null,null,null,null,null,null,null,null,null,null,null,null,null,null,null,null,null,null,null,null,null,null,null,null,"D261091 Mantenimiento y reparación piezas construidas en fibra y lana de vidrio"]
[null,null,null,null,null,null,null,null,null,null,null,null,null,null,null,null,null,null,null,null,null,null,null,null,null,"D26942 Fabricación de cal viva, cal apagada y cal hidráulica"]
[null,null,null,null,null,null,null,null,null,null,null,null,null,null,null,null,null,null,null,null,null,null,null,null,null,"D27000 Fabricacion en hierro y acero"]
[null,null,null,null,null,null,null,null,null,null,null,null,null,null,null,null,null,null,null,null,null,null,null,null,null,"D27105 Producción de piezas en ángulos, perfiles y secciones de acero inoxidable"]
[null,null,null,null,null,null,null,null,null,null,null,null,null,null,null,null,null,null,null,null,null,null,null,null,null,"D27105A Producción de piezas en ángulos, perfiles y secciones de tipos de acero aleación"]
[null,null,null,null,null,null,null,null,null,null,null,null,null,null,null,null,null,null,null,null,null,null,null,null,null,"D27106 Producción de barras y varillas de acero inoxidable y  tipos de acero aleación"]
[null,null,null,null,null,null,null,null,null,null,null,null,null,null,null,null,null,null,null,null,null,null,null,null,null,"D27107 Fabricación de productos laminados de hierro o acero sin alear"]
[null,null,null,null,null,null,null,null,null,null,null,null,null,null,null,null,null,null,null,null,null,null,null,null,null,"D27108 Fabricación piezas en ángulos, perfiles y secciones de hierro o acero sin alear"]
[null,null,null,null,null,null,null,null,null,null,null,null,null,null,null,null,null,null,null,null,null,null,null,null,null,"D27109 Fabricación de barras y varillas de hierro y acero sin alear. Tablstacas"]
[null,null,null,null,null,null,null,null,null,null,null,null,null,null,null,null,null,null,null,null,null,null,null,null,null,"D27113 Fabricación tubos sin costura"]
[null,null,null,null,null,null,null,null,null,null,null,null,null,null,null,null,null,null,null,null,null,null,null,null,null,"D27113A Fabricación de tubos sin costura mediante laminación o estirado en frío"]
[null,null,null,null,null,null,null,null,null,null,null,null,null,null,null,null,null,null,null,null,null,null,null,null,null,"D27114 Fabricación de tubos soldados conformación en frío o caliente y soldadura,"]
[null,null,null,null,null,null,null,null,null,null,null,null,null,null,null,null,null,null,null,null,null,null,null,null,null,"D27114A Fabricación de tubos conformación y estirado en frío."]
[null,null,null,null,null,null,null,null,null,null,null,null,null,null,null,null,null,null,null,null,null,null,null,null,null,"D27114B Fabricación de tubos conformación en caliente y reducción"]
[null,null,null,null,null,null,null,null,null,null,null,null,null,null,null,null,null,null,null,null,null,null,null,null,null,"D271151 Fabricación de conexiones de brida planas"]
[null,null,null,null,null,null,null,null,null,null,null,null,null,null,null,null,null,null,null,null,null,null,null,null,null,"D271151A Fabricación de conexiones de brida con collares de acero de forja"]
[null,null,null,null,null,null,null,null,null,null,null,null,null,null,null,null,null,null,null,null,null,null,null,null,null,"D271152 Fabricación de conexiones de soldadura a tope de acero"]
[null,null,null,null,null,null,null,null,null,null,null,null,null,null,null,null,null,null,null,null,null,null,null,null,null,"D271153 Fabricación de conexiones roscadas y otras conexiones de acero"]
[null,null,null,null,null,null,null,null,null,null,null,null,null,null,null,null,null,null,null,null,null,null,null,null,null,"D28000 Fabricacion estructural, tanques, depositos en metal"]
[null,null,null,null,null,null,null,null,null,null,null,null,null,null,null,null,null,null,null,null,null,null,null,null,null,"D28111 Fabricación marcos o armazones metal torres, mástiles, armaduras, puentes"]
[null,null,null,null,null,null,null,null,null,null,null,null,null,null,null,null,null,null,null,null,null,null,null,null,null,"D28112 Fabricación altos hornos, equipo levantamiento y manipulación"]
[null,null,null,null,null,null,null,null,null,null,null,null,null,null,null,null,null,null,null,null,null,null,null,null,null,"D28114 Fabricación de puertas y ventanas de metal y sus marcos, postigos y portales"]
[null,null,null,null,null,null,null,null,null,null,null,null,null,null,null,null,null,null,null,null,null,null,null,null,null,"D281231 Mantenimiento de calderas y radiadores para calefacción central"]
[null,null,null,null,null,null,null,null,null,null,null,null,null,null,null,null,null,null,null,null,null,null,null,null,null,"D28900 Fabricacion en metales no hierro"]
[null,null,null,null,null,null,null,null,null,null,null,null,null,null,null,null,null,null,null,null,null,null,null,null,null,"D28911 Forja, prensado, estampado y laminado de metales"]
[null,null,null,null,null,null,null,null,null,null,null,null,null,null,null,null,null,null,null,null,null,null,null,null,null,"D28927 Taladrado, torneado, fresado, erosión, alisado, lapidado,  de piezas de metal"]
[null,null,null,null,null,null,null,null,null,null,null,null,null,null,null,null,null,null,null,null,null,null,null,null,null,"D28927A Aplanado, brochado, aserrado, esmerilado, afilado, pulimento, de piezas de metal"]
[null,null,null,null,null,null,null,null,null,null,null,null,null,null,null,null,null,null,null,null,null,null,null,null,null,"D28927B Soldadura, empalme, de piezas de metal"]
[null,null,null,null,null,null,null,null,null,null,null,null,null,null,null,null,null,null,null,null,null,null,null,null,null,"D28991 Fabricación de  barriles (no de acero), latas, tambores, cubos, cajas"]
[null,null,null,null,null,null,null,null,null,null,null,null,null,null,null,null,null,null,null,null,null,null,null,null,null,"D28994 Fabricación de  cables de metal, trenzas y artículos similares"]
[null,null,null,null,null,null,null,null,null,null,null,null,null,null,null,null,null,null,null,null,null,null,null,null,null,"D29000 Fabricacion de maquinarias"]
[null,null,null,null,null,null,null,null,null,null,null,null,null,null,null,null,null,null,null,null,null,null,null,null,null,"D291121 Fabricación de turbinas de vapor de agua y de otros tipos de vapor"]
[null,null,null,null,null,null,null,null,null,null,null,null,null,null,null,null,null,null,null,null,null,null,null,null,null,"D291122 Fabricación  turbinas hidráulicas, ruedas hidráulicas y maquinaria p/ regulación"]
[null,null,null,null,null,null,null,null,null,null,null,null,null,null,null,null,null,null,null,null,null,null,null,null,null,"D291124 Fabricación de turbinas de gas distintas de los turbupropulsores de reacción"]
[null,null,null,null,null,null,null,null,null,null,null,null,null,null,null,null,null,null,null,null,null,null,null,null,null,"D291124A Fabricación de hélice para la propulsión de aeronaves"]
[null,null,null,null,null,null,null,null,null,null,null,null,null,null,null,null,null,null,null,null,null,null,null,null,null,"D29121 Fabricación de  bombas de aire y de vacío,"]
[null,null,null,null,null,null,null,null,null,null,null,null,null,null,null,null,null,null,null,null,null,null,null,null,null,"D29121A Fabricación de compresores de aire y otros compresores de gas"]
[null,null,null,null,null,null,null,null,null,null,null,null,null,null,null,null,null,null,null,null,null,null,null,null,null,"D29122 Fabricación de bombas para líquidos, tengan o no dispositivos de medición"]
[null,null,null,null,null,null,null,null,null,null,null,null,null,null,null,null,null,null,null,null,null,null,null,null,null,"D291221 Mantenimiento de bombas para líquidos, tengan o no dispositivos de medición"]
[null,null,null,null,null,null,null,null,null,null,null,null,null,null,null,null,null,null,null,null,null,null,null,null,null,"D29123 Fabricación de bombas para motores de combustión interna."]
[null,null,null,null,null,null,null,null,null,null,null,null,null,null,null,null,null,null,null,null,null,null,null,null,null,"D29123A Fabricación de  bombas de aceite, agua y combustible para vehículos automotores"]
[null,null,null,null,null,null,null,null,null,null,null,null,null,null,null,null,null,null,null,null,null,null,null,null,null,"D29124 Fabricación de equipo propulsor de fluidos y motores neumáticos"]
[null,null,null,null,null,null,null,null,null,null,null,null,null,null,null,null,null,null,null,null,null,null,null,null,null,"D29125 Fabricación de grifos y válvulas industriales."]
[null,null,null,null,null,null,null,null,null,null,null,null,null,null,null,null,null,null,null,null,null,null,null,null,null,"D29125A Fabricación de válvulas de regulación y grifos de admisión"]
[null,null,null,null,null,null,null,null,null,null,null,null,null,null,null,null,null,null,null,null,null,null,null,null,null,"D29126 Fabricación de grifos y válvulas sanitarios"]
[null,null,null,null,null,null,null,null,null,null,null,null,null,null,null,null,null,null,null,null,null,null,null,null,null,"D29127 Fabricación de grifos y válvulas de calefacción"]
[null,null,null,null,null,null,null,null,null,null,null,null,null,null,null,null,null,null,null,null,null,null,null,null,null,"D29128 Fabricación de bombas manuales"]
[null,null,null,null,null,null,null,null,null,null,null,null,null,null,null,null,null,null,null,null,null,null,null,null,null,"D29131 Fabricación de  cojinetes de bola y de rodillo y de partes de cojinetes"]
[null,null,null,null,null,null,null,null,null,null,null,null,null,null,null,null,null,null,null,null,null,null,null,null,null,"D291321 Fabricación ejes y manivelas transmisión: ejes de levas, cigüeñales, manivelas."]
[null,null,null,null,null,null,null,null,null,null,null,null,null,null,null,null,null,null,null,null,null,null,null,null,null,"D291322 Fabricación de cajas de cojinetes y cojinetes simples para ejes"]
[null,null,null,null,null,null,null,null,null,null,null,null,null,null,null,null,null,null,null,null,null,null,null,null,null,"D29133 Fabricación engranajes, trenes y cajas de engranajes"]
[null,null,null,null,null,null,null,null,null,null,null,null,null,null,null,null,null,null,null,null,null,null,null,null,null,"D29134 Fabricación de embragues y acoplamiento de ejes"]
[null,null,null,null,null,null,null,null,null,null,null,null,null,null,null,null,null,null,null,null,null,null,null,null,null,"D29135 Fabricación de volantes y poleas"]
[null,null,null,null,null,null,null,null,null,null,null,null,null,null,null,null,null,null,null,null,null,null,null,null,null,"D29136 Fabricación de cadenas de eslabones articulados"]
[null,null,null,null,null,null,null,null,null,null,null,null,null,null,null,null,null,null,null,null,null,null,null,null,null,"D29137 Fabricación de cadenas de transmisión de potencia"]
[null,null,null,null,null,null,null,null,null,null,null,null,null,null,null,null,null,null,null,null,null,null,null,null,null,"D29138 Fabricación de equipo de transmisión hidráulica"]
[null,null,null,null,null,null,null,null,null,null,null,null,null,null,null,null,null,null,null,null,null,null,null,null,null,"D291514 Mantenimiento maquinaria elevación, manipulación, carga o descarga"]
[null,null,null,null,null,null,null,null,null,null,null,null,null,null,null,null,null,null,null,null,null,null,null,null,null,"D29155 Mantenimiento de ascensores y escaleras mecánicas"]
[null,null,null,null,null,null,null,null,null,null,null,null,null,null,null,null,null,null,null,null,null,null,null,null,null,"D29191 Fabricación de equipo de refrigeración y congelación de uso industrial"]
[null,null,null,null,null,null,null,null,null,null,null,null,null,null,null,null,null,null,null,null,null,null,null,null,null,"D291921 Mantenimiento aparatos acondicionamiento de aire, incluso p/vehículo automotor"]
[null,null,null,null,null,null,null,null,null,null,null,null,null,null,null,null,null,null,null,null,null,null,null,null,null,"D29194 Fabricación de básculas y balanzas"]
[null,null,null,null,null,null,null,null,null,null,null,null,null,null,null,null,null,null,null,null,null,null,null,null,null,"D291941 Fabricación de balanzas de uso doméstico y comercial, balanzas de plataforma"]
[null,null,null,null,null,null,null,null,null,null,null,null,null,null,null,null,null,null,null,null,null,null,null,null,null,"D291941A Fabricación de balanzas de pesada continua, básculas para vehículos, pesas."]
[null,null,null,null,null,null,null,null,null,null,null,null,null,null,null,null,null,null,null,null,null,null,null,null,null,"D291942 Mantenimiento de balanzas de uso doméstico y comercial, de plataforma."]
[null,null,null,null,null,null,null,null,null,null,null,null,null,null,null,null,null,null,null,null,null,null,null,null,null,"D29195 Fabricación de máquinas y aparatos de filtración y depuración para líquidos"]
[null,null,null,null,null,null,null,null,null,null,null,null,null,null,null,null,null,null,null,null,null,null,null,null,null,"D291961 Fabricación máquinas de limpieza mediante arena a presión, de limpieza a vapor."]
[null,null,null,null,null,null,null,null,null,null,null,null,null,null,null,null,null,null,null,null,null,null,null,null,null,"D291961A Fabricación de pistolas aspersoras, extintores de incendios."]
[null,null,null,null,null,null,null,null,null,null,null,null,null,null,null,null,null,null,null,null,null,null,null,null,null,"D291971 Fabricación de máquinas para llenar, cerrar, sellar, encapsular, etiquetar"]
[null,null,null,null,null,null,null,null,null,null,null,null,null,null,null,null,null,null,null,null,null,null,null,null,null,"D29198 Fabricación de maquinaria para limpiar y secar botellas y otros recipientes"]
[null,null,null,null,null,null,null,null,null,null,null,null,null,null,null,null,null,null,null,null,null,null,null,null,null,"D29198A Fabricación de maquinaria para la aireación de bebidas"]
[null,null,null,null,null,null,null,null,null,null,null,null,null,null,null,null,null,null,null,null,null,null,null,null,null,"D29200 Fabricación de intercambiadores de calor"]
[null,null,null,null,null,null,null,null,null,null,null,null,null,null,null,null,null,null,null,null,null,null,null,null,null,"D29208 Mantenimiento mecánico en genenral de maquinas industriales"]
[null,null,null,null,null,null,null,null,null,null,null,null,null,null,null,null,null,null,null,null,null,null,null,null,null,"D29209 Mantenimiento eléctrico en genenral de maquinas industriales"]
[null,null,null,null,null,null,null,null,null,null,null,null,null,null,null,null,null,null,null,null,null,null,null,null,null,"D29215 Fabricación de máquinas utilizadas en la agricultura para preparar los suelos."]
[null,null,null,null,null,null,null,null,null,null,null,null,null,null,null,null,null,null,null,null,null,null,null,null,null,"D29215A Fabricación de máquinas utilizadas en la agricultura plantar o abonar."]
[null,null,null,null,null,null,null,null,null,null,null,null,null,null,null,null,null,null,null,null,null,null,null,null,null,"D292161 Fabricación de máquinas cosechadoras, trilladoras, cribadoras"]
[null,null,null,null,null,null,null,null,null,null,null,null,null,null,null,null,null,null,null,null,null,null,null,null,null,"D29230 Reparación de maquinas herramientas"]
[null,null,null,null,null,null,null,null,null,null,null,null,null,null,null,null,null,null,null,null,null,null,null,null,null,"D292531 Fabricación máquinas aventadoras, cintas cribadoras, separadores, acepilladoras."]
[null,null,null,null,null,null,null,null,null,null,null,null,null,null,null,null,null,null,null,null,null,null,null,null,null,"D292532 Fabricación de máquinas trituradoras, alimentadoras, cribadoras, mezcladoras."]
[null,null,null,null,null,null,null,null,null,null,null,null,null,null,null,null,null,null,null,null,null,null,null,null,null,"D292532A Fabricación de máquinas depuradoras de afrecho, descascarilladoras de arroz."]
[null,null,null,null,null,null,null,null,null,null,null,null,null,null,null,null,null,null,null,null,null,null,null,null,null,"D292532B Fabricación de máquinas partidoras de guisantes."]
[null,null,null,null,null,null,null,null,null,null,null,null,null,null,null,null,null,null,null,null,null,null,null,null,null,"D29254 Fabricación de prensas, trituradoras (Elaboración: vino, sidra, jugos de frutas)"]
[null,null,null,null,null,null,null,null,null,null,null,null,null,null,null,null,null,null,null,null,null,null,null,null,null,"D29255 Fabricación de maquinarias p/ uso panadería, p/ preparar macarron y espaguetis."]
[null,null,null,null,null,null,null,null,null,null,null,null,null,null,null,null,null,null,null,null,null,null,null,null,null,"D292561 Fabricación de máquinas y equipo de elaboración de cacao, chocolate, confitería."]
[null,null,null,null,null,null,null,null,null,null,null,null,null,null,null,null,null,null,null,null,null,null,null,null,null,"D292561A Fabricación de máquinas y equipo de elaboración de azúcar; para la cervecería"]
[null,null,null,null,null,null,null,null,null,null,null,null,null,null,null,null,null,null,null,null,null,null,null,null,null,"D292562 Fabricación de maquinaria para filtrar y depurar"]
[null,null,null,null,null,null,null,null,null,null,null,null,null,null,null,null,null,null,null,null,null,null,null,null,null,"D292563 Otras maquinarias de preparación y elaboración industrial de alimentos y bebidas"]
[null,null,null,null,null,null,null,null,null,null,null,null,null,null,null,null,null,null,null,null,null,null,null,null,null,"D29257 Fabricación maquinas extracción/preparación grasas/aceites animales o vegetales"]
[null,null,null,null,null,null,null,null,null,null,null,null,null,null,null,null,null,null,null,null,null,null,null,null,null,"D29300 Fabricacion de aparatos domesticos"]
[null,null,null,null,null,null,null,null,null,null,null,null,null,null,null,null,null,null,null,null,null,null,null,null,null,"D293011 Fabricación aparatos eléctricos de uso doméstico refrigeradores y congeladores"]
[null,null,null,null,null,null,null,null,null,null,null,null,null,null,null,null,null,null,null,null,null,null,null,null,null,"D293011A Fabricación aparatos eléctricos lavaplatos, lavadoras y secadoras, aspiradoras"]
[null,null,null,null,null,null,null,null,null,null,null,null,null,null,null,null,null,null,null,null,null,null,null,null,null,"D293011B Fabricación aparatos eléctricos encerador de pisos, eliminador de desperdicios"]
[null,null,null,null,null,null,null,null,null,null,null,null,null,null,null,null,null,null,null,null,null,null,null,null,null,"D293011C Fabricación aparatos eléctricos moledoras, licuadoras, exprimidoras, abrelatas"]
[null,null,null,null,null,null,null,null,null,null,null,null,null,null,null,null,null,null,null,null,null,null,null,null,null,"D293012 Mantenimiento de refrigeradores y congeladores, lavaplatos, lavadoras y secadora"]
[null,null,null,null,null,null,null,null,null,null,null,null,null,null,null,null,null,null,null,null,null,null,null,null,null,"D293012A Mantenimiento de enceradoras de pisos, eliminadoras de desperdicios."]
[null,null,null,null,null,null,null,null,null,null,null,null,null,null,null,null,null,null,null,null,null,null,null,null,null,"D293012B Mantenimiento de moledoras, licuadoras, exprimidoras, abrelatas"]
[null,null,null,null,null,null,null,null,null,null,null,null,null,null,null,null,null,null,null,null,null,null,null,null,null,"D293032 Instalación de equipos de cocina"]
[null,null,null,null,null,null,null,null,null,null,null,null,null,null,null,null,null,null,null,null,null,null,null,null,null,"D30000 Fabricacion maquinas oficina"]
[null,null,null,null,null,null,null,null,null,null,null,null,null,null,null,null,null,null,null,null,null,null,null,null,null,"D300081 Máquinas expendedoras automáticas de billetes de banco; máquinas de ensobrar"]
[null,null,null,null,null,null,null,null,null,null,null,null,null,null,null,null,null,null,null,null,null,null,null,null,null,"D300081A Máquinas  perforadoras, engrapadoras y máquinas sacapuntas"]
[null,null,null,null,null,null,null,null,null,null,null,null,null,null,null,null,null,null,null,null,null,null,null,null,null,"D300081B Máquinas: clasificar, empaquetar y contar moneda, clasificadoras correspondencia"]
[null,null,null,null,null,null,null,null,null,null,null,null,null,null,null,null,null,null,null,null,null,null,null,null,null,"D31000 Fabricacion motores, generadores y transformadores"]
[null,null,null,null,null,null,null,null,null,null,null,null,null,null,null,null,null,null,null,null,null,null,null,null,null,"D31101 Fabricación de motores y generadores de corriente alterna"]
[null,null,null,null,null,null,null,null,null,null,null,null,null,null,null,null,null,null,null,null,null,null,null,null,null,"D31102 Fabricación de motores y generadores de corriente continua"]
[null,null,null,null,null,null,null,null,null,null,null,null,null,null,null,null,null,null,null,null,null,null,null,null,null,"D31103 Fabricación de motores universales de corriente alterna y corriente continua"]
[null,null,null,null,null,null,null,null,null,null,null,null,null,null,null,null,null,null,null,null,null,null,null,null,null,"D31104 Fabricación de grupos electrógenos p/ generación de C. alterna y C. continua"]
[null,null,null,null,null,null,null,null,null,null,null,null,null,null,null,null,null,null,null,null,null,null,null,null,null,"D31105 Fabricación de convertidores eléctricos rotatorios y estáticos"]
[null,null,null,null,null,null,null,null,null,null,null,null,null,null,null,null,null,null,null,null,null,null,null,null,null,"D31106 Fabricación de transformadores eléctricos"]
[null,null,null,null,null,null,null,null,null,null,null,null,null,null,null,null,null,null,null,null,null,null,null,null,null,"D31107 Mantenimiento y rebobinado de motores eléctricos"]
[null,null,null,null,null,null,null,null,null,null,null,null,null,null,null,null,null,null,null,null,null,null,null,null,null,"D31200 Fabricación aparatos distribución y control de energía eléctrica"]
[null,null,null,null,null,null,null,null,null,null,null,null,null,null,null,null,null,null,null,null,null,null,null,null,null,"D312011 Fabricación  aparatos eléctricos: conmutadores, fusibles, pararrayos, enchufes."]
[null,null,null,null,null,null,null,null,null,null,null,null,null,null,null,null,null,null,null,null,null,null,null,null,null,"D312011A Fabricación aparatos eléctricos: reguladores de tensión, relés, portalámparas."]
[null,null,null,null,null,null,null,null,null,null,null,null,null,null,null,null,null,null,null,null,null,null,null,null,null,"D312011B Fabricación de aparatos eléctricos: cajas de empalme, limitadores sobretensión."]
[null,null,null,null,null,null,null,null,null,null,null,null,null,null,null,null,null,null,null,null,null,null,null,null,null,"D312011C Fabricación de aparatos eléctricos: tomas de corriente."]
[null,null,null,null,null,null,null,null,null,null,null,null,null,null,null,null,null,null,null,null,null,null,null,null,null,"D31202 Fabricación de tableros, paneles, consolas, mesas, cajas."]
[null,null,null,null,null,null,null,null,null,null,null,null,null,null,null,null,null,null,null,null,null,null,null,null,null,"D31202A Fabricación de bases para el control y la distribución de la energía eléctrica"]
[null,null,null,null,null,null,null,null,null,null,null,null,null,null,null,null,null,null,null,null,null,null,null,null,null,"D31203 Fabricación de tableros y paneles equipados con aparatos"]
[null,null,null,null,null,null,null,null,null,null,null,null,null,null,null,null,null,null,null,null,null,null,null,null,null,"D31500 Fabricación lámparas eléctricas y equipo iluminación"]
[null,null,null,null,null,null,null,null,null,null,null,null,null,null,null,null,null,null,null,null,null,null,null,null,null,"D315021 Fabricación lámparas eléctricas y no eléctricas techo, mesa, escritorio o pie."]
[null,null,null,null,null,null,null,null,null,null,null,null,null,null,null,null,null,null,null,null,null,null,null,null,null,"D315022 Fabricación de lámparas eléctricas portátiles"]
[null,null,null,null,null,null,null,null,null,null,null,null,null,null,null,null,null,null,null,null,null,null,null,null,null,"D315024 Fabricación de equipo de iluminación de exterior y de carretera"]
[null,null,null,null,null,null,null,null,null,null,null,null,null,null,null,null,null,null,null,null,null,null,null,null,null,"D31900 Fabricación cerco eléctrico"]
[null,null,null,null,null,null,null,null,null,null,null,null,null,null,null,null,null,null,null,null,null,null,null,null,null,"D319132 Fabricación, instalación y/o mantenimiento de cerco eléctrico"]
[null,null,null,null,null,null,null,null,null,null,null,null,null,null,null,null,null,null,null,null,null,null,null,null,null,"D32000 Fabricación tubos y válvulas electrónicos y otros componentes electrónicos"]
[null,null,null,null,null,null,null,null,null,null,null,null,null,null,null,null,null,null,null,null,null,null,null,null,null,"D321011 Fabricación tubos de imagen para receptores de televisión, tubos de microondas."]
[null,null,null,null,null,null,null,null,null,null,null,null,null,null,null,null,null,null,null,null,null,null,null,null,null,"D321011A Fabricación de tubos para cámaras de televisión."]
[null,null,null,null,null,null,null,null,null,null,null,null,null,null,null,null,null,null,null,null,null,null,null,null,null,"D321011B Fabricación de convertidores  e ntensificadores de imagen."]
[null,null,null,null,null,null,null,null,null,null,null,null,null,null,null,null,null,null,null,null,null,null,null,null,null,"D321011C Fabricación de tubos y válvulas receptores y amplificadores"]
[null,null,null,null,null,null,null,null,null,null,null,null,null,null,null,null,null,null,null,null,null,null,null,null,null,"D32102 Fabricación de diodos, transistores y dispositivos semiconductores similares"]
[null,null,null,null,null,null,null,null,null,null,null,null,null,null,null,null,null,null,null,null,null,null,null,null,null,"D32103 Fabricación dispositivos semiconductores fotosensibles, células fotovoltaicas."]
[null,null,null,null,null,null,null,null,null,null,null,null,null,null,null,null,null,null,null,null,null,null,null,null,null,"D32103A Fabricación de células solares"]
[null,null,null,null,null,null,null,null,null,null,null,null,null,null,null,null,null,null,null,null,null,null,null,null,null,"D32104 Fabricación de cristales piezoeléctricos montados"]
[null,null,null,null,null,null,null,null,null,null,null,null,null,null,null,null,null,null,null,null,null,null,null,null,null,"D321051 Fabricación de circuitos integrados monolíticos, circuitos integrados híbridos."]
[null,null,null,null,null,null,null,null,null,null,null,null,null,null,null,null,null,null,null,null,null,null,null,null,null,"D321051A Fabricación de microensambladuras electrónicas de módulo moldeado y micromódulo"]
[null,null,null,null,null,null,null,null,null,null,null,null,null,null,null,null,null,null,null,null,null,null,null,null,null,"D32106 Fabricación de tableros de circuitos impresos y tableros sin imprimir"]
[null,null,null,null,null,null,null,null,null,null,null,null,null,null,null,null,null,null,null,null,null,null,null,null,null,"D32107 Fabricación de condensadores eléctricos, incluso condensadores de energía"]
[null,null,null,null,null,null,null,null,null,null,null,null,null,null,null,null,null,null,null,null,null,null,null,null,null,"D32108 Fabricación de resistores, incluso reóstatos y potenciómetros"]
[null,null,null,null,null,null,null,null,null,null,null,null,null,null,null,null,null,null,null,null,null,null,null,null,null,"D32109 Fabricación de componentes electrónicos p/ circuitos impresos, sin transformador"]
[null,null,null,null,null,null,null,null,null,null,null,null,null,null,null,null,null,null,null,null,null,null,null,null,null,"D32110 Fabricación de dispositivos de visualización en cristal líquido"]
[null,null,null,null,null,null,null,null,null,null,null,null,null,null,null,null,null,null,null,null,null,null,null,null,null,"D32111 Mantenimiento y reparación de equipos electronicos industriales"]
[null,null,null,null,null,null,null,null,null,null,null,null,null,null,null,null,null,null,null,null,null,null,null,null,null,"D33000 Fabricación instrumentos medir verificar, ensayar, navegar y otros fines"]
[null,null,null,null,null,null,null,null,null,null,null,null,null,null,null,null,null,null,null,null,null,null,null,null,null,"D331201 Fabricación de jalones y cintas graduadas, micrómetros, calibradores y calibres"]
[null,null,null,null,null,null,null,null,null,null,null,null,null,null,null,null,null,null,null,null,null,null,null,null,null,"D33121 Fabricación microscopios, excepto microscopios ópticos y aparatos de difracción"]
[null,null,null,null,null,null,null,null,null,null,null,null,null,null,null,null,null,null,null,null,null,null,null,null,null,"D331211 Mantenimiento microscopios, excepto microscopios ópticos y aparatos difracción."]
[null,null,null,null,null,null,null,null,null,null,null,null,null,null,null,null,null,null,null,null,null,null,null,null,null,"D331211A Fabricacion de balanzas de presicion del tipo utilizado en laboratorios"]
[null,null,null,null,null,null,null,null,null,null,null,null,null,null,null,null,null,null,null,null,null,null,null,null,null,"D331221 Fabricación de osciloscopios, espectroscopios, diafonómetros."]
[null,null,null,null,null,null,null,null,null,null,null,null,null,null,null,null,null,null,null,null,null,null,null,null,null,"D331221A Fabricación de instrumentos para verificar corriente,  voltaje y resistencia."]
[null,null,null,null,null,null,null,null,null,null,null,null,null,null,null,null,null,null,null,null,null,null,null,null,null,"D331231 Fabricación de aparatos detectores y contadores de radiaciones"]
[null,null,null,null,null,null,null,null,null,null,null,null,null,null,null,null,null,null,null,null,null,null,null,null,null,"D331231A Fabricación de aparatos para ensayar y regular ores de vehículos"]
[null,null,null,null,null,null,null,null,null,null,null,null,null,null,null,null,null,null,null,null,null,null,null,null,null,"D331241 Fabricación de instrumentos de agrimensura, de oceanografía y de hidrología."]
[null,null,null,null,null,null,null,null,null,null,null,null,null,null,null,null,null,null,null,null,null,null,null,null,null,"D331241A Fabricación de sismómetros, telémetros, pilotos automáticos."]
[null,null,null,null,null,null,null,null,null,null,null,null,null,null,null,null,null,null,null,null,null,null,null,null,null,"D331241B Fabricación de sextantes, sondas ultrasónicas."]
[null,null,null,null,null,null,null,null,null,null,null,null,null,null,null,null,null,null,null,null,null,null,null,null,null,"D331242 Fabricación de instrumentos y sistemas p/ navegación aérea, aparatos de radar"]
[null,null,null,null,null,null,null,null,null,null,null,null,null,null,null,null,null,null,null,null,null,null,null,null,null,"D331242A Fabricación de aparatos auxiliares para radionavegación"]
[null,null,null,null,null,null,null,null,null,null,null,null,null,null,null,null,null,null,null,null,null,null,null,null,null,"D33125 Fabricación de contadores consumo de electricidad, agua, gas, gasolina."]
[null,null,null,null,null,null,null,null,null,null,null,null,null,null,null,null,null,null,null,null,null,null,null,null,null,"D33126 Fabricación de instrumentos y aparatos p/ análisis físicos o químicos."]
[null,null,null,null,null,null,null,null,null,null,null,null,null,null,null,null,null,null,null,null,null,null,null,null,null,"D331261 Fabricación de polarímetros, fotómetros, refractómetros, colorímetros."]
[null,null,null,null,null,null,null,null,null,null,null,null,null,null,null,null,null,null,null,null,null,null,null,null,null,"D331261A Fabricación de espectrómetros,  idores del pH, viscosímetros."]
[null,null,null,null,null,null,null,null,null,null,null,null,null,null,null,null,null,null,null,null,null,null,null,null,null,"D331261B Fabricación de  instrumentos para medir la tensión superficial."]
[null,null,null,null,null,null,null,null,null,null,null,null,null,null,null,null,null,null,null,null,null,null,null,null,null,"D331271 Fabricación medidores de flujo, indicadores de nivel, manómetros, calorímetros"]
[null,null,null,null,null,null,null,null,null,null,null,null,null,null,null,null,null,null,null,null,null,null,null,null,null,"D331281 Fabricación de hidrómetros, termómetros, barómetros, cuentarrevoluciones"]
[null,null,null,null,null,null,null,null,null,null,null,null,null,null,null,null,null,null,null,null,null,null,null,null,null,"D331281A Fabricación de cuentarrevoluciones, taxímetros, podómetros, tacómetros, balanzas"]
[null,null,null,null,null,null,null,null,null,null,null,null,null,null,null,null,null,null,null,null,null,null,null,null,null,"D331281B Fabricación de bancos de prueba, comparadores"]
[null,null,null,null,null,null,null,null,null,null,null,null,null,null,null,null,null,null,null,null,null,null,null,null,null,"D331291 Fabricación de termostatos, reguladores de presión, reguladores de humedad"]
[null,null,null,null,null,null,null,null,null,null,null,null,null,null,null,null,null,null,null,null,null,null,null,null,null,"D331292 Fabricación de reguladores de magnitudes eléctricas"]
[null,null,null,null,null,null,null,null,null,null,null,null,null,null,null,null,null,null,null,null,null,null,null,null,null,"D33131 Fabricación instrumento y aparatos p/ medición y regulación constante/automática"]
[null,null,null,null,null,null,null,null,null,null,null,null,null,null,null,null,null,null,null,null,null,null,null,null,null,"D34000 Blindaje de Vehiculos"]
[null,null,null,null,null,null,null,null,null,null,null,null,null,null,null,null,null,null,null,null,null,null,null,null,null,"D34106 Blindaje de Vehiculos"]
[null,null,null,null,null,null,null,null,null,null,null,null,null,null,null,null,null,null,null,null,null,null,null,null,null,"D35000 Mantenimiento aeronaves y sus motores"]
[null,null,null,null,null,null,null,null,null,null,null,null,null,null,null,null,null,null,null,null,null,null,null,null,null,"D35309 Mantenimiento, reparación y modificación de aeronaves y motores de aeronaves"]
[null,null,null,null,null,null,null,null,null,null,null,null,null,null,null,null,null,null,null,null,null,null,null,null,null,"D36000 Fabricación de artículos de deporte"]
[null,null,null,null,null,null,null,null,null,null,null,null,null,null,null,null,null,null,null,null,null,null,null,null,null,"D369310 Fabricación de balones duros, blandos e inflables"]
[null,null,null,null,null,null,null,null,null,null,null,null,null,null,null,null,null,null,null,null,null,null,null,null,null,"D369319 Fabricación de equipo de gimnasio y equipo de atletismo"]
[null,null,null,null,null,null,null,null,null,null,null,null,null,null,null,null,null,null,null,null,null,null,null,null,null,"D36900 Fabricación de juegos y juguetes"]
[null,null,null,null,null,null,null,null,null,null,null,null,null,null,null,null,null,null,null,null,null,null,null,null,null,"D36940 Fabricación de muñecos y ropa y accesorios para muñecos"]
[null,null,null,null,null,null,null,null,null,null,null,null,null,null,null,null,null,null,null,null,null,null,null,null,null,"D36941 Fabricación de animales de juguete"]
[null,null,null,null,null,null,null,null,null,null,null,null,null,null,null,null,null,null,null,null,null,null,null,null,null,"D36942 Fabricación de juguetes de montar con ruedas, incluso triciclos"]
[null,null,null,null,null,null,null,null,null,null,null,null,null,null,null,null,null,null,null,null,null,null,null,null,null,"D36943 Fabricación de instrumentos de música de juguete"]
[null,null,null,null,null,null,null,null,null,null,null,null,null,null,null,null,null,null,null,null,null,null,null,null,null,"D36944 Fabricación de artículos para juegos de feria, de mesa, y de salón"]
[null,null,null,null,null,null,null,null,null,null,null,null,null,null,null,null,null,null,null,null,null,null,null,null,null,"D36945 Fabricación de naipes"]
[null,null,null,null,null,null,null,null,null,null,null,null,null,null,null,null,null,null,null,null,null,null,null,null,null,"D36946 Fabricación de mesas de pinball, juegos accionados por monedas, mesas de billar"]
[null,null,null,null,null,null,null,null,null,null,null,null,null,null,null,null,null,null,null,null,null,null,null,null,null,"D36946A Fabricación mesas especiales p/ juegos de casino, equipo automático p/ boleras."]
[null,null,null,null,null,null,null,null,null,null,null,null,null,null,null,null,null,null,null,null,null,null,null,null,null,"D36947 Fabricación de juegos electrónicos: consolas de videojuegos, ajedrez,"]
[null,null,null,null,null,null,null,null,null,null,null,null,null,null,null,null,null,null,null,null,null,null,null,null,null,"D36948 Fabricación de modelos a escala reducida y modelos recreativos similares,"]
[null,null,null,null,null,null,null,null,null,null,null,null,null,null,null,null,null,null,null,null,null,null,null,null,null,"D36948A Fabricación de trenes eléctricos, juegos de construcción"]
[null,null,null,null,null,null,null,null,null,null,null,null,null,null,null,null,null,null,null,null,null,null,null,null,null,"D36949 Fabricación de rompecabezas"]
[null,null,null,null,null,null,null,null,null,null,null,null,null,null,null,null,null,null,null,null,null,null,null,null,null,"D36990 Otras industrias manufactureras"]
[null,null,null,null,null,null,null,null,null,null,null,null,null,null,null,null,null,null,null,null,null,null,null,null,null,"D369901 Fabricación escobas y cepillos, incluso cepillos que forman parte de máquinas."]
[null,null,null,null,null,null,null,null,null,null,null,null,null,null,null,null,null,null,null,null,null,null,null,null,null,"D36990A Fabricación de barredoras mecánicas manuales, mopas y plumeros, escobas, mopas."]
[null,null,null,null,null,null,null,null,null,null,null,null,null,null,null,null,null,null,null,null,null,null,null,null,null,"D36990B Fabricación de brochas, rodillos y almohadillas para pintar, escobillas de goma."]
[null,null,null,null,null,null,null,null,null,null,null,null,null,null,null,null,null,null,null,null,null,null,null,null,null,"D36990C Fabricación de  otros cepillos"]
[null,null,null,null,null,null,null,null,null,null,null,null,null,null,null,null,null,null,null,null,null,null,null,null,null,"D36991 Fabricación de plumas y lápices toda clase, sean o no mecánicos y minas lápices."]
[null,null,null,null,null,null,null,null,null,null,null,null,null,null,null,null,null,null,null,null,null,null,null,null,null,"D36992 Fabricación de sellos para fechar, cerrar o numerar y almohadillas entintadas"]
[null,null,null,null,null,null,null,null,null,null,null,null,null,null,null,null,null,null,null,null,null,null,null,null,null,"D36992A Fabricación de aparatos manuales para imprimir y estampar membretes en relieve"]
[null,null,null,null,null,null,null,null,null,null,null,null,null,null,null,null,null,null,null,null,null,null,null,null,null,"D36992B Fabricación de juegos para imprimir a mano, cintas preparadas máquinas escribir"]
[null,null,null,null,null,null,null,null,null,null,null,null,null,null,null,null,null,null,null,null,null,null,null,null,null,"D37000 Reciclado de desperdicios y desechos metálicos"]
[null,null,null,null,null,null,null,null,null,null,null,null,null,null,null,null,null,null,null,null,null,null,null,null,null,"D37101 Procesamiento de desperdicios y desechos metálicos y de artículos de metal"]
[null,null,null,null,null,null,null,null,null,null,null,null,null,null,null,null,null,null,null,null,null,null,null,null,null,"D371013 Triturado de desperdicios metálicos"]
[null,null,null,null,null,null,null,null,null,null,null,null,null,null,null,null,null,null,null,null,null,null,null,null,null,"D371014 Otros métodos de tratamiento mecánico:cortado y el prensado p/reducir el volumen"]
[null,null,null,null,null,null,null,null,null,null,null,null,null,null,null,null,null,null,null,null,null,null,null,null,null,"D37200 Reciclado de desperdicios y desechos no metálicos"]
[null,null,null,null,null,null,null,null,null,null,null,null,null,null,null,null,null,null,null,null,null,null,null,null,null,"D37201 Procesamiento de desperdicios y desechos no metálicos y artículos no metálicos"]
[null,null,null,null,null,null,null,null,null,null,null,null,null,null,null,null,null,null,null,null,null,null,null,null,null,"D372010 Recuperación del caucho, utilizado en los neumáticos, p/materia prima secundaria"]
[null,null,null,null,null,null,null,null,null,null,null,null,null,null,null,null,null,null,null,null,null,null,null,null,null,"D372011 Clasificación y nodulización plásticos p/ producir una materia prima secundaria"]
[null,null,null,null,null,null,null,null,null,null,null,null,null,null,null,null,null,null,null,null,null,null,null,null,null,"D372012 Procesamiento limpieza, fusión, trituración desperdicios plástico o caucho"]
[null,null,null,null,null,null,null,null,null,null,null,null,null,null,null,null,null,null,null,null,null,null,null,null,null,"D372013 Recuperación de sustancias químicas a partir de desechos químicos"]
[null,null,null,null,null,null,null,null,null,null,null,null,null,null,null,null,null,null,null,null,null,null,null,null,null,"D372014 Triturado, limpieza y clasificación de vidrio"]
[null,null,null,null,null,null,null,null,null,null,null,null,null,null,null,null,null,null,null,null,null,null,null,null,null,"D372017 Procesamiento de aceites y grasas de uso culinario"]
[null,null,null,null,null,null,null,null,null,null,null,null,null,null,null,null,null,null,null,null,null,null,null,null,null,"D38000 Fabricacion de quimicos y sabores alimenticios"]
[null,null,null,null,null,null,null,null,null,null,null,null,null,null,null,null,null,null,null,null,null,null,null,null,null,"D38101 Elaboración de Vitaminas, Aminoácidos, Enzimas, Proteínas ."]
[null,null,null,null,null,null,null,null,null,null,null,null,null,null,null,null,null,null,null,null,null,null,null,null,null,"D38102 Elaboración de Emulsificantes, Estabilizantes, Conservantes, Antioxidantes."]
[null,null,null,null,null,null,null,null,null,null,null,null,null,null,null,null,null,null,null,null,null,null,null,null,null,"D38103 Elaboración de Tierras filtrantes, Arcillas suavizantes."]
[null,null,null,null,null,null,null,null,null,null,null,null,null,null,null,null,null,null,null,null,null,null,null,null,null,"D38104 Elaboración de  Sustancias odoríferas y sabores"]
[null,null,null,null,null,null,null,null,null,null,null,null,null,null,null,null,null,null,null,null,null,null,null,null,null,"D38105 Elaboración de Químicos grado alimenticio."]
[null,null,null,null,null,null,null,null,null,null,null,null,null,null,null,null,null,null,null,null,null,null,null,null,null,"D39000 Fabricacion de material de mercadeo"]
[null,null,null,null,null,null,null,null,null,null,null,null,null,null,null,null,null,null,null,null,null,null,null,null,null,"D39101 Fabricación de dummies, colgantes, standee, back lights, backings."]
[null,null,null,null,null,null,null,null,null,null,null,null,null,null,null,null,null,null,null,null,null,null,null,null,null,"D39102 Fabricación de collarines, individuales, carnets identificadores"]
[null,null,null,null,null,null,null,null,null,null,null,null,null,null,null,null,null,null,null,null,null,null,null,null,null,"D39103 Fabricación de cajas, juegos de mesas y bolsas customizadas"]
[null,null,null,null,null,null,null,null,null,null,null,null,null,null,null,null,null,null,null,null,null,null,null,null,null,"D39104 Fabricación de pitilleros, servilleteros, azucareros, destapadores de pared"]
[null,null,null,null,null,null,null,null,null,null,null,null,null,null,null,null,null,null,null,null,null,null,null,null,null,"D39105 Fabricación de exhibidores (anaqueles, de piso, counter top y otros)"]
[null,null,null,null,null,null,null,null,null,null,null,null,null,null,null,null,null,null,null,null,null,null,null,null,null,"D39106 Fabricación de bandejas, toldos, y laterales de anaquel, punta de gondolas"]
[null,null,null,null,null,null,null,null,null,null,null,null,null,null,null,null,null,null,null,null,null,null,null,null,null,"D39107 Fabricación de rompetraficos, ristras, pizarras, flangers, porta afiches"]
[null,null,null,null,null,null,null,null,null,null,null,null,null,null,null,null,null,null,null,null,null,null,null,null,null,"D39108 Fabricación de cajas de luces, rocket man, banderines, copetes froster"]
[null,null,null,null,null,null,null,null,null,null,null,null,null,null,null,null,null,null,null,null,null,null,null,null,null,"D39109 Fabricación sillas, mesas, tobos y cuñetes, glorificadores, cross merchandising"]
[null,null,null,null,null,null,null,null,null,null,null,null,null,null,null,null,null,null,null,null,null,null,null,null,null,"D39110 Fabricación de corta vientos, banderines, porta cesta"]
[null,null,null,null,null,null,null,null,null,null,null,null,null,null,null,null,null,null,null,null,null,null,null,null,null,"D39111 Fabricacion de Tablas de picar, Conservadores de alimentos"]
[null,null,null,null,null,null,null,null,null,null,null,null,null,null,null,null,null,null,null,null,null,null,null,null,null,"D39111A Fabricacion de Jarras, Vasos, Coolers"]
[null,null,null,null,null,null,null,null,null,null,null,null,null,null,null,null,null,null,null,null,null,null,null,null,null,"D39112 Fabricacion de Bolsos Koalas, Bolsos deportivos, tulas, taqueras, morrales."]
[null,null,null,null,null,null,null,null,null,null,null,null,null,null,null,null,null,null,null,null,null,null,null,null,null,"D39113 Fabricación de boligrafos y portaminas de plastico y de metal."]
[null,null,null,null,null,null,null,null,null,null,null,null,null,null,null,null,null,null,null,null,null,null,null,null,null,"D39114 Fabricación de Cavas plasticas, anime y bolsos termicos."]
[null,null,null,null,null,null,null,null,null,null,null,null,null,null,null,null,null,null,null,null,null,null,null,null,null,"D39115 Fabricación de articulos ambientación instalaciones pendones, pancartas, afiches"]
[null,null,null,null,null,null,null,null,null,null,null,null,null,null,null,null,null,null,null,null,null,null,null,null,null,"D39116 Fabricación tend card, hoja venta, preciadores, habladores, calendarios,postales"]
[null,null,null,null,null,null,null,null,null,null,null,null,null,null,null,null,null,null,null,null,null,null,null,null,null,"D39117 Fabricación de stickers, floorgraphics, papel y cintillos de anaqueles"]
[null,null,null,null,null,null,null,null,null,null,null,null,null,null,null,null,null,null,null,null,null,null,null,null,null,"D39118 Fabricación de cuadernos, carpétas, libretas, tarjetas premiacion, data variable"]
[null,null,null,null,null,null,null,null,null,null,null,null,null,null,null,null,null,null,null,null,null,null,null,null,null,"D40000 Fabricacion de envases y empaque"]
[null,null,null,null,null,null,null,null,null,null,null,null,null,null,null,null,null,null,null,null,null,null,null,null,null,"D4001 Fabricación de Envases metálicas, Tapas metálicas (pry off, twist off)"]
[null,null,null,null,null,null,null,null,null,null,null,null,null,null,null,null,null,null,null,null,null,null,null,null,null,"D4002 Fabricación de Bobinas, Cuerpos, Linner de aluminio y Tapas lata de aluminio"]
[null,null,null,null,null,null,null,null,null,null,null,null,null,null,null,null,null,null,null,null,null,null,null,null,null,"D4003 Fabricación de cestas de supermercados"]
[null,null,null,null,null,null,null,null,null,null,null,null,null,null,null,null,null,null,null,null,null,null,null,null,null,"D4004 Fabricación de liminado (tetrapak, trilaminado)"]
[null,null,null,null,null,null,null,null,null,null,null,null,null,null,null,null,null,null,null,null,null,null,null,null,null,"D4005 Fabricación de barriles de acero inoxidables"]
[null,null,null,null,null,null,null,null,null,null,null,null,null,null,null,null,null,null,null,null,null,null,null,null,null,"D4006 Fabricación de Papel metalizado antigraso"]
[null,null,null,null,null,null,null,null,null,null,null,null,null,null,null,null,null,null,null,null,null,null,null,null,null,"D4007 Fabricación de resinas baja/alta densidad, maleica, pet, ceras, compuesto PVC."]
[null,null,null,null,null,null,null,null,null,null,null,null,null,null,null,null,null,null,null,null,null,null,null,null,null,"D4008 Fabricación de botellas pet /polietileno, Laminas de poliestireno (Rígido)"]
[null,null,null,null,null,null,null,null,null,null,null,null,null,null,null,null,null,null,null,null,null,null,null,null,null,"D4009 Fabricación de tinas, tapas, gaveras, pailas, tambores plasticos rígido"]
[null,null,null,null,null,null,null,null,null,null,null,null,null,null,null,null,null,null,null,null,null,null,null,null,null,"D4010 Fabricación de Termoencogibles, Film strech, Bolsas plásticas, Cintas, Fleje."]
[null,null,null,null,null,null,null,null,null,null,null,null,null,null,null,null,null,null,null,null,null,null,null,null,null,"D4011 Fabricación de Pitillos, Bolsas Bag & Box, Zipper"]
[null,null,null,null,null,null,null,null,null,null,null,null,null,null,null,null,null,null,null,null,null,null,null,null,null,"D4012 Fabricación de Polipropileno transparente BOPP/Cast."]
[null,null,null,null,null,null,null,null,null,null,null,null,null,null,null,null,null,null,null,null,null,null,null,null,null,"D4013 Fabricación de Sacos de polipropileno e hilos."]
[null,null,null,null,null,null,null,null,null,null,null,null,null,null,null,null,null,null,null,null,null,null,null,null,null,"D4014 Fabricación de Etiquetas y Sacos de papel, Papel kraft."]
[null,null,null,null,null,null,null,null,null,null,null,null,null,null,null,null,null,null,null,null,null,null,null,null,null,"D4015 Fabricación de Vasos plasticubiertos."]
[null,null,null,null,null,null,null,null,null,null,null,null,null,null,null,null,null,null,null,null,null,null,null,null,null,"D4016 Fabricación de Corchos"]
[null,null,null,null,null,null,null,null,null,null,null,null,null,null,null,null,null,null,null,null,null,null,null,null,null,"E410001 Suministro Agua/Electricidad"]
[null,null,null,null,null,null,null,null,null,null,null,null,null,null,null,null,null,null,null,null,null,null,null,null,null,"E40104 Venta de electricidad a los usuarios"]
[null,null,null,null,null,null,null,null,null,null,null,null,null,null,null,null,null,null,null,null,null,null,null,null,null,"E410001 Mantenimiento de filtros para la depuración del agua con miras a su suministro"]
[null,null,null,null,null,null,null,null,null,null,null,null,null,null,null,null,null,null,null,null,null,null,null,null,null,"F45000 Construcción"]
[null,null,null,null,null,null,null,null,null,null,null,null,null,null,null,null,null,null,null,null,null,null,null,null,null,"F45110 Levantamiento topográfico"]
[null,null,null,null,null,null,null,null,null,null,null,null,null,null,null,null,null,null,null,null,null,null,null,null,null,"F45200 Construcción de todo tipo de edificios"]
[null,null,null,null,null,null,null,null,null,null,null,null,null,null,null,null,null,null,null,null,null,null,null,null,null,"F45201 Construcción de obras de ingeniería civil. (Remodelación)"]
[null,null,null,null,null,null,null,null,null,null,null,null,null,null,null,null,null,null,null,null,null,null,null,null,null,"F45209 Instalación de barreras quitamiedos, señales de tráfico y similares"]
[null,null,null,null,null,null,null,null,null,null,null,null,null,null,null,null,null,null,null,null,null,null,null,null,null,"F452112 Perforación y construcción de pozos de agua, profundización de pozos"]
[null,null,null,null,null,null,null,null,null,null,null,null,null,null,null,null,null,null,null,null,null,null,null,null,null,"F453012 Instalación de lineas de comunicaciones."]
[null,null,null,null,null,null,null,null,null,null,null,null,null,null,null,null,null,null,null,null,null,null,null,null,null,"F453014 Instalación/mantenimiento de alarmas contra incendios y extintores"]
[null,null,null,null,null,null,null,null,null,null,null,null,null,null,null,null,null,null,null,null,null,null,null,null,null,"F453014A Instalación/mantenimiento de camaras de vigilancia y sensores movimiento"]
[null,null,null,null,null,null,null,null,null,null,null,null,null,null,null,null,null,null,null,null,null,null,null,null,null,"F453021 Instalacion de aislamientos térmicos acústicos o contra las vibraciones"]
[null,null,null,null,null,null,null,null,null,null,null,null,null,null,null,null,null,null,null,null,null,null,null,null,null,"F453022 Instalación edificio/otro proyecto construcción fontanería y equipo saneamiento"]
[null,null,null,null,null,null,null,null,null,null,null,null,null,null,null,null,null,null,null,null,null,null,null,null,null,"F45401 Instalación de puertas, ventanas, marcos de puertas y ventanas, escaleras."]
[null,null,null,null,null,null,null,null,null,null,null,null,null,null,null,null,null,null,null,null,null,null,null,null,null,"F45401A Instalación mueble cocina, mobiliario p/tienda y similares, madera/otro material"]
[null,null,null,null,null,null,null,null,null,null,null,null,null,null,null,null,null,null,null,null,null,null,null,null,null,"F45402 Acabados de interiores: techos, revestimientos madera p/ parede, tabique movible"]
[null,null,null,null,null,null,null,null,null,null,null,null,null,null,null,null,null,null,null,null,null,null,null,null,null,"F45404 Pintura de interiores y exteriores de edificios"]
[null,null,null,null,null,null,null,null,null,null,null,null,null,null,null,null,null,null,null,null,null,null,null,null,null,"F45407 Limpieza con vapor, limpieza mediante aspersión arena p/ exteriores de edificios"]
[null,null,null,null,null,null,null,null,null,null,null,null,null,null,null,null,null,null,null,null,null,null,null,null,null,"F45409 Otros trabajos de terminación y acabado de edificios n.c.p."]
[null,null,null,null,null,null,null,null,null,null,null,null,null,null,null,null,null,null,null,null,null,null,null,null,null,"F45501 Alquiler de grúas, con operarios"]
[null,null,null,null,null,null,null,null,null,null,null,null,null,null,null,null,null,null,null,null,null,null,null,null,null,"G50200 Mantenimiento Vehiculos automotores"]
[null,null,null,null,null,null,null,null,null,null,null,null,null,null,null,null,null,null,null,null,null,null,null,null,null,"G50210 Reparación mecanica vehiculo automotor"]
[null,null,null,null,null,null,null,null,null,null,null,null,null,null,null,null,null,null,null,null,null,null,null,null,null,"G50211 Reparacion electrica vehiculo automotor"]
[null,null,null,null,null,null,null,null,null,null,null,null,null,null,null,null,null,null,null,null,null,null,null,null,null,"G50212 Reparacion sistema de inyeccion automotor"]
[null,null,null,null,null,null,null,null,null,null,null,null,null,null,null,null,null,null,null,null,null,null,null,null,null,"G50213 Servicio mantenimiento ordinario automotor"]
[null,null,null,null,null,null,null,null,null,null,null,null,null,null,null,null,null,null,null,null,null,null,null,null,null,"G50214 Reparacion de carroceria automotor"]
[null,null,null,null,null,null,null,null,null,null,null,null,null,null,null,null,null,null,null,null,null,null,null,null,null,"G50215 Reparacion de partes y piezas automotoras"]
[null,null,null,null,null,null,null,null,null,null,null,null,null,null,null,null,null,null,null,null,null,null,null,null,null,"G50216 Lavado y lustracion de vehiculos"]
[null,null,null,null,null,null,null,null,null,null,null,null,null,null,null,null,null,null,null,null,null,null,null,null,null,"G50217 Metalizacion y pintura automotor"]
[null,null,null,null,null,null,null,null,null,null,null,null,null,null,null,null,null,null,null,null,null,null,null,null,null,"G50218 Reparacion de parabrisas y ventanas automotor"]
[null,null,null,null,null,null,null,null,null,null,null,null,null,null,null,null,null,null,null,null,null,null,null,null,null,"G50219 Repracion de asientos de vehiculos automotores"]
[null,null,null,null,null,null,null,null,null,null,null,null,null,null,null,null,null,null,null,null,null,null,null,null,null,"G50300 Venta al mayor repuestos automotrices"]
[null,null,null,null,null,null,null,null,null,null,null,null,null,null,null,null,null,null,null,null,null,null,null,null,null,"G50101 Venta al por mayor y al por menor de vehículos nuevos y usados."]
[null,null,null,null,null,null,null,null,null,null,null,null,null,null,null,null,null,null,null,null,null,null,null,null,null,"G50301 Venta al mayor y al menor de repuestos, herramientas vehículos automotores"]
[null,null,null,null,null,null,null,null,null,null,null,null,null,null,null,null,null,null,null,null,null,null,null,null,null,"G503011 Venta al por mayor de rodamientos, chumaceras y demas elementos de rodadura"]
[null,null,null,null,null,null,null,null,null,null,null,null,null,null,null,null,null,null,null,null,null,null,null,null,null,"G503013 Venta al por mayor de cauchos para vehículos"]
[null,null,null,null,null,null,null,null,null,null,null,null,null,null,null,null,null,null,null,null,null,null,null,null,null,"G50301A Venta al mayor y al menor de accesorios para vehículos automotores"]
[null,null,null,null,null,null,null,null,null,null,null,null,null,null,null,null,null,null,null,null,null,null,null,null,null,"G51200 Ventas al mayor de alimentos, bebidas y tabacos"]
[null,null,null,null,null,null,null,null,null,null,null,null,null,null,null,null,null,null,null,null,null,null,null,null,null,"G51221 Venta al por mayor de productos lácteos"]
[null,null,null,null,null,null,null,null,null,null,null,null,null,null,null,null,null,null,null,null,null,null,null,null,null,"G51222 Venta al por mayor de huevos y sus productos"]
[null,null,null,null,null,null,null,null,null,null,null,null,null,null,null,null,null,null,null,null,null,null,null,null,null,"G51226 Venta al por mayor de azucar, chocolate y prod.de confiterias"]
[null,null,null,null,null,null,null,null,null,null,null,null,null,null,null,null,null,null,null,null,null,null,null,null,null,"G51310 Venta al mayor prendas de vestir y/o calzado"]
[null,null,null,null,null,null,null,null,null,null,null,null,null,null,null,null,null,null,null,null,null,null,null,null,null,"G51314 Venta al por mayor de prendas de vestir, incluso prendas deportivas"]
[null,null,null,null,null,null,null,null,null,null,null,null,null,null,null,null,null,null,null,null,null,null,null,null,null,"G51316 Venta al por mayor de calzado"]
[null,null,null,null,null,null,null,null,null,null,null,null,null,null,null,null,null,null,null,null,null,null,null,null,null,"G51390A Venta al mayor de enseres domésticos"]
[null,null,null,null,null,null,null,null,null,null,null,null,null,null,null,null,null,null,null,null,null,null,null,null,null,"G51398 Venta al por mayor de bicicletas y de partes, piezas y accesorios p/ bicicletas"]
[null,null,null,null,null,null,null,null,null,null,null,null,null,null,null,null,null,null,null,null,null,null,null,null,null,"G51399 Venta al por mayor de artículos de papelería, libros, revistas y periódicos."]
[null,null,null,null,null,null,null,null,null,null,null,null,null,null,null,null,null,null,null,null,null,null,null,null,null,"G51399A Venta al por mayor de artículos fotográficos y ópticos, artículos de cuero."]
[null,null,null,null,null,null,null,null,null,null,null,null,null,null,null,null,null,null,null,null,null,null,null,null,null,"G51399B Venta al mayor de accesorios de viaje, relojes y joyas, instrumentos de música."]
[null,null,null,null,null,null,null,null,null,null,null,null,null,null,null,null,null,null,null,null,null,null,null,null,null,"G51399C Venta al por mayor de juegos y juguetes."]
[null,null,null,null,null,null,null,null,null,null,null,null,null,null,null,null,null,null,null,null,null,null,null,null,null,"G5139A Venta al mayor de muebles y artefactos domesticos"]
[null,null,null,null,null,null,null,null,null,null,null,null,null,null,null,null,null,null,null,null,null,null,null,null,null,"G51390 Venta al por mayor de muebles de uso doméstico"]
[null,null,null,null,null,null,null,null,null,null,null,null,null,null,null,null,null,null,null,null,null,null,null,null,null,"G51391 Venta al por mayor de artefactos de uso doméstico"]
[null,null,null,null,null,null,null,null,null,null,null,null,null,null,null,null,null,null,null,null,null,null,null,null,null,"G5139B Venta al mayor de equipo de iluminación"]
[null,null,null,null,null,null,null,null,null,null,null,null,null,null,null,null,null,null,null,null,null,null,null,null,null,"G51392 Venta al por mayor de equipo de iluminación"]
[null,null,null,null,null,null,null,null,null,null,null,null,null,null,null,null,null,null,null,null,null,null,null,null,null,"G5139C Venta al mayor de cubertería"]
[null,null,null,null,null,null,null,null,null,null,null,null,null,null,null,null,null,null,null,null,null,null,null,null,null,"G51393 Venta al por mayor de cubertería"]
[null,null,null,null,null,null,null,null,null,null,null,null,null,null,null,null,null,null,null,null,null,null,null,null,null,"G51410 Venta al mayor combustibles, grasas, lubricantes"]
[null,null,null,null,null,null,null,null,null,null,null,null,null,null,null,null,null,null,null,null,null,null,null,null,null,"G51412 Venta al mayor combustibles, grasas, lubricantes, aceites, p/vehículos automotor"]
[null,null,null,null,null,null,null,null,null,null,null,null,null,null,null,null,null,null,null,null,null,null,null,null,null,"G51430 Venta al mayor articulos de ferretería"]
[null,null,null,null,null,null,null,null,null,null,null,null,null,null,null,null,null,null,null,null,null,null,null,null,null,"G51433 "]
[null,null,null,null,null,null,null,null,null,null,null,null,null,null,null,null,null,null,null,null,null,null,null,null,null,"G514341 Venta al por mayor de  arena, gravilla"]
[null,null,null,null,null,null,null,null,null,null,null,null,null,null,null,null,null,null,null,null,null,null,null,null,null,"G51436 Venta al por mayor de artículos de ferretería y cerraduras"]
[null,null,null,null,null,null,null,null,null,null,null,null,null,null,null,null,null,null,null,null,null,null,null,null,null,"G514391 Venta al por mayor de bañeras, lavabos, inodoros y otros sanitarios de porcelana"]
[null,null,null,null,null,null,null,null,null,null,null,null,null,null,null,null,null,null,null,null,null,null,null,null,null,"G514401 Venta al mayor tubos, tuberías, accesorios, grifos, conexiones, tuberías caucho."]
[null,null,null,null,null,null,null,null,null,null,null,null,null,null,null,null,null,null,null,null,null,null,null,null,null,"G51441 Venta al mayor de herramientas de mano: destornilladores, martillos, sierras, ec"]
[null,null,null,null,null,null,null,null,null,null,null,null,null,null,null,null,null,null,null,null,null,null,null,null,null,"G51490 Venta al mayor materiales auxiliares fabricación"]
[null,null,null,null,null,null,null,null,null,null,null,null,null,null,null,null,null,null,null,null,null,null,null,null,null,"G514901 Venta al por mayor de tinta de imprenta, aceites esenciales, gases industriales."]
[null,null,null,null,null,null,null,null,null,null,null,null,null,null,null,null,null,null,null,null,null,null,null,null,null,"G514901A Venta al por mayor de colas químicas, colorantes, resinas sintéticas, metanol."]
[null,null,null,null,null,null,null,null,null,null,null,null,null,null,null,null,null,null,null,null,null,null,null,null,null,"G514901B Venta al por mayor de aromas y aromatizantes, bicarbonato sódico, sal industrial"]
[null,null,null,null,null,null,null,null,null,null,null,null,null,null,null,null,null,null,null,null,null,null,null,null,null,"G514901C Venta al por mayor de anilina, parafina, ácidos y azufres, derivados del almidón"]
[null,null,null,null,null,null,null,null,null,null,null,null,null,null,null,null,null,null,null,null,null,null,null,null,null,"G514903 Venta al por mayor de alcoholes (butanol)"]
[null,null,null,null,null,null,null,null,null,null,null,null,null,null,null,null,null,null,null,null,null,null,null,null,null,"G51492 Venta al por mayor de materiales plásticos en formas primarias"]
[null,null,null,null,null,null,null,null,null,null,null,null,null,null,null,null,null,null,null,null,null,null,null,null,null,"G51493 Venta al mayor de oring, empacaduras, empaquetaduras."]
[null,null,null,null,null,null,null,null,null,null,null,null,null,null,null,null,null,null,null,null,null,null,null,null,null,"G514931 Venta al por mayor de oring, empacaduras, empaquetaduras."]
[null,null,null,null,null,null,null,null,null,null,null,null,null,null,null,null,null,null,null,null,null,null,null,null,null,"G51510 Venta al por mayor de ordenadores, equipo periférico y programas informáticos"]
[null,null,null,null,null,null,null,null,null,null,null,null,null,null,null,null,null,null,null,null,null,null,null,null,null,"G51511 Venta al por mayor de ordenadores y equipo periférico"]
[null,null,null,null,null,null,null,null,null,null,null,null,null,null,null,null,null,null,null,null,null,null,null,null,null,"G51512 Venta al por mayor de programas informáticos"]
[null,null,null,null,null,null,null,null,null,null,null,null,null,null,null,null,null,null,null,null,null,null,null,null,null,"G51520 Venta al mayor de partes y equipo electrónicos y de comunicaciones"]
[null,null,null,null,null,null,null,null,null,null,null,null,null,null,null,null,null,null,null,null,null,null,null,null,null,"G51521 Venta al por mayor de válvulas y tubos electrónicos"]
[null,null,null,null,null,null,null,null,null,null,null,null,null,null,null,null,null,null,null,null,null,null,null,null,null,"G51522 Venta al por mayor de dispositivos semiconductores"]
[null,null,null,null,null,null,null,null,null,null,null,null,null,null,null,null,null,null,null,null,null,null,null,null,null,"G51523 Venta al por mayor de microchips y circuitos integrados"]
[null,null,null,null,null,null,null,null,null,null,null,null,null,null,null,null,null,null,null,null,null,null,null,null,null,"G51526 Venta al por mayor de equipo telefónico y de comunicaciones"]
[null,null,null,null,null,null,null,null,null,null,null,null,null,null,null,null,null,null,null,null,null,null,null,null,null,"G51590 Venta al mayor de otros tipos de maquinaria, equipo y materiales"]
[null,null,null,null,null,null,null,null,null,null,null,null,null,null,null,null,null,null,null,null,null,null,null,null,null,"G51591 Venta al mayor maquinaria y equipo oficina, sin ordenadores y equipo periférico"]
[null,null,null,null,null,null,null,null,null,null,null,null,null,null,null,null,null,null,null,null,null,null,null,null,null,"G51592 Venta al por mayor de muebles de oficina"]
[null,null,null,null,null,null,null,null,null,null,null,null,null,null,null,null,null,null,null,null,null,null,null,null,null,"G51593 Venta al mayor equipo transporte: motocicleta y bicicleta"]
[null,null,null,null,null,null,null,null,null,null,null,null,null,null,null,null,null,null,null,null,null,null,null,null,null,"G51594 Venta al por mayor de robots para cadenas de montaje"]
[null,null,null,null,null,null,null,null,null,null,null,null,null,null,null,null,null,null,null,null,null,null,null,null,null,"G51595 Venta al mayor: cables, conmutadores y otros tipo equipo instalacion industrial"]
[null,null,null,null,null,null,null,null,null,null,null,null,null,null,null,null,null,null,null,null,null,null,null,null,null,"G51596 Venta al mayor de otros aparatos eléctricos: motores eléctricos, transformadores"]
[null,null,null,null,null,null,null,null,null,null,null,null,null,null,null,null,null,null,null,null,null,null,null,null,null,"G51597 Venta al mayor tipos de maquinaria uso en la industria, comercio y navegación."]
[null,null,null,null,null,null,null,null,null,null,null,null,null,null,null,null,null,null,null,null,null,null,null,null,null,"G515971 Venta al por mayor de elementos de transmisión de fuerza"]
[null,null,null,null,null,null,null,null,null,null,null,null,null,null,null,null,null,null,null,null,null,null,null,null,null,"G51598 Venta al por mayor de máquinas herramienta controladas por ordenador"]
[null,null,null,null,null,null,null,null,null,null,null,null,null,null,null,null,null,null,null,null,null,null,null,null,null,"G51599 Venta al mayor de maquinaria controlada por ordenador para la industrial textil"]
[null,null,null,null,null,null,null,null,null,null,null,null,null,null,null,null,null,null,null,null,null,null,null,null,null,"G51599A Venta al por mayor de máquinas de coser y tejer controladas por ordenador"]
[null,null,null,null,null,null,null,null,null,null,null,null,null,null,null,null,null,null,null,null,null,null,null,null,null,"G51600 Venta al por mayor de instrumentos y equipo de medición"]
[null,null,null,null,null,null,null,null,null,null,null,null,null,null,null,null,null,null,null,null,null,null,null,null,null,"G51601 Venta al por mayor de segadoras de césped, cualquiera que sea el funcionamiento."]
[null,null,null,null,null,null,null,null,null,null,null,null,null,null,null,null,null,null,null,null,null,null,null,null,null,"G51700 Venta al mayor bombas y repuestos"]
[null,null,null,null,null,null,null,null,null,null,null,null,null,null,null,null,null,null,null,null,null,null,null,null,null,"G51701 Venta al mayor de bombas y repuestos p/ bombas centrifugas, hidraulicas, vacio."]
[null,null,null,null,null,null,null,null,null,null,null,null,null,null,null,null,null,null,null,null,null,null,null,null,null,"G52000 Venta/servicio de productos electrónicos"]
[null,null,null,null,null,null,null,null,null,null,null,null,null,null,null,null,null,null,null,null,null,null,null,null,null,"G526021 Reparación de productos electrónicos:Televisiones, radios, cámaras de vídeo"]
[null,null,null,null,null,null,null,null,null,null,null,null,null,null,null,null,null,null,null,null,null,null,null,null,null,"G526021A Reparación de productos electrónicos: tocadiscos para discos compactos"]
[null,null,null,null,null,null,null,null,null,null,null,null,null,null,null,null,null,null,null,null,null,null,null,null,null,"G526022 Teléfonos, incluso teléfonos móviles"]
[null,null,null,null,null,null,null,null,null,null,null,null,null,null,null,null,null,null,null,null,null,null,null,null,null,"G52190 Venta al menor de valvulas, trampas, reguladores"]
[null,null,null,null,null,null,null,null,null,null,null,null,null,null,null,null,null,null,null,null,null,null,null,null,null,"G52200 Venta al menor suministros varios"]
[null,null,null,null,null,null,null,null,null,null,null,null,null,null,null,null,null,null,null,null,null,null,null,null,null,"G52201 Venta al por menor de frutas y verduras frescas y en conserva"]
[null,null,null,null,null,null,null,null,null,null,null,null,null,null,null,null,null,null,null,null,null,null,null,null,null,"G52202 Venta al por menor de productos lácteos, huevos y derivados de huevos."]
[null,null,null,null,null,null,null,null,null,null,null,null,null,null,null,null,null,null,null,null,null,null,null,null,null,"G52203 Venta al por menor de carne (incluso aves de corral) y productos cárnicos"]
[null,null,null,null,null,null,null,null,null,null,null,null,null,null,null,null,null,null,null,null,null,null,null,null,null,"G52204 Venta al por menor de pescado, mariscos y productos conexos"]
[null,null,null,null,null,null,null,null,null,null,null,null,null,null,null,null,null,null,null,null,null,null,null,null,null,"G52311 Venta al por menor de productos farmacéuticos"]
[null,null,null,null,null,null,null,null,null,null,null,null,null,null,null,null,null,null,null,null,null,null,null,null,null,"G52324 Venta al por menor de artículos de mercería: agujas, hilo de coser."]
[null,null,null,null,null,null,null,null,null,null,null,null,null,null,null,null,null,null,null,null,null,null,null,null,null,"G52331 Venta al por menor de artículos para iluminación"]
[null,null,null,null,null,null,null,null,null,null,null,null,null,null,null,null,null,null,null,null,null,null,null,null,null,"G52398 Venta al menor de fuel oil, gas en bombonas, carbón y leña para uso doméstico."]
[null,null,null,null,null,null,null,null,null,null,null,null,null,null,null,null,null,null,null,null,null,null,null,null,null,"G52398A Venta al por menor de materiales de limpieza"]
[null,null,null,null,null,null,null,null,null,null,null,null,null,null,null,null,null,null,null,null,null,null,null,null,null,"G5310 Venta al por mayor de aceitunas, alcaparras, encurtidos, pasas, dulce de lechoza"]
[null,null,null,null,null,null,null,null,null,null,null,null,null,null,null,null,null,null,null,null,null,null,null,null,null,"G52330 Venta al menor de articulos electricos"]
[null,null,null,null,null,null,null,null,null,null,null,null,null,null,null,null,null,null,null,null,null,null,null,null,null,"G523311 Venta al por menor de artículos eléctricos"]
[null,null,null,null,null,null,null,null,null,null,null,null,null,null,null,null,null,null,null,null,null,null,null,null,null,"G523320 Venta al menor utensilios/artefactos uso domestico"]
[null,null,null,null,null,null,null,null,null,null,null,null,null,null,null,null,null,null,null,null,null,null,null,null,null,"G52332 Venta al por menor utensilios de uso doméstico, cubiertos, vajilla, cristalería"]
[null,null,null,null,null,null,null,null,null,null,null,null,null,null,null,null,null,null,null,null,null,null,null,null,null,"G52332A Venta al menor utensilios de uso doméstico, objetos de porcelana y de cerámica"]
[null,null,null,null,null,null,null,null,null,null,null,null,null,null,null,null,null,null,null,null,null,null,null,null,null,"G52336 Venta al por menor de artículos y equipo de uso doméstico n.c.p."]
[null,null,null,null,null,null,null,null,null,null,null,null,null,null,null,null,null,null,null,null,null,null,null,null,null,"G52337 Venta al menor  radio y televisión y otro tipo equipo audiovisual uso doméstico"]
[null,null,null,null,null,null,null,null,null,null,null,null,null,null,null,null,null,null,null,null,null,null,null,null,null,"G523400 Venta al menor articulos de ferretería"]
[null,null,null,null,null,null,null,null,null,null,null,null,null,null,null,null,null,null,null,null,null,null,null,null,null,"G52340 Venta al por menor de artículos de ferretería"]
[null,null,null,null,null,null,null,null,null,null,null,null,null,null,null,null,null,null,null,null,null,null,null,null,null,"G52341 Venta al por menor de pinturas, barnices y lacas"]
[null,null,null,null,null,null,null,null,null,null,null,null,null,null,null,null,null,null,null,null,null,null,null,null,null,"G52343 Venta al por menor de otros materiales de construcciones: ladrillos, madera."]
[null,null,null,null,null,null,null,null,null,null,null,null,null,null,null,null,null,null,null,null,null,null,null,null,null,"G52343A Venta al menor de otros material de construccion: equipo saneamiento (sanitario)"]
[null,null,null,null,null,null,null,null,null,null,null,null,null,null,null,null,null,null,null,null,null,null,null,null,null,"G523910 Venta al menor material de oficina"]
[null,null,null,null,null,null,null,null,null,null,null,null,null,null,null,null,null,null,null,null,null,null,null,null,null,"G52391 Venta al por menor de material de oficina: bolígrafos, lápices, papel."]
[null,null,null,null,null,null,null,null,null,null,null,null,null,null,null,null,null,null,null,null,null,null,null,null,null,"G52391A Venta al menor de material de oficina: libros, periodicos y utiles de escritorio"]
[null,null,null,null,null,null,null,null,null,null,null,null,null,null,null,null,null,null,null,null,null,null,null,null,null,"G523950 Venta al menor articulos deportivos y juguetes"]
[null,null,null,null,null,null,null,null,null,null,null,null,null,null,null,null,null,null,null,null,null,null,null,null,null,"G52395 Venta al menor de artículos deportivos, equipo de pesca, artículos de camping."]
[null,null,null,null,null,null,null,null,null,null,null,null,null,null,null,null,null,null,null,null,null,null,null,null,null,"G52395A Venta al por menor de botes y bicicletas, de juegos y juguetes"]
[null,null,null,null,null,null,null,null,null,null,null,null,null,null,null,null,null,null,null,null,null,null,null,null,null,"G5311 Venta al por menor articulos de premiación: trofeos, copas, medallas, pines."]
[null,null,null,null,null,null,null,null,null,null,null,null,null,null,null,null,null,null,null,null,null,null,null,null,null,"G52700 Venta de empaque semiterminados y terminados"]
[null,null,null,null,null,null,null,null,null,null,null,null,null,null,null,null,null,null,null,null,null,null,null,null,null,"G52700 Venta de empaque semiterminados y terminados"]
[null,null,null,null,null,null,null,null,null,null,null,null,null,null,null,null,null,null,null,null,null,null,null,null,null,"G52701 Venta de Botellas de Vidrio"]
[null,null,null,null,null,null,null,null,null,null,null,null,null,null,null,null,null,null,null,null,null,null,null,null,null,"G52702 Venta de cartones"]
[null,null,null,null,null,null,null,null,null,null,null,null,null,null,null,null,null,null,null,null,null,null,null,null,null,"G52703 Venta de Corchos"]
[null,null,null,null,null,null,null,null,null,null,null,null,null,null,null,null,null,null,null,null,null,null,null,null,null,"G52704 Venta bobinas de Aluminio, tapa y pisos para latas"]
[null,null,null,null,null,null,null,null,null,null,null,null,null,null,null,null,null,null,null,null,null,null,null,null,null,"G52705 Venta de laminas de Acero"]
[null,null,null,null,null,null,null,null,null,null,null,null,null,null,null,null,null,null,null,null,null,null,null,null,null,"G52706 Venta de cápsulas para vinos"]
[null,null,null,null,null,null,null,null,null,null,null,null,null,null,null,null,null,null,null,null,null,null,null,null,null,"G53100 Venta al menor articulos de eventos, propaganda, juguetes"]
[null,null,null,null,null,null,null,null,null,null,null,null,null,null,null,null,null,null,null,null,null,null,null,null,null,"G5312 Venta al por menor de textiles: gorras, delantales."]
[null,null,null,null,null,null,null,null,null,null,null,null,null,null,null,null,null,null,null,null,null,null,null,null,null,"G5313 Venta al por menor de relojes de pared y pulsera."]
[null,null,null,null,null,null,null,null,null,null,null,null,null,null,null,null,null,null,null,null,null,null,null,null,null,"G5314 Venta al por mayor Panetonne, Snacks, Turrones, Caramelos, Ponche crema."]
[null,null,null,null,null,null,null,null,null,null,null,null,null,null,null,null,null,null,null,null,null,null,null,null,null,"G5315 Venta al por mayor de articulos p/ eventos: kioskos, cavas, toldos, sombrillas."]
[null,null,null,null,null,null,null,null,null,null,null,null,null,null,null,null,null,null,null,null,null,null,null,null,null,"G5316 Venta al por mayor  dummies, colgantes, standee, back lights, backings."]
[null,null,null,null,null,null,null,null,null,null,null,null,null,null,null,null,null,null,null,null,null,null,null,null,null,"G5317 Venta al por mayor collarines, individuales, carnets identificadores"]
[null,null,null,null,null,null,null,null,null,null,null,null,null,null,null,null,null,null,null,null,null,null,null,null,null,"G5318 Venta al por mayor cajas, juegos de mesas y bolsas customizadas."]
[null,null,null,null,null,null,null,null,null,null,null,null,null,null,null,null,null,null,null,null,null,null,null,null,null,"G5319 Venta al por mayor pitilleros, servilleteros, azucareros, destapadores de pared"]
[null,null,null,null,null,null,null,null,null,null,null,null,null,null,null,null,null,null,null,null,null,null,null,null,null,"G5320 Venta al por mayor exhibidores (anaqueles, de piso, counter top y otros)"]
[null,null,null,null,null,null,null,null,null,null,null,null,null,null,null,null,null,null,null,null,null,null,null,null,null,"G5321 Venta al por mayor bandejas, toldos, y laterales de anaquel, punta de gondolas."]
[null,null,null,null,null,null,null,null,null,null,null,null,null,null,null,null,null,null,null,null,null,null,null,null,null,"G5322 Venta al por mayor  rompetraficos, ristras, pizarras, flangers, porta afiches."]
[null,null,null,null,null,null,null,null,null,null,null,null,null,null,null,null,null,null,null,null,null,null,null,null,null,"G5323 Venta al por mayor cajas de luces, rocket man, banderines, copetes froster"]
[null,null,null,null,null,null,null,null,null,null,null,null,null,null,null,null,null,null,null,null,null,null,null,null,null,"G5324 Venta al mayor sillas/mesas/tobos y cuñetes/glorificadores/cross merchandising"]
[null,null,null,null,null,null,null,null,null,null,null,null,null,null,null,null,null,null,null,null,null,null,null,null,null,"G5325 Venta al por mayor corta vientos, banderines, porta cesta."]
[null,null,null,null,null,null,null,null,null,null,null,null,null,null,null,null,null,null,null,null,null,null,null,null,null,"G5326 Venta al mayor Jarras/Vasos/Coolers/Tablas de picar/Conservadores de alimentos"]
[null,null,null,null,null,null,null,null,null,null,null,null,null,null,null,null,null,null,null,null,null,null,null,null,null,"G5327 Venta al por mayor Bolsos: Koalas, Bolsos deportivos, tulas, taqueras, morrales."]
[null,null,null,null,null,null,null,null,null,null,null,null,null,null,null,null,null,null,null,null,null,null,null,null,null,"G5328 Venta al por mayor boligrafos y portaminas de plastico y de metal."]
[null,null,null,null,null,null,null,null,null,null,null,null,null,null,null,null,null,null,null,null,null,null,null,null,null,"G5329 Venta al por mayor Cavas plasticas, anime y bolsos termicos."]
[null,null,null,null,null,null,null,null,null,null,null,null,null,null,null,null,null,null,null,null,null,null,null,null,null,"G5330 Venta al mayor articulos ambientación instalaciones pendones, pancartas, afiches"]
[null,null,null,null,null,null,null,null,null,null,null,null,null,null,null,null,null,null,null,null,null,null,null,null,null,"G5331 Venta al mayor tent card/hoja venta/preciadores/habladores/calendadios/postales"]
[null,null,null,null,null,null,null,null,null,null,null,null,null,null,null,null,null,null,null,null,null,null,null,null,null,"G5332 Venta al por mayor stickers, floorgraphics, papel y cintillos de anaqueles"]
[null,null,null,null,null,null,null,null,null,null,null,null,null,null,null,null,null,null,null,null,null,null,null,null,null,"G5333 Venta al mayor cuadernos, carpétas, libretas, tarjetas premiacion, data variable"]
[null,null,null,null,null,null,null,null,null,null,null,null,null,null,null,null,null,null,null,null,null,null,null,null,null,"G54100 Venta al mayor materia prima general"]
[null,null,null,null,null,null,null,null,null,null,null,null,null,null,null,null,null,null,null,null,null,null,null,null,null,"G5410 Venta al por mayor de Vitaminas, Aminoácidos, Enzimas, Proteínas ."]
[null,null,null,null,null,null,null,null,null,null,null,null,null,null,null,null,null,null,null,null,null,null,null,null,null,"G5411 Venta al por mayor  Emulsificantes, Estabilizantes, Conservantes, Antioxidantes."]
[null,null,null,null,null,null,null,null,null,null,null,null,null,null,null,null,null,null,null,null,null,null,null,null,null,"G5412 Venta al por mayor Tierras filtrantes, Arcillas suavizantes."]
[null,null,null,null,null,null,null,null,null,null,null,null,null,null,null,null,null,null,null,null,null,null,null,null,null,"G5413 Venta al por mayor  Sustancias odoríferas y sabores"]
[null,null,null,null,null,null,null,null,null,null,null,null,null,null,null,null,null,null,null,null,null,null,null,null,null,"G5414 Venta al por mayor Químicos grado alimenticio."]
[null,null,null,null,null,null,null,null,null,null,null,null,null,null,null,null,null,null,null,null,null,null,null,null,null,"H55100 Hoteles y campamentos, hospedaje"]
[null,null,null,null,null,null,null,null,null,null,null,null,null,null,null,null,null,null,null,null,null,null,null,null,null,"H551011 Hospedaje Temporal en hoteles, moteles y hosteria"]
[null,null,null,null,null,null,null,null,null,null,null,null,null,null,null,null,null,null,null,null,null,null,null,null,null,"H551012 Hoteles con salas de conferencias"]
[null,null,null,null,null,null,null,null,null,null,null,null,null,null,null,null,null,null,null,null,null,null,null,null,null,"H551013 Centros vacacionales"]
[null,null,null,null,null,null,null,null,null,null,null,null,null,null,null,null,null,null,null,null,null,null,null,null,null,"H551017 Campamentos e instalaciones de acampada, campamentos para caravanas"]
[null,null,null,null,null,null,null,null,null,null,null,null,null,null,null,null,null,null,null,null,null,null,null,null,null,"H55200 Restaurantes, bares y cantinas"]
[null,null,null,null,null,null,null,null,null,null,null,null,null,null,null,null,null,null,null,null,null,null,null,null,null,"H552011 Restaurantes"]
[null,null,null,null,null,null,null,null,null,null,null,null,null,null,null,null,null,null,null,null,null,null,null,null,null,"H552012 Restaurantes de autoservicio, como cafeterías"]
[null,null,null,null,null,null,null,null,null,null,null,null,null,null,null,null,null,null,null,null,null,null,null,null,null,"H552013 Establecimientos de comida rápida, como hamburgueserías"]
[null,null,null,null,null,null,null,null,null,null,null,null,null,null,null,null,null,null,null,null,null,null,null,null,null,"H552014 Restaurantes de comida para llevar"]
[null,null,null,null,null,null,null,null,null,null,null,null,null,null,null,null,null,null,null,null,null,null,null,null,null,"H552015 Puestos de comida y similares"]
[null,null,null,null,null,null,null,null,null,null,null,null,null,null,null,null,null,null,null,null,null,null,null,null,null,"H552016 Heladerías"]
[null,null,null,null,null,null,null,null,null,null,null,null,null,null,null,null,null,null,null,null,null,null,null,null,null,"I60000 Transporte"]
[null,null,null,null,null,null,null,null,null,null,null,null,null,null,null,null,null,null,null,null,null,null,null,null,null,"I60210 Actividades transporte urbano, suburbano, interurbano de pasajeros (taxi)"]
[null,null,null,null,null,null,null,null,null,null,null,null,null,null,null,null,null,null,null,null,null,null,null,null,null,"I60221 Otros tipos de transporte no regular de pasajeros por carretera:"]
[null,null,null,null,null,null,null,null,null,null,null,null,null,null,null,null,null,null,null,null,null,null,null,null,null,"I602211 Servicios de fletamento de autobuses, servicios de excursión en autobuses"]
[null,null,null,null,null,null,null,null,null,null,null,null,null,null,null,null,null,null,null,null,null,null,null,null,null,"I602211A Demás servicios ocasionales de transporte en autobuses"]
[null,null,null,null,null,null,null,null,null,null,null,null,null,null,null,null,null,null,null,null,null,null,null,null,null,"I60222 Otros servicios de alquiler de automóviles privados con conductor"]
[null,null,null,null,null,null,null,null,null,null,null,null,null,null,null,null,null,null,null,null,null,null,null,null,null,"I60231 Todas las operaciones de transporte de carga por carretera"]
[null,null,null,null,null,null,null,null,null,null,null,null,null,null,null,null,null,null,null,null,null,null,null,null,null,"I602314 Transporte de carga pesada via carretera"]
[null,null,null,null,null,null,null,null,null,null,null,null,null,null,null,null,null,null,null,null,null,null,null,null,null,"I602314A Transporte de sustancias y desechos peligrosos via carretera"]
[null,null,null,null,null,null,null,null,null,null,null,null,null,null,null,null,null,null,null,null,null,null,null,null,null,"J66000 Seguros y corretaje de seguro (persona y bienes)"]
[null,null,null,null,null,null,null,null,null,null,null,null,null,null,null,null,null,null,null,null,null,null,null,null,null,"J660311 Planes de seguro contra accidentes y contra incendios"]
[null,null,null,null,null,null,null,null,null,null,null,null,null,null,null,null,null,null,null,null,null,null,null,null,null,"J660312 Seguro médico"]
[null,null,null,null,null,null,null,null,null,null,null,null,null,null,null,null,null,null,null,null,null,null,null,null,null,"J660313 Seguro de cosas"]
[null,null,null,null,null,null,null,null,null,null,null,null,null,null,null,null,null,null,null,null,null,null,null,null,null,"J660314 Seguro de automóviles, seguro marítimo y aeronáutico, seguro de transporte"]
[null,null,null,null,null,null,null,null,null,null,null,null,null,null,null,null,null,null,null,null,null,null,null,null,null,"J660315 Seguro contra pérdidas pecuniarias y seguro de responsabilidad civil"]
[null,null,null,null,null,null,null,null,null,null,null,null,null,null,null,null,null,null,null,null,null,null,null,null,null,"J672011 Actividades de los servicios de corredores de seguros"]
[null,null,null,null,null,null,null,null,null,null,null,null,null,null,null,null,null,null,null,null,null,null,null,null,null,"K70000 Actividades inmobiliarias empresariales y de alquiler"]
[null,null,null,null,null,null,null,null,null,null,null,null,null,null,null,null,null,null,null,null,null,null,null,null,null,"K701011 Arrendamiento de edificios de apartamentos y viviendas"]
[null,null,null,null,null,null,null,null,null,null,null,null,null,null,null,null,null,null,null,null,null,null,null,null,null,"K701012 Arrendamiento de edificios no residenciales, galpones incluso salas de exposicio"]
[null,null,null,null,null,null,null,null,null,null,null,null,null,null,null,null,null,null,null,null,null,null,null,null,null,"K72000 Informática y actividades conexas"]
[null,null,null,null,null,null,null,null,null,null,null,null,null,null,null,null,null,null,null,null,null,null,null,null,null,"K72101 Servicios de consultores en tecnología de la información"]
[null,null,null,null,null,null,null,null,null,null,null,null,null,null,null,null,null,null,null,null,null,null,null,null,null,"K72291 Análisis, diseño y producción programas informática según necesidad del usuario"]
[null,null,null,null,null,null,null,null,null,null,null,null,null,null,null,null,null,null,null,null,null,null,null,null,null,"K722911 Análisis necesidades y problemas del usuario, asesoramiento solución más idónea"]
[null,null,null,null,null,null,null,null,null,null,null,null,null,null,null,null,null,null,null,null,null,null,null,null,null,"K722912 Producción de programas de informática adaptados a las necesidades del usuario"]
[null,null,null,null,null,null,null,null,null,null,null,null,null,null,null,null,null,null,null,null,null,null,null,null,null,"K72292 Desarrollo, producción, suministro y documentación de programas de informática."]
[null,null,null,null,null,null,null,null,null,null,null,null,null,null,null,null,null,null,null,null,null,null,null,null,null,"K72294 Mantenimiento de programas de informática"]
[null,null,null,null,null,null,null,null,null,null,null,null,null,null,null,null,null,null,null,null,null,null,null,null,null,"K72295 Diseño de páginas web"]
[null,null,null,null,null,null,null,null,null,null,null,null,null,null,null,null,null,null,null,null,null,null,null,null,null,"K723014 Servicio de impresión en el procesamiento de datos"]
[null,null,null,null,null,null,null,null,null,null,null,null,null,null,null,null,null,null,null,null,null,null,null,null,null,"K725011 Mantenimiento y reparación de ordenadores y equipo periférico de informática"]
[null,null,null,null,null,null,null,null,null,null,null,null,null,null,null,null,null,null,null,null,null,null,null,null,null,"K74100 Actividades juridicas y contabilidad"]
[null,null,null,null,null,null,null,null,null,null,null,null,null,null,null,null,null,null,null,null,null,null,null,null,null,"K74111 Representación de intereses de partes ante tribunales (abogados)"]
[null,null,null,null,null,null,null,null,null,null,null,null,null,null,null,null,null,null,null,null,null,null,null,null,null,"K741111 Asesoramiento y representación en casos civiles"]
[null,null,null,null,null,null,null,null,null,null,null,null,null,null,null,null,null,null,null,null,null,null,null,null,null,"K741112 Asesoramiento y representación en acciones penales"]
[null,null,null,null,null,null,null,null,null,null,null,null,null,null,null,null,null,null,null,null,null,null,null,null,null,"K741113 Asesoramiento y representación en relación con conflictos laborales"]
[null,null,null,null,null,null,null,null,null,null,null,null,null,null,null,null,null,null,null,null,null,null,null,null,null,"K74112 Prestación de asesoramiento en general, preparación de documentos jurídicos"]
[null,null,null,null,null,null,null,null,null,null,null,null,null,null,null,null,null,null,null,null,null,null,null,null,null,"K741121 Escrituras de constitución, contratos de sociedad colectiva"]
[null,null,null,null,null,null,null,null,null,null,null,null,null,null,null,null,null,null,null,null,null,null,null,null,null,"K741121A Otros documentos para la formación de sociedades"]
[null,null,null,null,null,null,null,null,null,null,null,null,null,null,null,null,null,null,null,null,null,null,null,null,null,"K741122 Patentes y derechos de autor"]
[null,null,null,null,null,null,null,null,null,null,null,null,null,null,null,null,null,null,null,null,null,null,null,null,null,"K741123 Preparación de escrituras, testamentos, fideicomisos."]
[null,null,null,null,null,null,null,null,null,null,null,null,null,null,null,null,null,null,null,null,null,null,null,null,null,"K74113 Otras actividades de escribanos, mediadores, examinadores y arbitradores"]
[null,null,null,null,null,null,null,null,null,null,null,null,null,null,null,null,null,null,null,null,null,null,null,null,null,"K74124 Actividades asesoramiento y representación (excepto la representación jurídica)"]
[null,null,null,null,null,null,null,null,null,null,null,null,null,null,null,null,null,null,null,null,null,null,null,null,null,"K74131 Estudio posibilidad de comercialización, aceptación de los productos"]
[null,null,null,null,null,null,null,null,null,null,null,null,null,null,null,null,null,null,null,null,null,null,null,null,null,"K74131A Estudio del grado de difusión de los productos"]
[null,null,null,null,null,null,null,null,null,null,null,null,null,null,null,null,null,null,null,null,null,null,null,null,null,"K74131B Estudios sobre los hábitos de compra de los consumidores"]
[null,null,null,null,null,null,null,null,null,null,null,null,null,null,null,null,null,null,null,null,null,null,null,null,null,"K74132 Encuestas de opinión pública: cuestiones políticas, económicas y sociales."]
[null,null,null,null,null,null,null,null,null,null,null,null,null,null,null,null,null,null,null,null,null,null,null,null,null,"K74132B Análisis estadístico de los resultados de encuestas de opinión pública"]
[null,null,null,null,null,null,null,null,null,null,null,null,null,null,null,null,null,null,null,null,null,null,null,null,null,"K741411 Asesoramiento de relaciones públicas y comunicación"]
[null,null,null,null,null,null,null,null,null,null,null,null,null,null,null,null,null,null,null,null,null,null,null,null,null,"K74200 Actividades de arquitectura e ingenieria"]
[null,null,null,null,null,null,null,null,null,null,null,null,null,null,null,null,null,null,null,null,null,null,null,null,null,"K742111 Diseño de edificios, dibujo de planos de construcción"]
[null,null,null,null,null,null,null,null,null,null,null,null,null,null,null,null,null,null,null,null,null,null,null,null,null,"K742112 Supervisión de obras"]
[null,null,null,null,null,null,null,null,null,null,null,null,null,null,null,null,null,null,null,null,null,null,null,null,null,"K742113 Planificación urbana y arquitectura paisajista"]
[null,null,null,null,null,null,null,null,null,null,null,null,null,null,null,null,null,null,null,null,null,null,null,null,null,"K742131 Asesoramiento técnico a proyectos de ingeniería civil, hidráulica y de tráfico"]
[null,null,null,null,null,null,null,null,null,null,null,null,null,null,null,null,null,null,null,null,null,null,null,null,null,"K742132 Elaboración realización de proyectos de ingeniería."]
[null,null,null,null,null,null,null,null,null,null,null,null,null,null,null,null,null,null,null,null,null,null,null,null,null,"K74214 Elaborar proyectos refrigeración saneamiento contaminacion"]
[null,null,null,null,null,null,null,null,null,null,null,null,null,null,null,null,null,null,null,null,null,null,null,null,null,"K74218 Actividad de consultores técnicos distintos de los ingenieros"]
[null,null,null,null,null,null,null,null,null,null,null,null,null,null,null,null,null,null,null,null,null,null,null,null,null,"K742215 Ensayos de rendimiento de maquinaria: motores, automóviles, equipo electrónico"]
[null,null,null,null,null,null,null,null,null,null,null,null,null,null,null,null,null,null,null,null,null,null,null,null,null,"K742218 Ensayos y mediciones de indicadores ambientales: contaminación del aire y agua."]
[null,null,null,null,null,null,null,null,null,null,null,null,null,null,null,null,null,null,null,null,null,null,null,null,null,"K74300 Publicidad"]
[null,null,null,null,null,null,null,null,null,null,null,null,null,null,null,null,null,null,null,null,null,null,null,null,null,"K74301 Creación y realización de campañas publicitarias"]
[null,null,null,null,null,null,null,null,null,null,null,null,null,null,null,null,null,null,null,null,null,null,null,null,null,"K743011 Creación y colocación de anuncios en estaciones de radio y de televisión"]
[null,null,null,null,null,null,null,null,null,null,null,null,null,null,null,null,null,null,null,null,null,null,null,null,null,"K743011A Creación y colocación de anuncios en periódicos, revistas, Internet y otro medio"]
[null,null,null,null,null,null,null,null,null,null,null,null,null,null,null,null,null,null,null,null,null,null,null,null,null,"K743012 Creación y colocación de anuncios publicidad al aire libre: carteles , tableros."]
[null,null,null,null,null,null,null,null,null,null,null,null,null,null,null,null,null,null,null,null,null,null,null,null,null,"K743012A Creación y colocación anuncios publicidad al aire libre: boletines y carteleras"]
[null,null,null,null,null,null,null,null,null,null,null,null,null,null,null,null,null,null,null,null,null,null,null,null,null,"K743012B Creación y colocación anuncios publicidad al aire libre:decoración escaparates"]
[null,null,null,null,null,null,null,null,null,null,null,null,null,null,null,null,null,null,null,null,null,null,null,null,null,"K743012C Creación y colocación anuncios publicidad al aire libre: diseño salas exhibición"]
[null,null,null,null,null,null,null,null,null,null,null,null,null,null,null,null,null,null,null,null,null,null,null,null,null,"K743012D Creación y colocación anuncios publicidad al aire libre:anuncios autos y autobus"]
[null,null,null,null,null,null,null,null,null,null,null,null,null,null,null,null,null,null,null,null,null,null,null,null,null,"K743013 Representación de los medios de difusión, a saber, la venta de tiempo"]
[null,null,null,null,null,null,null,null,null,null,null,null,null,null,null,null,null,null,null,null,null,null,null,null,null,"K743013A Representación espacio diversos medios difusión interesados obtención anuncios"]
[null,null,null,null,null,null,null,null,null,null,null,null,null,null,null,null,null,null,null,null,null,null,null,null,null,"K743015 Distribución y entrega de materiales y muestras de publicidad"]
[null,null,null,null,null,null,null,null,null,null,null,null,null,null,null,null,null,null,null,null,null,null,null,null,null,"K743016 Alquiler de espacios de publicidad en vallas publicitarias."]
[null,null,null,null,null,null,null,null,null,null,null,null,null,null,null,null,null,null,null,null,null,null,null,null,null,"K74900 Recursos Humanos, seguridad y transporte"]
[null,null,null,null,null,null,null,null,null,null,null,null,null,null,null,null,null,null,null,null,null,null,null,null,null,"K74911 Búsqueda, selección, recomendación y colocación Candidatos Empleos"]
[null,null,null,null,null,null,null,null,null,null,null,null,null,null,null,null,null,null,null,null,null,null,null,null,null,"K749111 Formulación de descripción de funciones"]
[null,null,null,null,null,null,null,null,null,null,null,null,null,null,null,null,null,null,null,null,null,null,null,null,null,"K749112 Selección y examen de candidatos"]
[null,null,null,null,null,null,null,null,null,null,null,null,null,null,null,null,null,null,null,null,null,null,null,null,null,"K74912 Actividades de búsqueda y colocación de personal ejecutivo (cazatalentos)"]
[null,null,null,null,null,null,null,null,null,null,null,null,null,null,null,null,null,null,null,null,null,null,null,null,null,"K749131 Suministro a terceros de personal contratado y remunerado (mano de obra)"]
[null,null,null,null,null,null,null,null,null,null,null,null,null,null,null,null,null,null,null,null,null,null,null,null,null,"K74921 Vigilancia, custodia y otras actividades de protección:"]
[null,null,null,null,null,null,null,null,null,null,null,null,null,null,null,null,null,null,null,null,null,null,null,null,null,"K749211 Transporte de objetos de valor"]
[null,null,null,null,null,null,null,null,null,null,null,null,null,null,null,null,null,null,null,null,null,null,null,null,null,"K749213 Actividades de patrullaje calles, guardianes y serenos p/ edificios apartamentos"]
[null,null,null,null,null,null,null,null,null,null,null,null,null,null,null,null,null,null,null,null,null,null,null,null,null,"K749213A Actividades de guardianes y serenos oficinas, fábricas, obras en construcción."]
[null,null,null,null,null,null,null,null,null,null,null,null,null,null,null,null,null,null,null,null,null,null,null,null,null,"K749213B Actividades de guardianes y serenos, hoteles, teatros, salones baile, estadios."]
[null,null,null,null,null,null,null,null,null,null,null,null,null,null,null,null,null,null,null,null,null,null,null,null,null,"K749213C Actividades de guardianes y serenos centros comerciales."]
[null,null,null,null,null,null,null,null,null,null,null,null,null,null,null,null,null,null,null,null,null,null,null,null,null,"K749216 Vigilancia/inspección por control remoto de equipo técnico, edificios."]
[null,null,null,null,null,null,null,null,null,null,null,null,null,null,null,null,null,null,null,null,null,null,null,null,null,"K74922 Asesoramiento para industrias, referente a la selección del personal"]
[null,null,null,null,null,null,null,null,null,null,null,null,null,null,null,null,null,null,null,null,null,null,null,null,null,"K74922A Asesoramiento para industrias, particulares y organismos públicos en seguridad."]
[null,null,null,null,null,null,null,null,null,null,null,null,null,null,null,null,null,null,null,null,null,null,null,null,null,"K74930 Actividades de limpieza"]
[null,null,null,null,null,null,null,null,null,null,null,null,null,null,null,null,null,null,null,null,null,null,null,null,null,"K74931 Limpieza de interior todo tipo edificios, como oficinas, fábricas, almacenes."]
[null,null,null,null,null,null,null,null,null,null,null,null,null,null,null,null,null,null,null,null,null,null,null,null,null,"K74931A Limpieza interior local de instituciones, local comercial y de profesionales"]
[null,null,null,null,null,null,null,null,null,null,null,null,null,null,null,null,null,null,null,null,null,null,null,null,null,"K74931B Limpieza de interior de edificios de apartamentos"]
[null,null,null,null,null,null,null,null,null,null,null,null,null,null,null,null,null,null,null,null,null,null,null,null,null,"K74932 Limpieza de ventanas"]
[null,null,null,null,null,null,null,null,null,null,null,null,null,null,null,null,null,null,null,null,null,null,null,null,null,"K74933 Limpieza de chimeneas y hogares de chimenea, hornos, incineradores, calderas"]
[null,null,null,null,null,null,null,null,null,null,null,null,null,null,null,null,null,null,null,null,null,null,null,null,null,"K74933A Limpieza de conductos de ventilación y extractores de aire"]
[null,null,null,null,null,null,null,null,null,null,null,null,null,null,null,null,null,null,null,null,null,null,null,null,null,"K74934 Limpieza de maquinaria industrial"]
[null,null,null,null,null,null,null,null,null,null,null,null,null,null,null,null,null,null,null,null,null,null,null,null,null,"K74935 Esterilización de objetos y locales"]
[null,null,null,null,null,null,null,null,null,null,null,null,null,null,null,null,null,null,null,null,null,null,null,null,null,"K74937 Actividades de desinfección y exterminio en edificios, buques, trenes."]
[null,null,null,null,null,null,null,null,null,null,null,null,null,null,null,null,null,null,null,null,null,null,null,null,null,"K74937A Limpieza de tanques industriales/residencial para agua potable"]
[null,null,null,null,null,null,null,null,null,null,null,null,null,null,null,null,null,null,null,null,null,null,null,null,null,"K74938 Limpieza de trenes, autobuses, aeronaves."]
[null,null,null,null,null,null,null,null,null,null,null,null,null,null,null,null,null,null,null,null,null,null,null,null,null,"K74940 Diseño, decoración y fotografia"]
[null,null,null,null,null,null,null,null,null,null,null,null,null,null,null,null,null,null,null,null,null,null,null,null,null,"K74941 Producción fotográfica comercial y para el consumidor:"]
[null,null,null,null,null,null,null,null,null,null,null,null,null,null,null,null,null,null,null,null,null,null,null,null,null,"K749411 Realización retratos fotográficos p/ pasaportes, graduaciones académicas, bodas."]
[null,null,null,null,null,null,null,null,null,null,null,null,null,null,null,null,null,null,null,null,null,null,null,null,null,"K749412 Fotografías para anuncios comerciales, p/ editoriales, bienes raíces y turismo"]
[null,null,null,null,null,null,null,null,null,null,null,null,null,null,null,null,null,null,null,null,null,null,null,null,null,"K749412A Fotografías para actividades relacionadas con la moda"]
[null,null,null,null,null,null,null,null,null,null,null,null,null,null,null,null,null,null,null,null,null,null,null,null,null,"K74990 Organización de ferias, exposiciones y congresos."]
[null,null,null,null,null,null,null,null,null,null,null,null,null,null,null,null,null,null,null,null,null,null,null,null,null,"K74994 Servicio de diseño de telas, prendas vestir, calzado, joyas, otros artículo moda"]
[null,null,null,null,null,null,null,null,null,null,null,null,null,null,null,null,null,null,null,null,null,null,null,null,null,"K74994A Servicio de diseño grafico, muebles y otros artículos de decoración interior"]
[null,null,null,null,null,null,null,null,null,null,null,null,null,null,null,null,null,null,null,null,null,null,null,null,null,"K74994B Servicio de diseño efectos personales y enseres domésticos"]
[null,null,null,null,null,null,null,null,null,null,null,null,null,null,null,null,null,null,null,null,null,null,null,null,null,"K74995 Actividades de decoración de interiores y de diseño de pabellones"]
[null,null,null,null,null,null,null,null,null,null,null,null,null,null,null,null,null,null,null,null,null,null,null,null,null,"K74995A Organización de ferias, exposiciones y congresos."]
[null,null,null,null,null,null,null,null,null,null,null,null,null,null,null,null,null,null,null,null,null,null,null,null,null,"K74997 Servicio de promoción comercial"]
[null,null,null,null,null,null,null,null,null,null,null,null,null,null,null,null,null,null,null,null,null,null,null,null,null,"K74998 Atencion al cliente"]
[null,null,null,null,null,null,null,null,null,null,null,null,null,null,null,null,null,null,null,null,null,null,null,null,null,"K749981 Actividades de contestación de teléfonos y centralistas de atencion al cliente"]
[null,null,null,null,null,null,null,null,null,null,null,null,null,null,null,null,null,null,null,null,null,null,null,null,null,"L75000 Consultoria de normativa y procedimientos"]
[null,null,null,null,null,null,null,null,null,null,null,null,null,null,null,null,null,null,null,null,null,null,null,null,null,"L751221 Servicio de metrología"]
[null,null,null,null,null,null,null,null,null,null,null,null,null,null,null,null,null,null,null,null,null,null,null,null,null,"L751412 Formulación y aplicación de normas y procedimientos de selección de personal"]
[null,null,null,null,null,null,null,null,null,null,null,null,null,null,null,null,null,null,null,null,null,null,null,null,null,"L751412A Formulación y aplicación de normas y procedimientos de calificación de personal"]
[null,null,null,null,null,null,null,null,null,null,null,null,null,null,null,null,null,null,null,null,null,null,null,null,null,"L751412B Formulación y aplicación de normas y procedimientos de ascensos de personal"]
[null,null,null,null,null,null,null,null,null,null,null,null,null,null,null,null,null,null,null,null,null,null,null,null,null,"L751412C Formulación y aplicación de normas y procedimientos de descripción de cargo"]
[null,null,null,null,null,null,null,null,null,null,null,null,null,null,null,null,null,null,null,null,null,null,null,null,null,"L751412D Formulación y aplicación de normas y procedimientos evaluación de personal"]
[null,null,null,null,null,null,null,null,null,null,null,null,null,null,null,null,null,null,null,null,null,null,null,null,null,"L751412E Formulación y aplicación de normas y procedimientos clasificación de personal"]
[null,null,null,null,null,null,null,null,null,null,null,null,null,null,null,null,null,null,null,null,null,null,null,null,null,"L751412F Formulación y aplicación de normas y procedimientos reglamentos de personal"]
[null,null,null,null,null,null,null,null,null,null,null,null,null,null,null,null,null,null,null,null,null,null,null,null,null,"M80000 Enseñanza"]
[null,null,null,null,null,null,null,null,null,null,null,null,null,null,null,null,null,null,null,null,null,null,null,null,null,"M803011 Enseñanza postsecundaria sin obtención de título universitario o su equivalente"]
[null,null,null,null,null,null,null,null,null,null,null,null,null,null,null,null,null,null,null,null,null,null,null,null,null,"M80902 Instrucción en temas generales y profesionales (Capacitación)"]
[null,null,null,null,null,null,null,null,null,null,null,null,null,null,null,null,null,null,null,null,null,null,null,null,null,"N85100 Paramédicos, ambulancias y servicio pre-empleo"]
[null,null,null,null,null,null,null,null,null,null,null,null,null,null,null,null,null,null,null,null,null,null,null,null,null,"N85112 Servicios de personal médico y paramédico"]
[null,null,null,null,null,null,null,null,null,null,null,null,null,null,null,null,null,null,null,null,null,null,null,null,null,"N85196 Transporte de pacientes en ambulancias corrientes y ambulancias aéreas"]
[null,null,null,null,null,null,null,null,null,null,null,null,null,null,null,null,null,null,null,null,null,null,null,null,null,"N85113 Rayos X y laboratorios"]
[null,null,null,null,null,null,null,null,null,null,null,null,null,null,null,null,null,null,null,null,null,null,null,null,null,"N851131 Servicios de laboratorios e instalaciones técnicas, radiología y anestesiología"]
[null,null,null,null,null,null,null,null,null,null,null,null,null,null,null,null,null,null,null,null,null,null,null,null,null,"N85190 Centro de salud física (Gimnasio)"]
[null,null,null,null,null,null,null,null,null,null,null,null,null,null,null,null,null,null,null,null,null,null,null,null,null,"N85192 Actividades de enfermeros y otro personal paramédico especializado en optometría"]
[null,null,null,null,null,null,null,null,null,null,null,null,null,null,null,null,null,null,null,null,null,null,null,null,null,"N85192A Actividades de fisioterapeutas, parteras, hidroterapia, masaje, ergoterapia."]
[null,null,null,null,null,null,null,null,null,null,null,null,null,null,null,null,null,null,null,null,null,null,null,null,null,"N85192B Actividades de logoterapia, podología, homeopatía, quiropráctica , acupuntura."]
[null,null,null,null,null,null,null,null,null,null,null,null,null,null,null,null,null,null,null,null,null,null,null,null,null,"N85300 Servicios de Guarderías y colegios"]
[null,null,null,null,null,null,null,null,null,null,null,null,null,null,null,null,null,null,null,null,null,null,null,null,null,"N853113 Guarderías con internado"]
[null,null,null,null,null,null,null,null,null,null,null,null,null,null,null,null,null,null,null,null,null,null,null,null,null,"N85323 Actividades guarderías (casa cuna), con atención diurna a niños discapacitados"]
[null,null,null,null,null,null,null,null,null,null,null,null,null,null,null,null,null,null,null,null,null,null,null,null,null,"O90000 Mantenimiento de áreas verdes"]
[null,null,null,null,null,null,null,null,null,null,null,null,null,null,null,null,null,null,null,null,null,null,null,null,null,"O90011 Barrido y regado de calles, plazas, caminos, mercados, jardin y parques públicos"]
[null,null,null,null,null,null,null,null,null,null,null,null,null,null,null,null,null,null,null,null,null,null,null,null,null,"O90011A Remonicion de nieve y hielo en las carreteras, las pistas de los aeropuesrtos."]
[null,null,null,null,null,null,null,null,null,null,null,null,null,null,null,null,null,null,null,null,null,null,null,null,null,"O90007 Limpieza de tanquillas y drenajes"]
[null,null,null,null,null,null,null,null,null,null,null,null,null,null,null,null,null,null,null,null,null,null,null,null,null,"O900071 Tratamiento y eliminación desecho contaminado (animal y otros)"]
[null,null,null,null,null,null,null,null,null,null,null,null,null,null,null,null,null,null,null,null,null,null,null,null,null,"O90007A Actividades especializadas de lucha contra la contaminacion."]
[null,null,null,null,null,null,null,null,null,null,null,null,null,null,null,null,null,null,null,null,null,null,null,null,null,"O90007B Mamtenimiento y limpieza de cloacas y alcantarillas"]
[null,null,null,null,null,null,null,null,null,null,null,null,null,null,null,null,null,null,null,null,null,null,null,null,null,"O92132 Locución"]
[null,null,null,null,null,null,null,null,null,null,null,null,null,null,null,null,null,null,null,null,null,null,null,null,null,"O921321 Difusión de programas de radio y televisión"]
[null,null,null,null,null,null,null,null,null,null,null,null,null,null,null,null,null,null,null,null,null,null,null,null,null,"O92141 Contratación de músicos y shows musicales"]
[null,null,null,null,null,null,null,null,null,null,null,null,null,null,null,null,null,null,null,null,null,null,null,null,null,"O921412 Actividades de artistas, actores, directores, músicos, autores."]
[null,null,null,null,null,null,null,null,null,null,null,null,null,null,null,null,null,null,null,null,null,null,null,null,null,"O92142 Servicio de sonido"]
[null,null,null,null,null,null,null,null,null,null,null,null,null,null,null,null,null,null,null,null,null,null,null,null,null,"O921412A Actividades: conferenciantes y disertantes, escultores, pintores, caricaturistas"]
[null,null,null,null,null,null,null,null,null,null,null,null,null,null,null,null,null,null,null,null,null,null,null,null,null,"O921412B Actividades de grabadores, aguafuertistas, escenógrafos y montadores."]
[null,null,null,null,null,null,null,null,null,null,null,null,null,null,null,null,null,null,null,null,null,null,null,null,null,"O92143 Entradas y boletos (eventos)"]
[null,null,null,null,null,null,null,null,null,null,null,null,null,null,null,null,null,null,null,null,null,null,null,null,null,"O921431 Funcionamiento de agencias de venta de billetes"]
[null,null,null,null,null,null,null,null,null,null,null,null,null,null,null,null,null,null,null,null,null,null,null,null,null,"O92322 Historiadora"]
[null,null,null,null,null,null,null,null,null,null,null,null,null,null,null,null,null,null,null,null,null,null,null,null,null,"O923221 Actividad de funcionamiento y preservacion de la historia"]
[null,null,null,null,null,null,null,null,null,null,null,null,null,null,null,null,null,null,null,null,null,null,null,null,null,"O92410 Entrenadores deportivos"]
[null,null,null,null,null,null,null,null,null,null,null,null,null,null,null,null,null,null,null,null,null,null,null,null,null,"O92414 Actividades por cuenta propia deportistas y atletas, jueces árbitros, entrenador"]
[null,null,null,null,null,null,null,null,null,null,null,null,null,null,null,null,null,null,null,null,null,null,null,null,null,"O92414A Actividades por cuenta propia cronometradores, instructores, profesores."]
[null,null,null,null,null,null,null,null,null,null,null,null,null,null,null,null,null,null,null,null,null,null,null,null,null,"O92411 Centro de salud física (Gimnasio)"]
[null,null,null,null,null,null,null,null,null,null,null,null,null,null,null,null,null,null,null,null,null,null,null,null,null,"O924111 Funcionamiento de instalaciones para deportes al aire libre y bajo techo"]
[null,null,null,null,null,null,null,null,null,null,null,null,null,null,null,null,null,null,null,null,null,null,null,null,null,"O92412 Convenios deportivos"]
[null,null,null,null,null,null,null,null,null,null,null,null,null,null,null,null,null,null,null,null,null,null,null,null,null,"O924121 Organización y dirección de actividades deportivas al aire libre y bajo techo"]
[null,null,null,null,null,null,null,null,null,null,null,null,null,null,null,null,null,null,null,null,null,null,null,null,null,"O92413 Agente de jugadores y patrocinio"]
[null,null,null,null,null,null,null,null,null,null,null,null,null,null,null,null,null,null,null,null,null,null,null,null,null,"O924131 Actividades relacionadas con la producción y promoción de espectáculos deportivo"]
[null,null,null,null,null,null,null,null,null,null,null,null,null,null,null,null,null,null,null,null,null,null,null,null,null,"O93000 Servicio de valet parking en estacionamientos"]
[null,null,null,null,null,null,null,null,null,null,null,null,null,null,null,null,null,null,null,null,null,null,null,null,null,"O93096 Limpiabotas, porteadores de maletas, aparcadores de vehículos."]
[]
[]
[]
[]
[]
[]
[]
[null,null,null,null,null,null,null,null,null,null,null,null,null,null,null,null,null,null,null,null,null,null,null,null,null,"O93096 Limpiabotas, porteadores de maletas, aparcadores de vehículos."]

{"sheet":"Instructivo","index":1,"n_rows":92,"n_cols":7,"rows_kept":92,"cut":false,"hidden":false,"merged":[[91,0,91,14],[36,0,36,13],[28,0,28,13],[21,0,21,13],[11,0,11,13],[77,0,77,13],[52,0,52,13]]}
[]
[]
[]
["Dirección de Compras"]
[]
[null,null,null,null,null,null,"INSTRUCTIVO DE LLENADO"]
[]
["En este instructivo le indicamos paso a paso como debe llenar su formulario de contacto."]
["Por favor completar detalladamente la planilla a fin de realizar una adecuada clasificación de sus potenciales productos y/o servicios."]
[]
[]
["Paso 1 - Complete su información fiscal."]
[]
[]
[]
[]
[]
[]
[]
[]
[]
["Paso 2 - Marque con unas equis (X), e indique a que área(s) se dedica de acuerdo a su objeto social.  Ejemplo:"]
[]
[]
[]
[]
[]
[]
["Paso 3- Seleccione el tipo de material o servicio que ofrece, luego marque con una equis (X) según su tipo/naturaleza de proveedor (Distribuidor, fabricante o importador). Ejemplo:"]
[]
[]
[]
[]
[]
[]
[]
["Paso 4- Indique la siguiente información de las personas contacto."]
[]
[]
[]
[]
[]
[]
[]
[]
[]
[]
[]
[]
[]
[]
[]
["Paso 5- Describa los siguientes datos complementarios de la trayectoria de su empresa."]
[]
[]
[]
[]
[]
[]
[]
[]
[]
[]
[]
[]
[]
[]
[]
[]
[]
[]
[]
[]
[]
[]
[]
[]
["Paso 6 - Maque con una Equis (X) los documentos que posee actualmente; además indique si se encuentran vigentes. Ejemplo:"]
[]
[]
[]
[]
[]
[]
[]
[]
[]
[]
[]
[]
[]
["Paso 7 -Al culminar el llenado del formulario de contacto, debe guardar el documento en formato EXCEL y enviar a la dirección de correo electrónico: registro.proveedores@empresas-polar.com"]

{"sheet":"Base Datos","index":2,"n_rows":16,"n_cols":30,"rows_kept":16,"cut":false,"hidden":true,"merged":[]}
["Condición_Prov","Código SAP","Razón Social","Área","País","Estado","Clasificación del proveedor","Categoria","Marca","Sub.Categoria","Material","Sustrato","Persona Contacto 1","Persona Contacto 2","Director","Teléfono 1","Extensión 1","Teléfono 2","Extensión 2","Teléfono 3","Extensión 3","Celular 1 ","Celular 2 ","Celular Director","Correo 1","Correo 2","Correo Director","RIF","Página Web","Obervaciones"]
[{"$f":"+IF(Contacto!#REF!=\"X\",Contacto!#REF!,IF(Contacto!#REF!=\"X\",Contacto!#REF!,IF(Contacto!#REF!=\"X\",Contacto!#REF!,IF(Contacto!#REF!=\"X\",Contacto!#REF!,IF(Contacto!#REF!=\"X\",Contacto!#REF!)))))","v":{"$error":"#REF!"}},{"$f":"+IF(Contacto!#REF!=\"X\",Contacto!#REF!,\" \")","v":{"$error":"#REF!"}},{"$f":"+Contacto!$D$6","v":0},{"$f":"+IF(Contacto!$D$12=\"X\",Contacto!$D$11,(IF(Contacto!$G$12=\"X\",Contacto!$G$11,IF(Contacto!$H$12=\"X\",Contacto!$H$11,IF(Contacto!$I$12=\"X\",Contacto!$I$11,IF(Contacto!$J$12=\"X\",Contacto!$J$11,IF(Contacto!$L$12=\"X\",Contacto!$L$11)))))))","v":false},{"$f":"+Contacto!$D$8","v":0},{"$f":"+Contacto!$D$9","v":0},{"$f":"+IF(AND(K2=Contacto!D14,Contacto!I14=\"x\"),Contacto!$I$13,IF(Contacto!J14=\"X\",Contacto!$J$13,IF(Contacto!L14=\"X\",Contacto!$L$13)))","v":false},{"$f":"+Contacto!#REF!","v":{"$error":"#REF!"}},{"$f":"+IF(Contacto!#REF!='Base Datos'!K2,Contacto!#REF!,IF(Contacto!#REF!='Base Datos'!K2,Contacto!#REF!,IF(Contacto!#REF!='Base Datos'!K2,Contacto!#REF!,IF(Contacto!#REF!='Base Datos'!K2,Contacto!#REF!,IF(Contacto!#REF!='Base Datos'!K2,Contacto!#REF!,\"N/A\")))))","v":{"$error":"#REF!"}},null,{"$f":"+Contacto!D14","v":0},{"$f":"IF(+Contacto!#REF!=\"\",\"N/A\",Contacto!#REF!)","v":{"$error":"#REF!"}},{"$f":"IF(+Contacto!$D$31=\"\",\"\",Contacto!$D$31)","v":""},{"$f":"IF(+Contacto!$H$31=\"\",\"\",Contacto!$H$31)","v":""},{"$f":"IF(+Contacto!$J$31=\"\",\"\",Contacto!$J$31)","v":""},{"$f":"IF(+Contacto!$D$35=\"\",\"\",Contacto!$D$35)","v":""},null,{"$f":"IF(+Contacto!$H$35=\"\",\"\",Contacto!$H$35)","v":""},null,{"$f":"IF(+Contacto!$J$35=\"\",\"\",Contacto!$J$35)","v":""},null,{"$f":"IF(+Contacto!$G$31=\"\",\"\",Contacto!$G$31)","v":""},{"$f":"IF(+Contacto!$I$31=\"\",\"\",Contacto!$I$31)","v":""},{"$f":"IF(+Contacto!$L$31=\"\",\"\",Contacto!$L$31)","v":""},{"$f":"IF(+Contacto!$D$33=\"\",\"\",Contacto!$D$33)","v":""},{"$f":"IF(+Contacto!$H$33=\"\",\"\",Contacto!$H$33)","v":""},{"$f":"IF(Contacto!$J$33=\"\",\"\",Contacto!$J$33)","v":""},{"$f":"IF(+Contacto!$D$7=\"\",\"\",Contacto!$D$7)","v":""},{"$f":"IF(+Contacto!$D$38=\"\",\"\",Contacto!$D$38)","v":""},{"$f":"IF(+Contacto!$D$48=\"\",\"\",Contacto!$D$48)","v":""}]
[{"$f":"+IF(Contacto!#REF!=\"X\",Contacto!#REF!,IF(Contacto!#REF!=\"X\",Contacto!#REF!,IF(Contacto!#REF!=\"X\",Contacto!#REF!,IF(Contacto!#REF!=\"X\",Contacto!#REF!,IF(Contacto!#REF!=\"X\",Contacto!#REF!)))))","v":{"$error":"#REF!"}},{"$f":"+IF(Contacto!#REF!=\"X\",Contacto!#REF!,\" \")","v":{"$error":"#REF!"}},{"$f":"+Contacto!$D$6","v":0},{"$f":"+IF(Contacto!$D$12=\"X\",Contacto!$D$11,(IF(Contacto!$G$12=\"X\",Contacto!$G$11,IF(Contacto!$H$12=\"X\",Contacto!$H$11,IF(Contacto!$I$12=\"X\",Contacto!$I$11,IF(Contacto!$J$12=\"X\",Contacto!$J$11,IF(Contacto!$L$12=\"X\",Contacto!$L$11)))))))","v":false},{"$f":"+Contacto!$D$8","v":0},{"$f":"+Contacto!$D$9","v":0},{"$f":"+IF(AND(K3=Contacto!D15,Contacto!I15=\"x\"),Contacto!$I$13,IF(Contacto!J15=\"X\",Contacto!$J$13,IF(Contacto!L15=\"X\",Contacto!$L$13)))","v":false},{"$f":"+Contacto!#REF!","v":{"$error":"#REF!"}},{"$f":"+IF(Contacto!#REF!='Base Datos'!K3,Contacto!#REF!,IF(Contacto!#REF!='Base Datos'!K3,Contacto!#REF!,IF(Contacto!#REF!='Base Datos'!K3,Contacto!#REF!,IF(Contacto!#REF!='Base Datos'!K3,Contacto!#REF!,IF(Contacto!#REF!='Base Datos'!K3,Contacto!#REF!,\"N/A\")))))","v":{"$error":"#REF!"}},null,{"$f":"+Contacto!D15","v":0},{"$f":"IF(+Contacto!#REF!=\"\",\"N/A\",Contacto!#REF!)","v":{"$error":"#REF!"}},{"$f":"IF(+Contacto!$D$31=\"\",\"\",Contacto!$D$31)","v":""},{"$f":"IF(+Contacto!$H$31=\"\",\"\",Contacto!$H$31)","v":""},{"$f":"IF(+Contacto!$J$31=\"\",\"\",Contacto!$J$31)","v":""},{"$f":"IF(+Contacto!$D$35=\"\",\"\",Contacto!$D$35)","v":""},null,{"$f":"IF(+Contacto!$H$35=\"\",\"\",Contacto!$H$35)","v":""},null,{"$f":"IF(+Contacto!$J$35=\"\",\"\",Contacto!$J$35)","v":""},null,{"$f":"IF(+Contacto!$G$31=\"\",\"\",Contacto!$G$31)","v":""},{"$f":"IF(+Contacto!$I$31=\"\",\"\",Contacto!$I$31)","v":""},{"$f":"IF(+Contacto!$L$31=\"\",\"\",Contacto!$L$31)","v":""},{"$f":"IF(+Contacto!$D$33=\"\",\"\",Contacto!$D$33)","v":""},{"$f":"IF(+Contacto!$H$33=\"\",\"\",Contacto!$H$33)","v":""},{"$f":"IF(Contacto!$J$33=\"\",\"\",Contacto!$J$33)","v":""},{"$f":"IF(+Contacto!$D$7=\"\",\"\",Contacto!$D$7)","v":""},{"$f":"IF(+Contacto!$D$38=\"\",\"\",Contacto!$D$38)","v":""},{"$f":"IF(+Contacto!$D$48=\"\",\"\",Contacto!$D$48)","v":""}]
[{"$f":"+IF(Contacto!#REF!=\"X\",Contacto!#REF!,IF(Contacto!#REF!=\"X\",Contacto!#REF!,IF(Contacto!#REF!=\"X\",Contacto!#REF!,IF(Contacto!#REF!=\"X\",Contacto!#REF!,IF(Contacto!#REF!=\"X\",Contacto!#REF!)))))","v":{"$error":"#REF!"}},{"$f":"+IF(Contacto!#REF!=\"X\",Contacto!#REF!,\" \")","v":{"$error":"#REF!"}},{"$f":"+Contacto!$D$6","v":0},{"$f":"+IF(Contacto!$D$12=\"X\",Contacto!$D$11,(IF(Contacto!$G$12=\"X\",Contacto!$G$11,IF(Contacto!$H$12=\"X\",Contacto!$H$11,IF(Contacto!$I$12=\"X\",Contacto!$I$11,IF(Contacto!$J$12=\"X\",Contacto!$J$11,IF(Contacto!$L$12=\"X\",Contacto!$L$11)))))))","v":false},{"$f":"+Contacto!$D$8","v":0},{"$f":"+Contacto!$D$9","v":0},{"$f":"+IF(AND(K4=Contacto!D16,Contacto!I16=\"x\"),Contacto!$I$13,IF(Contacto!J16=\"X\",Contacto!$J$13,IF(Contacto!L16=\"X\",Contacto!$L$13)))","v":false},{"$f":"+Contacto!#REF!","v":{"$error":"#REF!"}},{"$f":"+IF(Contacto!#REF!='Base Datos'!K4,Contacto!#REF!,IF(Contacto!#REF!='Base Datos'!K4,Contacto!#REF!,IF(Contacto!#REF!='Base Datos'!K4,Contacto!#REF!,IF(Contacto!#REF!='Base Datos'!K4,Contacto!#REF!,IF(Contacto!#REF!='Base Datos'!K4,Contacto!#REF!,\"N/A\")))))","v":{"$error":"#REF!"}},null,{"$f":"+Contacto!D16","v":0},{"$f":"IF(+Contacto!#REF!=\"\",\"N/A\",Contacto!#REF!)","v":{"$error":"#REF!"}},{"$f":"IF(+Contacto!$D$31=\"\",\"\",Contacto!$D$31)","v":""},{"$f":"IF(+Contacto!$H$31=\"\",\"\",Contacto!$H$31)","v":""},{"$f":"IF(+Contacto!$J$31=\"\",\"\",Contacto!$J$31)","v":""},{"$f":"IF(+Contacto!$D$35=\"\",\"\",Contacto!$D$35)","v":""},null,{"$f":"IF(+Contacto!$H$35=\"\",\"\",Contacto!$H$35)","v":""},null,{"$f":"IF(+Contacto!$J$35=\"\",\"\",Contacto!$J$35)","v":""},null,{"$f":"IF(+Contacto!$G$31=\"\",\"\",Contacto!$G$31)","v":""},{"$f":"IF(+Contacto!$I$31=\"\",\"\",Contacto!$I$31)","v":""},{"$f":"IF(+Contacto!$L$31=\"\",\"\",Contacto!$L$31)","v":""},{"$f":"IF(+Contacto!$D$33=\"\",\"\",Contacto!$D$33)","v":""},{"$f":"IF(+Contacto!$H$33=\"\",\"\",Contacto!$H$33)","v":""},{"$f":"IF(Contacto!$J$33=\"\",\"\",Contacto!$J$33)","v":""},{"$f":"IF(+Contacto!$D$7=\"\",\"\",Contacto!$D$7)","v":""},{"$f":"IF(+Contacto!$D$38=\"\",\"\",Contacto!$D$38)","v":""},{"$f":"IF(+Contacto!$D$48=\"\",\"\",Contacto!$D$48)","v":""}]
[{"$f":"+IF(Contacto!#REF!=\"X\",Contacto!#REF!,IF(Contacto!#REF!=\"X\",Contacto!#REF!,IF(Contacto!#REF!=\"X\",Contacto!#REF!,IF(Contacto!#REF!=\"X\",Contacto!#REF!,IF(Contacto!#REF!=\"X\",Contacto!#REF!)))))","v":{"$error":"#REF!"}},{"$f":"+IF(Contacto!#REF!=\"X\",Contacto!#REF!,\" \")","v":{"$error":"#REF!"}},{"$f":"+Contacto!$D$6","v":0},{"$f":"+IF(Contacto!$D$12=\"X\",Contacto!$D$11,(IF(Contacto!$G$12=\"X\",Contacto!$G$11,IF(Contacto!$H$12=\"X\",Contacto!$H$11,IF(Contacto!$I$12=\"X\",Contacto!$I$11,IF(Contacto!$J$12=\"X\",Contacto!$J$11,IF(Contacto!$L$12=\"X\",Contacto!$L$11)))))))","v":false},{"$f":"+Contacto!$D$8","v":0},{"$f":"+Contacto!$D$9","v":0},{"$f":"+IF(AND(K5=Contacto!D17,Contacto!I17=\"x\"),Contacto!$I$13,IF(Contacto!J17=\"X\",Contacto!$J$13,IF(Contacto!L17=\"X\",Contacto!$L$13)))","v":false},{"$f":"+Contacto!#REF!","v":{"$error":"#REF!"}},{"$f":"+IF(Contacto!#REF!='Base Datos'!K5,Contacto!#REF!,IF(Contacto!#REF!='Base Datos'!K5,Contacto!#REF!,IF(Contacto!#REF!='Base Datos'!K5,Contacto!#REF!,IF(Contacto!#REF!='Base Datos'!K5,Contacto!#REF!,IF(Contacto!#REF!='Base Datos'!K5,Contacto!#REF!,\"N/A\")))))","v":{"$error":"#REF!"}},null,{"$f":"+Contacto!D17","v":0},{"$f":"IF(+Contacto!#REF!=\"\",\"N/A\",Contacto!#REF!)","v":{"$error":"#REF!"}},{"$f":"IF(+Contacto!$D$31=\"\",\"\",Contacto!$D$31)","v":""},{"$f":"IF(+Contacto!$H$31=\"\",\"\",Contacto!$H$31)","v":""},{"$f":"IF(+Contacto!$J$31=\"\",\"\",Contacto!$J$31)","v":""},{"$f":"IF(+Contacto!$D$35=\"\",\"\",Contacto!$D$35)","v":""},null,{"$f":"IF(+Contacto!$H$35=\"\",\"\",Contacto!$H$35)","v":""},null,{"$f":"IF(+Contacto!$J$35=\"\",\"\",Contacto!$J$35)","v":""},null,{"$f":"IF(+Contacto!$G$31=\"\",\"\",Contacto!$G$31)","v":""},{"$f":"IF(+Contacto!$I$31=\"\",\"\",Contacto!$I$31)","v":""},{"$f":"IF(+Contacto!$L$31=\"\",\"\",Contacto!$L$31)","v":""},{"$f":"IF(+Contacto!$D$33=\"\",\"\",Contacto!$D$33)","v":""},{"$f":"IF(+Contacto!$H$33=\"\",\"\",Contacto!$H$33)","v":""},{"$f":"IF(Contacto!$J$33=\"\",\"\",Contacto!$J$33)","v":""},{"$f":"IF(+Contacto!$D$7=\"\",\"\",Contacto!$D$7)","v":""},{"$f":"IF(+Contacto!$D$38=\"\",\"\",Contacto!$D$38)","v":""},{"$f":"IF(+Contacto!$D$48=\"\",\"\",Contacto!$D$48)","v":""}]
[{"$f":"+IF(Contacto!#REF!=\"X\",Contacto!#REF!,IF(Contacto!#REF!=\"X\",Contacto!#REF!,IF(Contacto!#REF!=\"X\",Contacto!#REF!,IF(Contacto!#REF!=\"X\",Contacto!#REF!,IF(Contacto!#REF!=\"X\",Contacto!#REF!)))))","v":{"$error":"#REF!"}},{"$f":"+IF(Contacto!#REF!=\"X\",Contacto!#REF!,\" \")","v":{"$error":"#REF!"}},{"$f":"+Contacto!$D$6","v":0},{"$f":"+IF(Contacto!$D$12=\"X\",Contacto!$D$11,(IF(Contacto!$G$12=\"X\",Contacto!$G$11,IF(Contacto!$H$12=\"X\",Contacto!$H$11,IF(Contacto!$I$12=\"X\",Contacto!$I$11,IF(Contacto!$J$12=\"X\",Contacto!$J$11,IF(Contacto!$L$12=\"X\",Contacto!$L$11)))))))","v":false},{"$f":"+Contacto!$D$8","v":0},{"$f":"+Contacto!$D$9","v":0},{"$f":"+IF(AND(K6=Contacto!D18,Contacto!I18=\"x\"),Contacto!$I$13,IF(Contacto!J18=\"X\",Contacto!$J$13,IF(Contacto!L18=\"X\",Contacto!$L$13)))","v":false},{"$f":"+Contacto!#REF!","v":{"$error":"#REF!"}},{"$f":"+IF(Contacto!#REF!='Base Datos'!K6,Contacto!#REF!,IF(Contacto!#REF!='Base Datos'!K6,Contacto!#REF!,IF(Contacto!#REF!='Base Datos'!K6,Contacto!#REF!,IF(Contacto!#REF!='Base Datos'!K6,Contacto!#REF!,IF(Contacto!#REF!='Base Datos'!K6,Contacto!#REF!,\"N/A\")))))","v":{"$error":"#REF!"}},null,{"$f":"+Contacto!D18","v":0},{"$f":"IF(+Contacto!#REF!=\"\",\"N/A\",Contacto!#REF!)","v":{"$error":"#REF!"}},{"$f":"IF(+Contacto!$D$31=\"\",\"\",Contacto!$D$31)","v":""},{"$f":"IF(+Contacto!$H$31=\"\",\"\",Contacto!$H$31)","v":""},{"$f":"IF(+Contacto!$J$31=\"\",\"\",Contacto!$J$31)","v":""},{"$f":"IF(+Contacto!$D$35=\"\",\"\",Contacto!$D$35)","v":""},null,{"$f":"IF(+Contacto!$H$35=\"\",\"\",Contacto!$H$35)","v":""},null,{"$f":"IF(+Contacto!$J$35=\"\",\"\",Contacto!$J$35)","v":""},null,{"$f":"IF(+Contacto!$G$31=\"\",\"\",Contacto!$G$31)","v":""},{"$f":"IF(+Contacto!$I$31=\"\",\"\",Contacto!$I$31)","v":""},{"$f":"IF(+Contacto!$L$31=\"\",\"\",Contacto!$L$31)","v":""},{"$f":"IF(+Contacto!$D$33=\"\",\"\",Contacto!$D$33)","v":""},{"$f":"IF(+Contacto!$H$33=\"\",\"\",Contacto!$H$33)","v":""},{"$f":"IF(Contacto!$J$33=\"\",\"\",Contacto!$J$33)","v":""},{"$f":"IF(+Contacto!$D$7=\"\",\"\",Contacto!$D$7)","v":""},{"$f":"IF(+Contacto!$D$38=\"\",\"\",Contacto!$D$38)","v":""},{"$f":"IF(+Contacto!$D$48=\"\",\"\",Contacto!$D$48)","v":""}]
[{"$f":"+IF(Contacto!#REF!=\"X\",Contacto!#REF!,IF(Contacto!#REF!=\"X\",Contacto!#REF!,IF(Contacto!#REF!=\"X\",Contacto!#REF!,IF(Contacto!#REF!=\"X\",Contacto!#REF!,IF(Contacto!#REF!=\"X\",Contacto!#REF!)))))","v":{"$error":"#REF!"}},{"$f":"+IF(Contacto!#REF!=\"X\",Contacto!#REF!,\" \")","v":{"$error":"#REF!"}},{"$f":"+Contacto!$D$6","v":0},{"$f":"+IF(Contacto!$D$12=\"X\",Contacto!$D$11,(IF(Contacto!$G$12=\"X\",Contacto!$G$11,IF(Contacto!$H$12=\"X\",Contacto!$H$11,IF(Contacto!$I$12=\"X\",Contacto!$I$11,IF(Contacto!$J$12=\"X\",Contacto!$J$11,IF(Contacto!$L$12=\"X\",Contacto!$L$11)))))))","v":false},{"$f":"+Contacto!$D$8","v":0},{"$f":"+Contacto!$D$9","v":0},{"$f":"+IF(AND(K7=Contacto!D19,Contacto!I19=\"x\"),Contacto!$I$13,IF(Contacto!J19=\"X\",Contacto!$J$13,IF(Contacto!L19=\"X\",Contacto!$L$13)))","v":false},{"$f":"+Contacto!#REF!","v":{"$error":"#REF!"}},{"$f":"+IF(Contacto!#REF!='Base Datos'!K7,Contacto!#REF!,IF(Contacto!#REF!='Base Datos'!K7,Contacto!#REF!,IF(Contacto!#REF!='Base Datos'!K7,Contacto!#REF!,IF(Contacto!#REF!='Base Datos'!K7,Contacto!#REF!,IF(Contacto!#REF!='Base Datos'!K7,Contacto!#REF!,\"N/A\")))))","v":{"$error":"#REF!"}},null,{"$f":"+Contacto!D19","v":0},{"$f":"IF(+Contacto!#REF!=\"\",\"N/A\",Contacto!#REF!)","v":{"$error":"#REF!"}},{"$f":"IF(+Contacto!$D$31=\"\",\"\",Contacto!$D$31)","v":""},{"$f":"IF(+Contacto!$H$31=\"\",\"\",Contacto!$H$31)","v":""},{"$f":"IF(+Contacto!$J$31=\"\",\"\",Contacto!$J$31)","v":""},{"$f":"IF(+Contacto!$D$35=\"\",\"\",Contacto!$D$35)","v":""},null,{"$f":"IF(+Contacto!$H$35=\"\",\"\",Contacto!$H$35)","v":""},null,{"$f":"IF(+Contacto!$J$35=\"\",\"\",Contacto!$J$35)","v":""},null,{"$f":"IF(+Contacto!$G$31=\"\",\"\",Contacto!$G$31)","v":""},{"$f":"IF(+Contacto!$I$31=\"\",\"\",Contacto!$I$31)","v":""},{"$f":"IF(+Contacto!$L$31=\"\",\"\",Contacto!$L$31)","v":""},{"$f":"IF(+Contacto!$D$33=\"\",\"\",Contacto!$D$33)","v":""},{"$f":"IF(+Contacto!$H$33=\"\",\"\",Contacto!$H$33)","v":""},{"$f":"IF(Contacto!$J$33=\"\",\"\",Contacto!$J$33)","v":""},{"$f":"IF(+Contacto!$D$7=\"\",\"\",Contacto!$D$7)","v":""},{"$f":"IF(+Contacto!$D$38=\"\",\"\",Contacto!$D$38)","v":""},{"$f":"IF(+Contacto!$D$48=\"\",\"\",Contacto!$D$48)","v":""}]
[{"$f":"+IF(Contacto!#REF!=\"X\",Contacto!#REF!,IF(Contacto!#REF!=\"X\",Contacto!#REF!,IF(Contacto!#REF!=\"X\",Contacto!#REF!,IF(Contacto!#REF!=\"X\",Contacto!#REF!,IF(Contacto!#REF!=\"X\",Contacto!#REF!)))))","v":{"$error":"#REF!"}},{"$f":"+IF(Contacto!#REF!=\"X\",Contacto!#REF!,\" \")","v":{"$error":"#REF!"}},{"$f":"+Contacto!$D$6","v":0},{"$f":"+IF(Contacto!$D$12=\"X\",Contacto!$D$11,(IF(Contacto!$G$12=\"X\",Contacto!$G$11,IF(Contacto!$H$12=\"X\",Contacto!$H$11,IF(Contacto!$I$12=\"X\",Contacto!$I$11,IF(Contacto!$J$12=\"X\",Contacto!$J$11,IF(Contacto!$L$12=\"X\",Contacto!$L$11)))))))","v":false},{"$f":"+Contacto!$D$8","v":0},{"$f":"+Contacto!$D$9","v":0},{"$f":"+IF(AND(K8=Contacto!D20,Contacto!I20=\"x\"),Contacto!$I$13,IF(Contacto!J20=\"X\",Contacto!$J$13,IF(Contacto!L20=\"X\",Contacto!$L$13)))","v":false},{"$f":"+Contacto!#REF!","v":{"$error":"#REF!"}},{"$f":"+IF(Contacto!#REF!='Base Datos'!K8,Contacto!#REF!,IF(Contacto!#REF!='Base Datos'!K8,Contacto!#REF!,IF(Contacto!#REF!='Base Datos'!K8,Contacto!#REF!,IF(Contacto!#REF!='Base Datos'!K8,Contacto!#REF!,IF(Contacto!#REF!='Base Datos'!K8,Contacto!#REF!,\"N/A\")))))","v":{"$error":"#REF!"}},null,{"$f":"+Contacto!D20","v":0},{"$f":"IF(+Contacto!#REF!=\"\",\"N/A\",Contacto!#REF!)","v":{"$error":"#REF!"}},{"$f":"IF(+Contacto!$D$31=\"\",\"\",Contacto!$D$31)","v":""},{"$f":"IF(+Contacto!$H$31=\"\",\"\",Contacto!$H$31)","v":""},{"$f":"IF(+Contacto!$J$31=\"\",\"\",Contacto!$J$31)","v":""},{"$f":"IF(+Contacto!$D$35=\"\",\"\",Contacto!$D$35)","v":""},null,{"$f":"IF(+Contacto!$H$35=\"\",\"\",Contacto!$H$35)","v":""},null,{"$f":"IF(+Contacto!$J$35=\"\",\"\",Contacto!$J$35)","v":""},null,{"$f":"IF(+Contacto!$G$31=\"\",\"\",Contacto!$G$31)","v":""},{"$f":"IF(+Contacto!$I$31=\"\",\"\",Contacto!$I$31)","v":""},{"$f":"IF(+Contacto!$L$31=\"\",\"\",Contacto!$L$31)","v":""},{"$f":"IF(+Contacto!$D$33=\"\",\"\",Contacto!$D$33)","v":""},{"$f":"IF(+Contacto!$H$33=\"\",\"\",Contacto!$H$33)","v":""},{"$f":"IF(Contacto!$J$33=\"\",\"\",Contacto!$J$33)","v":""},{"$f":"IF(+Contacto!$D$7=\"\",\"\",Contacto!$D$7)","v":""},{"$f":"IF(+Contacto!$D$38=\"\",\"\",Contacto!$D$38)","v":""},{"$f":"IF(+Contacto!$D$48=\"\",\"\",Contacto!$D$48)","v":""}]
[{"$f":"+IF(Contacto!#REF!=\"X\",Contacto!#REF!,IF(Contacto!#REF!=\"X\",Contacto!#REF!,IF(Contacto!#REF!=\"X\",Contacto!#REF!,IF(Contacto!#REF!=\"X\",Contacto!#REF!,IF(Contacto!#REF!=\"X\",Contacto!#REF!)))))","v":{"$error":"#REF!"}},{"$f":"+IF(Contacto!#REF!=\"X\",Contacto!#REF!,\" \")","v":{"$error":"#REF!"}},{"$f":"+Contacto!$D$6","v":0},{"$f":"+IF(Contacto!$D$12=\"X\",Contacto!$D$11,(IF(Contacto!$G$12=\"X\",Contacto!$G$11,IF(Contacto!$H$12=\"X\",Contacto!$H$11,IF(Contacto!$I$12=\"X\",Contacto!$I$11,IF(Contacto!$J$12=\"X\",Contacto!$J$11,IF(Contacto!$L$12=\"X\",Contacto!$L$11)))))))","v":false},{"$f":"+Contacto!$D$8","v":0},{"$f":"+Contacto!$D$9","v":0},{"$f":"+IF(AND(K9=Contacto!D21,Contacto!I21=\"x\"),Contacto!$I$13,IF(Contacto!J21=\"X\",Contacto!$J$13,IF(Contacto!L21=\"X\",Contacto!$L$13)))","v":false},{"$f":"+Contacto!#REF!","v":{"$error":"#REF!"}},{"$f":"+IF(Contacto!#REF!='Base Datos'!K9,Contacto!#REF!,IF(Contacto!#REF!='Base Datos'!K9,Contacto!#REF!,IF(Contacto!#REF!='Base Datos'!K9,Contacto!#REF!,IF(Contacto!#REF!='Base Datos'!K9,Contacto!#REF!,IF(Contacto!#REF!='Base Datos'!K9,Contacto!#REF!,\"N/A\")))))","v":{"$error":"#REF!"}},null,{"$f":"+Contacto!D21","v":0},{"$f":"IF(+Contacto!#REF!=\"\",\"N/A\",Contacto!#REF!)","v":{"$error":"#REF!"}},{"$f":"IF(+Contacto!$D$31=\"\",\"\",Contacto!$D$31)","v":""},{"$f":"IF(+Contacto!$H$31=\"\",\"\",Contacto!$H$31)","v":""},{"$f":"IF(+Contacto!$J$31=\"\",\"\",Contacto!$J$31)","v":""},{"$f":"IF(+Contacto!$D$35=\"\",\"\",Contacto!$D$35)","v":""},null,{"$f":"IF(+Contacto!$H$35=\"\",\"\",Contacto!$H$35)","v":""},null,{"$f":"IF(+Contacto!$J$35=\"\",\"\",Contacto!$J$35)","v":""},null,{"$f":"IF(+Contacto!$G$31=\"\",\"\",Contacto!$G$31)","v":""},{"$f":"IF(+Contacto!$I$31=\"\",\"\",Contacto!$I$31)","v":""},{"$f":"IF(+Contacto!$L$31=\"\",\"\",Contacto!$L$31)","v":""},{"$f":"IF(+Contacto!$D$33=\"\",\"\",Contacto!$D$33)","v":""},{"$f":"IF(+Contacto!$H$33=\"\",\"\",Contacto!$H$33)","v":""},{"$f":"IF(Contacto!$J$33=\"\",\"\",Contacto!$J$33)","v":""},{"$f":"IF(+Contacto!$D$7=\"\",\"\",Contacto!$D$7)","v":""},{"$f":"IF(+Contacto!$D$38=\"\",\"\",Contacto!$D$38)","v":""},{"$f":"IF(+Contacto!$D$48=\"\",\"\",Contacto!$D$48)","v":""}]
[{"$f":"+IF(Contacto!#REF!=\"X\",Contacto!#REF!,IF(Contacto!#REF!=\"X\",Contacto!#REF!,IF(Contacto!#REF!=\"X\",Contacto!#REF!,IF(Contacto!#REF!=\"X\",Contacto!#REF!,IF(Contacto!#REF!=\"X\",Contacto!#REF!)))))","v":{"$error":"#REF!"}},{"$f":"+IF(Contacto!#REF!=\"X\",Contacto!#REF!,\" \")","v":{"$error":"#REF!"}},{"$f":"+Contacto!$D$6","v":0},{"$f":"+IF(Contacto!$D$12=\"X\",Contacto!$D$11,(IF(Contacto!$G$12=\"X\",Contacto!$G$11,IF(Contacto!$H$12=\"X\",Contacto!$H$11,IF(Contacto!$I$12=\"X\",Contacto!$I$11,IF(Contacto!$J$12=\"X\",Contacto!$J$11,IF(Contacto!$L$12=\"X\",Contacto!$L$11)))))))","v":false},{"$f":"+Contacto!$D$8","v":0},{"$f":"+Contacto!$D$9","v":0},{"$f":"+IF(AND(K10=Contacto!D22,Contacto!I22=\"x\"),Contacto!$I$13,IF(Contacto!J22=\"X\",Contacto!$J$13,IF(Contacto!L22=\"X\",Contacto!$L$13)))","v":false},{"$f":"+Contacto!#REF!","v":{"$error":"#REF!"}},{"$f":"+IF(Contacto!#REF!='Base Datos'!K10,Contacto!#REF!,IF(Contacto!#REF!='Base Datos'!K10,Contacto!#REF!,IF(Contacto!#REF!='Base Datos'!K10,Contacto!#REF!,IF(Contacto!#REF!='Base Datos'!K10,Contacto!#REF!,IF(Contacto!#REF!='Base Datos'!K10,Contacto!#REF!,\"N/A\")))))","v":{"$error":"#REF!"}},null,{"$f":"+Contacto!D22","v":0},{"$f":"IF(+Contacto!#REF!=\"\",\"N/A\",Contacto!#REF!)","v":{"$error":"#REF!"}},{"$f":"IF(+Contacto!$D$31=\"\",\"\",Contacto!$D$31)","v":""},{"$f":"IF(+Contacto!$H$31=\"\",\"\",Contacto!$H$31)","v":""},{"$f":"IF(+Contacto!$J$31=\"\",\"\",Contacto!$J$31)","v":""},{"$f":"IF(+Contacto!$D$35=\"\",\"\",Contacto!$D$35)","v":""},null,{"$f":"IF(+Contacto!$H$35=\"\",\"\",Contacto!$H$35)","v":""},null,{"$f":"IF(+Contacto!$J$35=\"\",\"\",Contacto!$J$35)","v":""},null,{"$f":"IF(+Contacto!$G$31=\"\",\"\",Contacto!$G$31)","v":""},{"$f":"IF(+Contacto!$I$31=\"\",\"\",Contacto!$I$31)","v":""},{"$f":"IF(+Contacto!$L$31=\"\",\"\",Contacto!$L$31)","v":""},{"$f":"IF(+Contacto!$D$33=\"\",\"\",Contacto!$D$33)","v":""},{"$f":"IF(+Contacto!$H$33=\"\",\"\",Contacto!$H$33)","v":""},{"$f":"IF(Contacto!$J$33=\"\",\"\",Contacto!$J$33)","v":""},{"$f":"IF(+Contacto!$D$7=\"\",\"\",Contacto!$D$7)","v":""},{"$f":"IF(+Contacto!$D$38=\"\",\"\",Contacto!$D$38)","v":""},{"$f":"IF(+Contacto!$D$48=\"\",\"\",Contacto!$D$48)","v":""}]
[{"$f":"+IF(Contacto!#REF!=\"X\",Contacto!#REF!,IF(Contacto!#REF!=\"X\",Contacto!#REF!,IF(Contacto!#REF!=\"X\",Contacto!#REF!,IF(Contacto!#REF!=\"X\",Contacto!#REF!,IF(Contacto!#REF!=\"X\",Contacto!#REF!)))))","v":{"$error":"#REF!"}},{"$f":"+IF(Contacto!#REF!=\"X\",Contacto!#REF!,\" \")","v":{"$error":"#REF!"}},{"$f":"+Contacto!$D$6","v":0},{"$f":"+IF(Contacto!$D$12=\"X\",Contacto!$D$11,(IF(Contacto!$G$12=\"X\",Contacto!$G$11,IF(Contacto!$H$12=\"X\",Contacto!$H$11,IF(Contacto!$I$12=\"X\",Contacto!$I$11,IF(Contacto!$J$12=\"X\",Contacto!$J$11,IF(Contacto!$L$12=\"X\",Contacto!$L$11)))))))","v":false},{"$f":"+Contacto!$D$8","v":0},{"$f":"+Contacto!$D$9","v":0},{"$f":"+IF(AND(K11=Contacto!D23,Contacto!I23=\"x\"),Contacto!$I$13,IF(Contacto!J23=\"X\",Contacto!$J$13,IF(Contacto!L23=\"X\",Contacto!$L$13)))","v":false},{"$f":"+Contacto!#REF!","v":{"$error":"#REF!"}},{"$f":"+IF(Contacto!#REF!='Base Datos'!K11,Contacto!#REF!,IF(Contacto!#REF!='Base Datos'!K11,Contacto!#REF!,IF(Contacto!#REF!='Base Datos'!K11,Contacto!#REF!,IF(Contacto!#REF!='Base Datos'!K11,Contacto!#REF!,IF(Contacto!#REF!='Base Datos'!K11,Contacto!#REF!,\"N/A\")))))","v":{"$error":"#REF!"}},null,{"$f":"+Contacto!D23","v":0},{"$f":"IF(+Contacto!#REF!=\"\",\"N/A\",Contacto!#REF!)","v":{"$error":"#REF!"}},{"$f":"IF(+Contacto!$D$31=\"\",\"\",Contacto!$D$31)","v":""},{"$f":"IF(+Contacto!$H$31=\"\",\"\",Contacto!$H$31)","v":""},{"$f":"IF(+Contacto!$J$31=\"\",\"\",Contacto!$J$31)","v":""},{"$f":"IF(+Contacto!$D$35=\"\",\"\",Contacto!$D$35)","v":""},null,{"$f":"IF(+Contacto!$H$35=\"\",\"\",Contacto!$H$35)","v":""},null,{"$f":"IF(+Contacto!$J$35=\"\",\"\",Contacto!$J$35)","v":""},null,{"$f":"IF(+Contacto!$G$31=\"\",\"\",Contacto!$G$31)","v":""},{"$f":"IF(+Contacto!$I$31=\"\",\"\",Contacto!$I$31)","v":""},{"$f":"IF(+Contacto!$L$31=\"\",\"\",Contacto!$L$31)","v":""},{"$f":"IF(+Contacto!$D$33=\"\",\"\",Contacto!$D$33)","v":""},{"$f":"IF(+Contacto!$H$33=\"\",\"\",Contacto!$H$33)","v":""},{"$f":"IF(Contacto!$J$33=\"\",\"\",Contacto!$J$33)","v":""},{"$f":"IF(+Contacto!$D$7=\"\",\"\",Contacto!$D$7)","v":""},{"$f":"IF(+Contacto!$D$38=\"\",\"\",Contacto!$D$38)","v":""},{"$f":"IF(+Contacto!$D$48=\"\",\"\",Contacto!$D$48)","v":""}]
[{"$f":"+IF(Contacto!#REF!=\"X\",Contacto!#REF!,IF(Contacto!#REF!=\"X\",Contacto!#REF!,IF(Contacto!#REF!=\"X\",Contacto!#REF!,IF(Contacto!#REF!=\"X\",Contacto!#REF!,IF(Contacto!#REF!=\"X\",Contacto!#REF!)))))","v":{"$error":"#REF!"}},{"$f":"+IF(Contacto!#REF!=\"X\",Contacto!#REF!,\" \")","v":{"$error":"#REF!"}},{"$f":"+Contacto!$D$6","v":0},{"$f":"+IF(Contacto!$D$12=\"X\",Contacto!$D$11,(IF(Contacto!$G$12=\"X\",Contacto!$G$11,IF(Contacto!$H$12=\"X\",Contacto!$H$11,IF(Contacto!$I$12=\"X\",Contacto!$I$11,IF(Contacto!$J$12=\"X\",Contacto!$J$11,IF(Contacto!$L$12=\"X\",Contacto!$L$11)))))))","v":false},{"$f":"+Contacto!$D$8","v":0},{"$f":"+Contacto!$D$9","v":0},{"$f":"+IF(AND(K12=Contacto!D24,Contacto!I24=\"x\"),Contacto!$I$13,IF(Contacto!J24=\"X\",Contacto!$J$13,IF(Contacto!L24=\"X\",Contacto!$L$13)))","v":false},{"$f":"+Contacto!#REF!","v":{"$error":"#REF!"}},{"$f":"+IF(Contacto!#REF!='Base Datos'!K12,Contacto!#REF!,IF(Contacto!#REF!='Base Datos'!K12,Contacto!#REF!,IF(Contacto!#REF!='Base Datos'!K12,Contacto!#REF!,IF(Contacto!#REF!='Base Datos'!K12,Contacto!#REF!,IF(Contacto!#REF!='Base Datos'!K12,Contacto!#REF!,\"N/A\")))))","v":{"$error":"#REF!"}},null,{"$f":"+Contacto!D24","v":0},{"$f":"IF(+Contacto!#REF!=\"\",\"N/A\",Contacto!#REF!)","v":{"$error":"#REF!"}},{"$f":"IF(+Contacto!$D$31=\"\",\"\",Contacto!$D$31)","v":""},{"$f":"IF(+Contacto!$H$31=\"\",\"\",Contacto!$H$31)","v":""},{"$f":"IF(+Contacto!$J$31=\"\",\"\",Contacto!$J$31)","v":""},{"$f":"IF(+Contacto!$D$35=\"\",\"\",Contacto!$D$35)","v":""},null,{"$f":"IF(+Contacto!$H$35=\"\",\"\",Contacto!$H$35)","v":""},null,{"$f":"IF(+Contacto!$J$35=\"\",\"\",Contacto!$J$35)","v":""},null,{"$f":"IF(+Contacto!$G$31=\"\",\"\",Contacto!$G$31)","v":""},{"$f":"IF(+Contacto!$I$31=\"\",\"\",Contacto!$I$31)","v":""},{"$f":"IF(+Contacto!$L$31=\"\",\"\",Contacto!$L$31)","v":""},{"$f":"IF(+Contacto!$D$33=\"\",\"\",Contacto!$D$33)","v":""},{"$f":"IF(+Contacto!$H$33=\"\",\"\",Contacto!$H$33)","v":""},{"$f":"IF(Contacto!$J$33=\"\",\"\",Contacto!$J$33)","v":""},{"$f":"IF(+Contacto!$D$7=\"\",\"\",Contacto!$D$7)","v":""},{"$f":"IF(+Contacto!$D$38=\"\",\"\",Contacto!$D$38)","v":""},{"$f":"IF(+Contacto!$D$48=\"\",\"\",Contacto!$D$48)","v":""}]
[{"$f":"+IF(Contacto!#REF!=\"X\",Contacto!#REF!,IF(Contacto!#REF!=\"X\",Contacto!#REF!,IF(Contacto!#REF!=\"X\",Contacto!#REF!,IF(Contacto!#REF!=\"X\",Contacto!#REF!,IF(Contacto!#REF!=\"X\",Contacto!#REF!)))))","v":{"$error":"#REF!"}},{"$f":"+IF(Contacto!#REF!=\"X\",Contacto!#REF!,\" \")","v":{"$error":"#REF!"}},{"$f":"+Contacto!$D$6","v":0},{"$f":"+IF(Contacto!$D$12=\"X\",Contacto!$D$11,(IF(Contacto!$G$12=\"X\",Contacto!$G$11,IF(Contacto!$H$12=\"X\",Contacto!$H$11,IF(Contacto!$I$12=\"X\",Contacto!$I$11,IF(Contacto!$J$12=\"X\",Contacto!$J$11,IF(Contacto!$L$12=\"X\",Contacto!$L$11)))))))","v":false},{"$f":"+Contacto!$D$8","v":0},{"$f":"+Contacto!$D$9","v":0},{"$f":"+IF(AND(K13=Contacto!D25,Contacto!I25=\"x\"),Contacto!$I$13,IF(Contacto!J25=\"X\",Contacto!$J$13,IF(Contacto!L25=\"X\",Contacto!$L$13)))","v":false},{"$f":"+Contacto!#REF!","v":{"$error":"#REF!"}},{"$f":"+IF(Contacto!#REF!='Base Datos'!K13,Contacto!#REF!,IF(Contacto!#REF!='Base Datos'!K13,Contacto!#REF!,IF(Contacto!#REF!='Base Datos'!K13,Contacto!#REF!,IF(Contacto!#REF!='Base Datos'!K13,Contacto!#REF!,IF(Contacto!#REF!='Base Datos'!K13,Contacto!#REF!,\"N/A\")))))","v":{"$error":"#REF!"}},null,{"$f":"+Contacto!D25","v":0},{"$f":"IF(+Contacto!#REF!=\"\",\"N/A\",Contacto!#REF!)","v":{"$error":"#REF!"}},{"$f":"IF(+Contacto!$D$31=\"\",\"\",Contacto!$D$31)","v":""},{"$f":"IF(+Contacto!$H$31=\"\",\"\",Contacto!$H$31)","v":""},{"$f":"IF(+Contacto!$J$31=\"\",\"\",Contacto!$J$31)","v":""},{"$f":"IF(+Contacto!$D$35=\"\",\"\",Contacto!$D$35)","v":""},null,{"$f":"IF(+Contacto!$H$35=\"\",\"\",Contacto!$H$35)","v":""},null,{"$f":"IF(+Contacto!$J$35=\"\",\"\",Contacto!$J$35)","v":""},null,{"$f":"IF(+Contacto!$G$31=\"\",\"\",Contacto!$G$31)","v":""},{"$f":"IF(+Contacto!$I$31=\"\",\"\",Contacto!$I$31)","v":""},{"$f":"IF(+Contacto!$L$31=\"\",\"\",Contacto!$L$31)","v":""},{"$f":"IF(+Contacto!$D$33=\"\",\"\",Contacto!$D$33)","v":""},{"$f":"IF(+Contacto!$H$33=\"\",\"\",Contacto!$H$33)","v":""},{"$f":"IF(Contacto!$J$33=\"\",\"\",Contacto!$J$33)","v":""},{"$f":"IF(+Contacto!$D$7=\"\",\"\",Contacto!$D$7)","v":""},{"$f":"IF(+Contacto!$D$38=\"\",\"\",Contacto!$D$38)","v":""},{"$f":"IF(+Contacto!$D$48=\"\",\"\",Contacto!$D$48)","v":""}]
[{"$f":"+IF(Contacto!#REF!=\"X\",Contacto!#REF!,IF(Contacto!#REF!=\"X\",Contacto!#REF!,IF(Contacto!#REF!=\"X\",Contacto!#REF!,IF(Contacto!#REF!=\"X\",Contacto!#REF!,IF(Contacto!#REF!=\"X\",Contacto!#REF!)))))","v":{"$error":"#REF!"}},{"$f":"+IF(Contacto!#REF!=\"X\",Contacto!#REF!,\" \")","v":{"$error":"#REF!"}},{"$f":"+Contacto!$D$6","v":0},{"$f":"+IF(Contacto!$D$12=\"X\",Contacto!$D$11,(IF(Contacto!$G$12=\"X\",Contacto!$G$11,IF(Contacto!$H$12=\"X\",Contacto!$H$11,IF(Contacto!$I$12=\"X\",Contacto!$I$11,IF(Contacto!$J$12=\"X\",Contacto!$J$11,IF(Contacto!$L$12=\"X\",Contacto!$L$11)))))))","v":false},{"$f":"+Contacto!$D$8","v":0},{"$f":"+Contacto!$D$9","v":0},{"$f":"+IF(AND(K14=Contacto!D26,Contacto!I26=\"x\"),Contacto!$I$13,IF(Contacto!J26=\"X\",Contacto!$J$13,IF(Contacto!L26=\"X\",Contacto!$L$13)))","v":false},{"$f":"+Contacto!#REF!","v":{"$error":"#REF!"}},{"$f":"+IF(Contacto!#REF!='Base Datos'!K14,Contacto!#REF!,IF(Contacto!#REF!='Base Datos'!K14,Contacto!#REF!,IF(Contacto!#REF!='Base Datos'!K14,Contacto!#REF!,IF(Contacto!#REF!='Base Datos'!K14,Contacto!#REF!,IF(Contacto!#REF!='Base Datos'!K14,Contacto!#REF!,\"N/A\")))))","v":{"$error":"#REF!"}},null,{"$f":"+Contacto!D26","v":0},{"$f":"IF(+Contacto!#REF!=\"\",\"N/A\",Contacto!#REF!)","v":{"$error":"#REF!"}},{"$f":"IF(+Contacto!$D$31=\"\",\"\",Contacto!$D$31)","v":""},{"$f":"IF(+Contacto!$H$31=\"\",\"\",Contacto!$H$31)","v":""},{"$f":"IF(+Contacto!$J$31=\"\",\"\",Contacto!$J$31)","v":""},{"$f":"IF(+Contacto!$D$35=\"\",\"\",Contacto!$D$35)","v":""},null,{"$f":"IF(+Contacto!$H$35=\"\",\"\",Contacto!$H$35)","v":""},null,{"$f":"IF(+Contacto!$J$35=\"\",\"\",Contacto!$J$35)","v":""},null,{"$f":"IF(+Contacto!$G$31=\"\",\"\",Contacto!$G$31)","v":""},{"$f":"IF(+Contacto!$I$31=\"\",\"\",Contacto!$I$31)","v":""},{"$f":"IF(+Contacto!$L$31=\"\",\"\",Contacto!$L$31)","v":""},{"$f":"IF(+Contacto!$D$33=\"\",\"\",Contacto!$D$33)","v":""},{"$f":"IF(+Contacto!$H$33=\"\",\"\",Contacto!$H$33)","v":""},{"$f":"IF(Contacto!$J$33=\"\",\"\",Contacto!$J$33)","v":""},{"$f":"IF(+Contacto!$D$7=\"\",\"\",Contacto!$D$7)","v":""},{"$f":"IF(+Contacto!$D$38=\"\",\"\",Contacto!$D$38)","v":""},{"$f":"IF(+Contacto!$D$48=\"\",\"\",Contacto!$D$48)","v":""}]
[{"$f":"+IF(Contacto!#REF!=\"X\",Contacto!#REF!,IF(Contacto!#REF!=\"X\",Contacto!#REF!,IF(Contacto!#REF!=\"X\",Contacto!#REF!,IF(Contacto!#REF!=\"X\",Contacto!#REF!,IF(Contacto!#REF!=\"X\",Contacto!#REF!)))))","v":{"$error":"#REF!"}},{"$f":"+IF(Contacto!#REF!=\"X\",Contacto!#REF!,\" \")","v":{"$error":"#REF!"}},{"$f":"+Contacto!$D$6","v":0},{"$f":"+IF(Contacto!$D$12=\"X\",Contacto!$D$11,(IF(Contacto!$G$12=\"X\",Contacto!$G$11,IF(Contacto!$H$12=\"X\",Contacto!$H$11,IF(Contacto!$I$12=\"X\",Contacto!$I$11,IF(Contacto!$J$12=\"X\",Contacto!$J$11,IF(Contacto!$L$12=\"X\",Contacto!$L$11)))))))","v":false},{"$f":"+Contacto!$D$8","v":0},{"$f":"+Contacto!$D$9","v":0},{"$f":"+IF(AND(K15=Contacto!D27,Contacto!I27=\"x\"),Contacto!$I$13,IF(Contacto!J27=\"X\",Contacto!$J$13,IF(Contacto!L27=\"X\",Contacto!$L$13)))","v":false},{"$f":"+Contacto!#REF!","v":{"$error":"#REF!"}},{"$f":"+IF(Contacto!#REF!='Base Datos'!K15,Contacto!#REF!,IF(Contacto!#REF!='Base Datos'!K15,Contacto!#REF!,IF(Contacto!#REF!='Base Datos'!K15,Contacto!#REF!,IF(Contacto!#REF!='Base Datos'!K15,Contacto!#REF!,IF(Contacto!#REF!='Base Datos'!K15,Contacto!#REF!,\"N/A\")))))","v":{"$error":"#REF!"}},null,{"$f":"+Contacto!D27","v":0},{"$f":"IF(+Contacto!#REF!=\"\",\"N/A\",Contacto!#REF!)","v":{"$error":"#REF!"}},{"$f":"IF(+Contacto!$D$31=\"\",\"\",Contacto!$D$31)","v":""},{"$f":"IF(+Contacto!$H$31=\"\",\"\",Contacto!$H$31)","v":""},{"$f":"IF(+Contacto!$J$31=\"\",\"\",Contacto!$J$31)","v":""},{"$f":"IF(+Contacto!$D$35=\"\",\"\",Contacto!$D$35)","v":""},null,{"$f":"IF(+Contacto!$H$35=\"\",\"\",Contacto!$H$35)","v":""},null,{"$f":"IF(+Contacto!$J$35=\"\",\"\",Contacto!$J$35)","v":""},null,{"$f":"IF(+Contacto!$G$31=\"\",\"\",Contacto!$G$31)","v":""},{"$f":"IF(+Contacto!$I$31=\"\",\"\",Contacto!$I$31)","v":""},{"$f":"IF(+Contacto!$L$31=\"\",\"\",Contacto!$L$31)","v":""},{"$f":"IF(+Contacto!$D$33=\"\",\"\",Contacto!$D$33)","v":""},{"$f":"IF(+Contacto!$H$33=\"\",\"\",Contacto!$H$33)","v":""},{"$f":"IF(Contacto!$J$33=\"\",\"\",Contacto!$J$33)","v":""},{"$f":"IF(+Contacto!$D$7=\"\",\"\",Contacto!$D$7)","v":""},{"$f":"IF(+Contacto!$D$38=\"\",\"\",Contacto!$D$38)","v":""},{"$f":"IF(+Contacto!$D$48=\"\",\"\",Contacto!$D$48)","v":""}]
[{"$f":"+IF(Contacto!#REF!=\"X\",Contacto!#REF!,IF(Contacto!#REF!=\"X\",Contacto!#REF!,IF(Contacto!#REF!=\"X\",Contacto!#REF!,IF(Contacto!#REF!=\"X\",Contacto!#REF!,IF(Contacto!#REF!=\"X\",Contacto!#REF!)))))","v":{"$error":"#REF!"}},{"$f":"+IF(Contacto!#REF!=\"X\",Contacto!#REF!,\" \")","v":{"$error":"#REF!"}},{"$f":"+Contacto!$D$6","v":0},{"$f":"+IF(Contacto!$D$12=\"X\",Contacto!$D$11,(IF(Contacto!$G$12=\"X\",Contacto!$G$11,IF(Contacto!$H$12=\"X\",Contacto!$H$11,IF(Contacto!$I$12=\"X\",Contacto!$I$11,IF(Contacto!$J$12=\"X\",Contacto!$J$11,IF(Contacto!$L$12=\"X\",Contacto!$L$11)))))))","v":false},{"$f":"+Contacto!$D$8","v":0},{"$f":"+Contacto!$D$9","v":0},{"$f":"+IF(AND(K16=Contacto!D28,Contacto!I28=\"x\"),Contacto!$I$13,IF(Contacto!J28=\"X\",Contacto!$J$13,IF(Contacto!L28=\"X\",Contacto!$L$13)))","v":false},{"$f":"+Contacto!#REF!","v":{"$error":"#REF!"}},{"$f":"+IF(Contacto!#REF!='Base Datos'!K16,Contacto!#REF!,IF(Contacto!#REF!='Base Datos'!K16,Contacto!#REF!,IF(Contacto!#REF!='Base Datos'!K16,Contacto!#REF!,IF(Contacto!#REF!='Base Datos'!K16,Contacto!#REF!,IF(Contacto!#REF!='Base Datos'!K16,Contacto!#REF!,\"N/A\")))))","v":{"$error":"#REF!"}},null,{"$f":"+Contacto!D28","v":0},{"$f":"IF(+Contacto!#REF!=\"\",\"N/A\",Contacto!#REF!)","v":{"$error":"#REF!"}},{"$f":"IF(+Contacto!$D$31=\"\",\"\",Contacto!$D$31)","v":""},{"$f":"IF(+Contacto!$H$31=\"\",\"\",Contacto!$H$31)","v":""},{"$f":"IF(+Contacto!$J$31=\"\",\"\",Contacto!$J$31)","v":""},{"$f":"IF(+Contacto!$D$35=\"\",\"\",Contacto!$D$35)","v":""},null,{"$f":"IF(+Contacto!$H$35=\"\",\"\",Contacto!$H$35)","v":""},null,{"$f":"IF(+Contacto!$J$35=\"\",\"\",Contacto!$J$35)","v":""},null,{"$f":"IF(+Contacto!$G$31=\"\",\"\",Contacto!$G$31)","v":""},{"$f":"IF(+Contacto!$I$31=\"\",\"\",Contacto!$I$31)","v":""},{"$f":"IF(+Contacto!$L$31=\"\",\"\",Contacto!$L$31)","v":""},{"$f":"IF(+Contacto!$D$33=\"\",\"\",Contacto!$D$33)","v":""},{"$f":"IF(+Contacto!$H$33=\"\",\"\",Contacto!$H$33)","v":""},{"$f":"IF(Contacto!$J$33=\"\",\"\",Contacto!$J$33)","v":""},{"$f":"IF(+Contacto!$D$7=\"\",\"\",Contacto!$D$7)","v":""},{"$f":"IF(+Contacto!$D$38=\"\",\"\",Contacto!$D$38)","v":""},{"$f":"IF(+Contacto!$D$48=\"\",\"\",Contacto!$D$48)","v":""}]

{"sheet":"Listas Desplegables","index":3,"n_rows":17,"n_cols":12,"rows_kept":17,"cut":false,"hidden":true,"merged":[]}
["Condición_Prov",null,null,"Área",null,null,"Clasificación del proveedor","Categoria",null,null,null,"Materiales"]
["Activo",null,null,"Bienestar",null,null,"Distribuidor","Activos de comercialización",null,null,null,{"$f":"+Contacto!D14","v":0}]
["Elegible",null,null,"Dotación de Uniformes",null,null,"Fabricante","Alimentos",null,null,null,{"$f":"+Contacto!D15","v":0}]
["No elegible",null,null,"Juguetes",null,null,"Importador","Articulos deportivos",null,null,null,{"$f":"+Contacto!D16","v":0}]
["Inactivo",null,null,"Promocionales",null,null,null,"Desechables",null,null,null,{"$f":"+Contacto!D17","v":0}]
["Bloqueado",null,null,"Punto de venta / Exhibición",null,null,null,"Electrónicos",null,null,null,{"$f":"+Contacto!D18","v":0}]
[null,null,null,"Punto de venta / Impresos",null,null,null,"Empaques",null,null,null,{"$f":"+Contacto!D19","v":0}]
[null,null,null,"Punto de venta",null,null,null,"Exhibición/ Desarrollo mobiliario",null,null,null,{"$f":"+Contacto!D20","v":0}]
[null,null,null,null,null,null,null,"Exhibición/ Exhibidores",null,null,null,{"$f":"+Contacto!D21","v":0}]
[null,null,null,null,null,null,null,"Exhibición/ Revestimientos",null,null,null,{"$f":"+Contacto!D22","v":0}]
[null,null,null,null,null,null,null,"Hogar",null,null,null,{"$f":"+Contacto!D23","v":0}]
[null,null,null,null,null,null,null,"Impresos / Litográficos",null,null,null,{"$f":"+Contacto!D24","v":0}]
[null,null,null,null,null,null,null,"Impresos /Digital",null,null,null,{"$f":"+Contacto!D25","v":0}]
[null,null,null,null,null,null,null,"Juguetes",null,null,null,{"$f":"+Contacto!D26","v":0}]
[null,null,null,null,null,null,null,"Material promocional",null,null,null,{"$f":"+Contacto!D27","v":0}]
[null,null,null,null,null,null,null,"Premiaciones",null,null,null,{"$f":"+Contacto!D28","v":0}]
[null,null,null,null,null,null,null,"Textiles"]